Workbook

Sheet DESCRIZIONE
A4: Il progetto esemplificativo individuale è dedicato, in modo specifico, ai nuovi iscritti (anche per i fiscalmente a carico) dal 2007 in poi. Vuole essere d'aiuto per valutare l'investimento nel Fondo Pensione.
A5: I risultati prodotti dai motori di calcolo non impegnano in alcun modo il Fondo Pensione
C13: TRA QUANTO TEMPO INVESTENDO UN CAPITALE NOTO A UN TASSO ANNUO DI RENDIMENTO NOTO POTRO' AVERE IL MONTANTE CHE MI SERVE?
E16: QUANTO CAPITALE DEVO INVESTIRE PER OTTENERE TRA X ANNI IL MONTANTE DESIDERATO?
B19: INVESTENDO UN CAPITALE ANNUALE CONOSCIUTO, CON O SENZA CAPITALE INIZIALE A UN TASSO ANNUO DI REND. CONOSCIUTO CHE MONTANTE AVRO' TRA X ANNI? | AG19: INVESTENDO UN CAPITALE ANNUALE CONOSCIUTO, CON O SENZA CAPITALE INIZIALE A UN TASSO DI RIV CONOSCIUTO CHE MONTANTE AVRO' TRA X ANNI? | AW19: INVESTENDO UN CAPITALE ANNUALE CONOSCIUTO, CON O SENZA CAPITALE INIZIALE A UN TASSO DI RIV CONOSCIUTO CHE MONTANTE AVRO' TRA X ANNI? | BM19: INVESTENDO UN CAPITALE ANNUALE CONOSCIUTO, CON O SENZA CAPITALE INIZIALE A UN TASSO DI RIV CONOSCIUTO CHE MONTANTE AVRO' TRA X ANNI? | CC19: INVESTENDO UN CAPITALE ANNUALE CONOSCIUTO, CON O SENZA CAPITALE INIZIALE A UN TASSO DI RIV CONOSCIUTO CHE MONTANTE AVRO' TRA X ANNI? | CS19: INVESTENDO UN CAPITALE ANNUALE CONOSCIUTO, CON O SENZA CAPITALE INIZIALE A UN TASSO DI RIV CONOSCIUTO CHE MONTANTE AVRO' TRA X ANNI? | DI19: INVESTENDO UN CAPITALE ANNUALE CONOSCIUTO, CON O SENZA CAPITALE INIZIALE A UN TASSO DI RIV CONOSCIUTO CHE MONTANTE AVRO' TRA X ANNI? | DY19: INVESTENDO UN CAPITALE ANNUALE CONOSCIUTO, CON O SENZA CAPITALE INIZIALE A UN TASSO DI RIV CONOSCIUTO CHE MONTANTE AVRO' TRA X ANNI? | EO19: INVESTENDO UN CAPITALE ANNUALE CONOSCIUTO, CON O SENZA CAPITALE INIZIALE A UN TASSO DI RIV CONOSCIUTO CHE MONTANTE AVRO' TRA X ANNI? | FE19: INVESTENDO UN CAPITALE ANNUALE CONOSCIUTO, CON O SENZA CAPITALE INIZIALE A UN TASSO DI RIV CONOSCIUTO CHE MONTANTE AVRO' TRA X ANNI? | FU19: INVESTENDO UN CAPITALE ANNUALE CONOSCIUTO, CON O SENZA CAPITALE INIZIALE A UN TASSO DI RIV CONOSCIUTO CHE MONTANTE AVRO' TRA X ANNI? | GK19: INVESTENDO UN CAPITALE ANNUALE CONOSCIUTO, CON O SENZA CAPITALE INIZIALE A UN TASSO DI RIV CONOSCIUTO CHE MONTANTE AVRO' TRA X ANNI? | HA19: INVESTENDO UN CAPITALE ANNUALE CONOSCIUTO, CON O SENZA CAPITALE INIZIALE A UN TASSO DI RIV CONOSCIUTO CHE MONTANTE AVRO' TRA X ANNI? | HQ19: INVESTENDO UN CAPITALE ANNUALE CONOSCIUTO, CON O SENZA CAPITALE INIZIALE A UN TASSO DI RIV CONOSCIUTO CHE MONTANTE AVRO' TRA X ANNI? | IG19: INVESTENDO UN CAPITALE ANNUALE CONOSCIUTO, CON O SENZA CAPITALE INIZIALE A UN TASSO DI RIV CONOSCIUTO CHE MONTANTE AVRO' TRA X ANNI? | IW19: INVESTENDO UN CAPITALE ANNUALE CONOSCIUTO, CON O SENZA CAPITALE INIZIALE A UN TASSO DI RIV CONOSCIUTO CHE MONTANTE AVRO' TRA X ANNI? | JM19: INVESTENDO UN CAPITALE ANNUALE CONOSCIUTO, CON O SENZA CAPITALE INIZIALE A UN TASSO DI RIV CONOSCIUTO CHE MONTANTE AVRO' TRA X ANNI? | KC19: INVESTENDO UN CAPITALE ANNUALE CONOSCIUTO, CON O SENZA CAPITALE INIZIALE A UN TASSO DI RIV CONOSCIUTO CHE MONTANTE AVRO' TRA X ANNI? | KS19: INVESTENDO UN CAPITALE ANNUALE CONOSCIUTO, CON O SENZA CAPITALE INIZIALE A UN TASSO DI RIV CONOSCIUTO CHE MONTANTE AVRO' TRA X ANNI? | LI19: INVESTENDO UN CAPITALE ANNUALE CONOSCIUTO, CON O SENZA CAPITALE INIZIALE A UN TASSO DI RIV CONOSCIUTO CHE MONTANTE AVRO' TRA X ANNI? | LY19: INVESTENDO UN CAPITALE ANNUALE CONOSCIUTO, CON O SENZA CAPITALE INIZIALE A UN TASSO DI RIV CONOSCIUTO CHE MONTANTE AVRO' TRA X ANNI? | MO19: INVESTENDO UN CAPITALE ANNUALE CONOSCIUTO, CON O SENZA CAPITALE INIZIALE A UN TASSO DI RIV CONOSCIUTO CHE MONTANTE AVRO' TRA X ANNI? | NE19: INVESTENDO UN CAPITALE ANNUALE CONOSCIUTO, CON O SENZA CAPITALE INIZIALE A UN TASSO DI RIV CONOSCIUTO CHE MONTANTE AVRO' TRA X ANNI? | NU19: INVESTENDO UN CAPITALE ANNUALE CONOSCIUTO, CON O SENZA CAPITALE INIZIALE A UN TASSO DI RIV CONOSCIUTO CHE MONTANTE AVRO' TRA X ANNI? | OK19: INVESTENDO UN CAPITALE ANNUALE CONOSCIUTO, CON O SENZA CAPITALE INIZIALE A UN TASSO DI RIV CONOSCIUTO CHE MONTANTE AVRO' TRA X ANNI? | PA19: INVESTENDO UN CAPITALE ANNUALE CONOSCIUTO, CON O SENZA CAPITALE INIZIALE A UN TASSO DI RIV CONOSCIUTO CHE MONTANTE AVRO' TRA X ANNI? | PQ19: INVESTENDO UN CAPITALE ANNUALE CONOSCIUTO, CON O SENZA CAPITALE INIZIALE A UN TASSO DI RIV CONOSCIUTO CHE MONTANTE AVRO' TRA X ANNI? | QG19: INVESTENDO UN CAPITALE ANNUALE CONOSCIUTO, CON O SENZA CAPITALE INIZIALE A UN TASSO DI RIV CONOSCIUTO CHE MONTANTE AVRO' TRA X ANNI? | QW19: INVESTENDO UN CAPITALE ANNUALE CONOSCIUTO, CON O SENZA CAPITALE INIZIALE A UN TASSO DI RIV CONOSCIUTO CHE MONTANTE AVRO' TRA X ANNI? | RM19: INVESTENDO UN CAPITALE ANNUALE CONOSCIUTO, CON O SENZA CAPITALE INIZIALE A UN TASSO DI RIV CONOSCIUTO CHE MONTANTE AVRO' TRA X ANNI? | SC19: INVESTENDO UN CAPITALE ANNUALE CONOSCIUTO, CON O SENZA CAPITALE INIZIALE A UN TASSO DI RIV CONOSCIUTO CHE MONTANTE AVRO' TRA X ANNI? | SS19: INVESTENDO UN CAPITALE ANNUALE CONOSCIUTO, CON O SENZA CAPITALE INIZIALE A UN TASSO DI RIV CONOSCIUTO CHE MONTANTE AVRO' TRA X ANNI? | TI19: INVESTENDO UN CAPITALE ANNUALE CONOSCIUTO, CON O SENZA CAPITALE INIZIALE A UN TASSO DI RIV CONOSCIUTO CHE MONTANTE AVRO' TRA X ANNI? | TY19: INVESTENDO UN CAPITALE ANNUALE CONOSCIUTO, CON O SENZA CAPITALE INIZIALE A UN TASSO DI RIV CONOSCIUTO CHE MONTANTE AVRO' TRA X ANNI? | UO19: INVESTENDO UN CAPITALE ANNUALE CONOSCIUTO, CON O SENZA CAPITALE INIZIALE A UN TASSO DI RIV CONOSCIUTO CHE MONTANTE AVRO' TRA X ANNI? | VE19: INVESTENDO UN CAPITALE ANNUALE CONOSCIUTO, CON O SENZA CAPITALE INIZIALE A UN TASSO DI RIV CONOSCIUTO CHE MONTANTE AVRO' TRA X ANNI? | VU19: INVESTENDO UN CAPITALE ANNUALE CONOSCIUTO, CON O SENZA CAPITALE INIZIALE A UN TASSO DI RIV CONOSCIUTO CHE MONTANTE AVRO' TRA X ANNI? | WK19: INVESTENDO UN CAPITALE ANNUALE CONOSCIUTO, CON O SENZA CAPITALE INIZIALE A UN TASSO DI RIV CONOSCIUTO CHE MONTANTE AVRO' TRA X ANNI? | XA19: INVESTENDO UN CAPITALE ANNUALE CONOSCIUTO, CON O SENZA CAPITALE INIZIALE A UN TASSO DI RIV CONOSCIUTO CHE MONTANTE AVRO' TRA X ANNI? | XQ19: INVESTENDO UN CAPITALE ANNUALE CONOSCIUTO, CON O SENZA CAPITALE INIZIALE A UN TASSO DI RIV CONOSCIUTO CHE MONTANTE AVRO' TRA X ANNI? | YG19: INVESTENDO UN CAPITALE ANNUALE CONOSCIUTO, CON O SENZA CAPITALE INIZIALE A UN TASSO DI RIV CONOSCIUTO CHE MONTANTE AVRO' TRA X ANNI? | YW19: INVESTENDO UN CAPITALE ANNUALE CONOSCIUTO, CON O SENZA CAPITALE INIZIALE A UN TASSO DI RIV CONOSCIUTO CHE MONTANTE AVRO' TRA X ANNI? | ZM19: INVESTENDO UN CAPITALE ANNUALE CONOSCIUTO, CON O SENZA CAPITALE INIZIALE A UN TASSO DI RIV CONOSCIUTO CHE MONTANTE AVRO' TRA X ANNI? | AAC19: INVESTENDO UN CAPITALE ANNUALE CONOSCIUTO, CON O SENZA CAPITALE INIZIALE A UN TASSO DI RIV CONOSCIUTO CHE MONTANTE AVRO' TRA X ANNI? | AAS19: INVESTENDO UN CAPITALE ANNUALE CONOSCIUTO, CON O SENZA CAPITALE INIZIALE A UN TASSO DI RIV CONOSCIUTO CHE MONTANTE AVRO' TRA X ANNI? | ABI19: INVESTENDO UN CAPITALE ANNUALE CONOSCIUTO, CON O SENZA CAPITALE INIZIALE A UN TASSO DI RIV CONOSCIUTO CHE MONTANTE AVRO' TRA X ANNI? | ABY19: INVESTENDO UN CAPITALE ANNUALE CONOSCIUTO, CON O SENZA CAPITALE INIZIALE A UN TASSO DI RIV CONOSCIUTO CHE MONTANTE AVRO' TRA X ANNI? | ACO19: INVESTENDO UN CAPITALE ANNUALE CONOSCIUTO, CON O SENZA CAPITALE INIZIALE A UN TASSO DI RIV CONOSCIUTO CHE MONTANTE AVRO' TRA X ANNI? | ADE19: INVESTENDO UN CAPITALE ANNUALE CONOSCIUTO, CON O SENZA CAPITALE INIZIALE A UN TASSO DI RIV CONOSCIUTO CHE MONTANTE AVRO' TRA X ANNI? | ADU19: INVESTENDO UN CAPITALE ANNUALE CONOSCIUTO, CON O SENZA CAPITALE INIZIALE A UN TASSO DI RIV CONOSCIUTO CHE MONTANTE AVRO' TRA X ANNI? | AEK19: INVESTENDO UN CAPITALE ANNUALE CONOSCIUTO, CON O SENZA CAPITALE INIZIALE A UN TASSO DI RIV CONOSCIUTO CHE MONTANTE AVRO' TRA X ANNI? | AFA19: INVESTENDO UN CAPITALE ANNUALE CONOSCIUTO, CON O SENZA CAPITALE INIZIALE A UN TASSO DI RIV CONOSCIUTO CHE MONTANTE AVRO' TRA X ANNI? | AFQ19: INVESTENDO UN CAPITALE ANNUALE CONOSCIUTO, CON O SENZA CAPITALE INIZIALE A UN TASSO DI RIV CONOSCIUTO CHE MONTANTE AVRO' TRA X ANNI? | AGG19: INVESTENDO UN CAPITALE ANNUALE CONOSCIUTO, CON O SENZA CAPITALE INIZIALE A UN TASSO DI RIV CONOSCIUTO CHE MONTANTE AVRO' TRA X ANNI? | AGW19: INVESTENDO UN CAPITALE ANNUALE CONOSCIUTO, CON O SENZA CAPITALE INIZIALE A UN TASSO DI RIV CONOSCIUTO CHE MONTANTE AVRO' TRA X ANNI? | AHM19: INVESTENDO UN CAPITALE ANNUALE CONOSCIUTO, CON O SENZA CAPITALE INIZIALE A UN TASSO DI RIV CONOSCIUTO CHE MONTANTE AVRO' TRA X ANNI? | AIC19: INVESTENDO UN CAPITALE ANNUALE CONOSCIUTO, CON O SENZA CAPITALE INIZIALE A UN TASSO DI RIV CONOSCIUTO CHE MONTANTE AVRO' TRA X ANNI? | AIS19: INVESTENDO UN CAPITALE ANNUALE CONOSCIUTO, CON O SENZA CAPITALE INIZIALE A UN TASSO DI RIV CONOSCIUTO CHE MONTANTE AVRO' TRA X ANNI? | AJI19: INVESTENDO UN CAPITALE ANNUALE CONOSCIUTO, CON O SENZA CAPITALE INIZIALE A UN TASSO DI RIV CONOSCIUTO CHE MONTANTE AVRO' TRA X ANNI? | AJY19: INVESTENDO UN CAPITALE ANNUALE CONOSCIUTO, CON O SENZA CAPITALE INIZIALE A UN TASSO DI RIV CONOSCIUTO CHE MONTANTE AVRO' TRA X ANNI? | AKO19: INVESTENDO UN CAPITALE ANNUALE CONOSCIUTO, CON O SENZA CAPITALE INIZIALE A UN TASSO DI RIV CONOSCIUTO CHE MONTANTE AVRO' TRA X ANNI? | ALE19: INVESTENDO UN CAPITALE ANNUALE CONOSCIUTO, CON O SENZA CAPITALE INIZIALE A UN TASSO DI RIV CONOSCIUTO CHE MONTANTE AVRO' TRA X ANNI? | ALU19: INVESTENDO UN CAPITALE ANNUALE CONOSCIUTO, CON O SENZA CAPITALE INIZIALE A UN TASSO DI RIV CONOSCIUTO CHE MONTANTE AVRO' TRA X ANNI? | AMK19: INVESTENDO UN CAPITALE ANNUALE CONOSCIUTO, CON O SENZA CAPITALE INIZIALE A UN TASSO DI RIV CONOSCIUTO CHE MONTANTE AVRO' TRA X ANNI? | ANA19: INVESTENDO UN CAPITALE ANNUALE CONOSCIUTO, CON O SENZA CAPITALE INIZIALE A UN TASSO DI RIV CONOSCIUTO CHE MONTANTE AVRO' TRA X ANNI? | ANQ19: INVESTENDO UN CAPITALE ANNUALE CONOSCIUTO, CON O SENZA CAPITALE INIZIALE A UN TASSO DI RIV CONOSCIUTO CHE MONTANTE AVRO' TRA X ANNI? | AOG19: INVESTENDO UN CAPITALE ANNUALE CONOSCIUTO, CON O SENZA CAPITALE INIZIALE A UN TASSO DI RIV CONOSCIUTO CHE MONTANTE AVRO' TRA X ANNI? | AOW19: INVESTENDO UN CAPITALE ANNUALE CONOSCIUTO, CON O SENZA CAPITALE INIZIALE A UN TASSO DI RIV CONOSCIUTO CHE MONTANTE AVRO' TRA X ANNI? | APM19: INVESTENDO UN CAPITALE ANNUALE CONOSCIUTO, CON O SENZA CAPITALE INIZIALE A UN TASSO DI RIV CONOSCIUTO CHE MONTANTE AVRO' TRA X ANNI? | AQC19: INVESTENDO UN CAPITALE ANNUALE CONOSCIUTO, CON O SENZA CAPITALE INIZIALE A UN TASSO DI RIV CONOSCIUTO CHE MONTANTE AVRO' TRA X ANNI? | AQS19: INVESTENDO UN CAPITALE ANNUALE CONOSCIUTO, CON O SENZA CAPITALE INIZIALE A UN TASSO DI RIV CONOSCIUTO CHE MONTANTE AVRO' TRA X ANNI? | ARI19: INVESTENDO UN CAPITALE ANNUALE CONOSCIUTO, CON O SENZA CAPITALE INIZIALE A UN TASSO DI RIV CONOSCIUTO CHE MONTANTE AVRO' TRA X ANNI? | ARY19: INVESTENDO UN CAPITALE ANNUALE CONOSCIUTO, CON O SENZA CAPITALE INIZIALE A UN TASSO DI RIV CONOSCIUTO CHE MONTANTE AVRO' TRA X ANNI? | ASO19: INVESTENDO UN CAPITALE ANNUALE CONOSCIUTO, CON O SENZA CAPITALE INIZIALE A UN TASSO DI RIV CONOSCIUTO CHE MONTANTE AVRO' TRA X ANNI? | ATE19: INVESTENDO UN CAPITALE ANNUALE CONOSCIUTO, CON O SENZA CAPITALE INIZIALE A UN TASSO DI RIV CONOSCIUTO CHE MONTANTE AVRO' TRA X ANNI? | ATU19: INVESTENDO UN CAPITALE ANNUALE CONOSCIUTO, CON O SENZA CAPITALE INIZIALE A UN TASSO DI RIV CONOSCIUTO CHE MONTANTE AVRO' TRA X ANNI? | AUK19: INVESTENDO UN CAPITALE ANNUALE CONOSCIUTO, CON O SENZA CAPITALE INIZIALE A UN TASSO DI RIV CONOSCIUTO CHE MONTANTE AVRO' TRA X ANNI? | AVA19: INVESTENDO UN CAPITALE ANNUALE CONOSCIUTO, CON O SENZA CAPITALE INIZIALE A UN TASSO DI RIV CONOSCIUTO CHE MONTANTE AVRO' TRA X ANNI? | AVQ19: INVESTENDO UN CAPITALE ANNUALE CONOSCIUTO, CON O SENZA CAPITALE INIZIALE A UN TASSO DI RIV CONOSCIUTO CHE MONTANTE AVRO' TRA X ANNI? | AWG19: INVESTENDO UN CAPITALE ANNUALE CONOSCIUTO, CON O SENZA CAPITALE INIZIALE A UN TASSO DI RIV CONOSCIUTO CHE MONTANTE AVRO' TRA X ANNI? | AWW19: INVESTENDO UN CAPITALE ANNUALE CONOSCIUTO, CON O SENZA CAPITALE INIZIALE A UN TASSO DI RIV CONOSCIUTO CHE MONTANTE AVRO' TRA X ANNI? | AXM19: INVESTENDO UN CAPITALE ANNUALE CONOSCIUTO, CON O SENZA CAPITALE INIZIALE A UN TASSO DI RIV CONOSCIUTO CHE MONTANTE AVRO' TRA X ANNI? | AYC19: INVESTENDO UN CAPITALE ANNUALE CONOSCIUTO, CON O SENZA CAPITALE INIZIALE A UN TASSO DI RIV CONOSCIUTO CHE MONTANTE AVRO' TRA X ANNI? | AYS19: INVESTENDO UN CAPITALE ANNUALE CONOSCIUTO, CON O SENZA CAPITALE INIZIALE A UN TASSO DI RIV CONOSCIUTO CHE MONTANTE AVRO' TRA X ANNI? | AZI19: INVESTENDO UN CAPITALE ANNUALE CONOSCIUTO, CON O SENZA CAPITALE INIZIALE A UN TASSO DI RIV CONOSCIUTO CHE MONTANTE AVRO' TRA X ANNI? | AZY19: INVESTENDO UN CAPITALE ANNUALE CONOSCIUTO, CON O SENZA CAPITALE INIZIALE A UN TASSO DI RIV CONOSCIUTO CHE MONTANTE AVRO' TRA X ANNI? | BAO19: INVESTENDO UN CAPITALE ANNUALE CONOSCIUTO, CON O SENZA CAPITALE INIZIALE A UN TASSO DI RIV CONOSCIUTO CHE MONTANTE AVRO' TRA X ANNI? | BBE19: INVESTENDO UN CAPITALE ANNUALE CONOSCIUTO, CON O SENZA CAPITALE INIZIALE A UN TASSO DI RIV CONOSCIUTO CHE MONTANTE AVRO' TRA X ANNI? | BBU19: INVESTENDO UN CAPITALE ANNUALE CONOSCIUTO, CON O SENZA CAPITALE INIZIALE A UN TASSO DI RIV CONOSCIUTO CHE MONTANTE AVRO' TRA X ANNI? | BCK19: INVESTENDO UN CAPITALE ANNUALE CONOSCIUTO, CON O SENZA CAPITALE INIZIALE A UN TASSO DI RIV CONOSCIUTO CHE MONTANTE AVRO' TRA X ANNI? | BDA19: INVESTENDO UN CAPITALE ANNUALE CONOSCIUTO, CON O SENZA CAPITALE INIZIALE A UN TASSO DI RIV CONOSCIUTO CHE MONTANTE AVRO' TRA X ANNI? | BDQ19: INVESTENDO UN CAPITALE ANNUALE CONOSCIUTO, CON O SENZA CAPITALE INIZIALE A UN TASSO DI RIV CONOSCIUTO CHE MONTANTE AVRO' TRA X ANNI? | BEG19: INVESTENDO UN CAPITALE ANNUALE CONOSCIUTO, CON O SENZA CAPITALE INIZIALE A UN TASSO DI RIV CONOSCIUTO CHE MONTANTE AVRO' TRA X ANNI? | BEW19: INVESTENDO UN CAPITALE ANNUALE CONOSCIUTO, CON O SENZA CAPITALE INIZIALE A UN TASSO DI RIV CONOSCIUTO CHE MONTANTE AVRO' TRA X ANNI? | BFM19: INVESTENDO UN CAPITALE ANNUALE CONOSCIUTO, CON O SENZA CAPITALE INIZIALE A UN TASSO DI RIV CONOSCIUTO CHE MONTANTE AVRO' TRA X ANNI? | BGC19: INVESTENDO UN CAPITALE ANNUALE CONOSCIUTO, CON O SENZA CAPITALE INIZIALE A UN TASSO DI RIV CONOSCIUTO CHE MONTANTE AVRO' TRA X ANNI? | BGS19: INVESTENDO UN CAPITALE ANNUALE CONOSCIUTO, CON O SENZA CAPITALE INIZIALE A UN TASSO DI RIV CONOSCIUTO CHE MONTANTE AVRO' TRA X ANNI? | BHI19: INVESTENDO UN CAPITALE ANNUALE CONOSCIUTO, CON O SENZA CAPITALE INIZIALE A UN TASSO DI RIV CONOSCIUTO CHE MONTANTE AVRO' TRA X ANNI? | BHY19: INVESTENDO UN CAPITALE ANNUALE CONOSCIUTO, CON O SENZA CAPITALE INIZIALE A UN TASSO DI RIV CONOSCIUTO CHE MONTANTE AVRO' TRA X ANNI? | BIO19: INVESTENDO UN CAPITALE ANNUALE CONOSCIUTO, CON O SENZA CAPITALE INIZIALE A UN TASSO DI RIV CONOSCIUTO CHE MONTANTE AVRO' TRA X ANNI? | BJE19: INVESTENDO UN CAPITALE ANNUALE CONOSCIUTO, CON O SENZA CAPITALE INIZIALE A UN TASSO DI RIV CONOSCIUTO CHE MONTANTE AVRO' TRA X ANNI? | BJU19: INVESTENDO UN CAPITALE ANNUALE CONOSCIUTO, CON O SENZA CAPITALE INIZIALE A UN TASSO DI RIV CONOSCIUTO CHE MONTANTE AVRO' TRA X ANNI? | BKK19: INVESTENDO UN CAPITALE ANNUALE CONOSCIUTO, CON O SENZA CAPITALE INIZIALE A UN TASSO DI RIV CONOSCIUTO CHE MONTANTE AVRO' TRA X ANNI? | BLA19: INVESTENDO UN CAPITALE ANNUALE CONOSCIUTO, CON O SENZA CAPITALE INIZIALE A UN TASSO DI RIV CONOSCIUTO CHE MONTANTE AVRO' TRA X ANNI? | BLQ19: INVESTENDO UN CAPITALE ANNUALE CONOSCIUTO, CON O SENZA CAPITALE INIZIALE A UN TASSO DI RIV CONOSCIUTO CHE MONTANTE AVRO' TRA X ANNI? | BMG19: INVESTENDO UN CAPITALE ANNUALE CONOSCIUTO, CON O SENZA CAPITALE INIZIALE A UN TASSO DI RIV CONOSCIUTO CHE MONTANTE AVRO' TRA X ANNI? | BMW19: INVESTENDO UN CAPITALE ANNUALE CONOSCIUTO, CON O SENZA CAPITALE INIZIALE A UN TASSO DI RIV CONOSCIUTO CHE MONTANTE AVRO' TRA X ANNI? | BNM19: INVESTENDO UN CAPITALE ANNUALE CONOSCIUTO, CON O SENZA CAPITALE INIZIALE A UN TASSO DI RIV CONOSCIUTO CHE MONTANTE AVRO' TRA X ANNI? | BOC19: INVESTENDO UN CAPITALE ANNUALE CONOSCIUTO, CON O SENZA CAPITALE INIZIALE A UN TASSO DI RIV CONOSCIUTO CHE MONTANTE AVRO' TRA X ANNI? | BOS19: INVESTENDO UN CAPITALE ANNUALE CONOSCIUTO, CON O SENZA CAPITALE INIZIALE A UN TASSO DI RIV CONOSCIUTO CHE MONTANTE AVRO' TRA X ANNI? | BPI19: INVESTENDO UN CAPITALE ANNUALE CONOSCIUTO, CON O SENZA CAPITALE INIZIALE A UN TASSO DI RIV CONOSCIUTO CHE MONTANTE AVRO' TRA X ANNI? | BPY19: INVESTENDO UN CAPITALE ANNUALE CONOSCIUTO, CON O SENZA CAPITALE INIZIALE A UN TASSO DI RIV CONOSCIUTO CHE MONTANTE AVRO' TRA X ANNI? | BQO19: INVESTENDO UN CAPITALE ANNUALE CONOSCIUTO, CON O SENZA CAPITALE INIZIALE A UN TASSO DI RIV CONOSCIUTO CHE MONTANTE AVRO' TRA X ANNI? | BRE19: INVESTENDO UN CAPITALE ANNUALE CONOSCIUTO, CON O SENZA CAPITALE INIZIALE A UN TASSO DI RIV CONOSCIUTO CHE MONTANTE AVRO' TRA X ANNI? | BRU19: INVESTENDO UN CAPITALE ANNUALE CONOSCIUTO, CON O SENZA CAPITALE INIZIALE A UN TASSO DI RIV CONOSCIUTO CHE MONTANTE AVRO' TRA X ANNI? | BSK19: INVESTENDO UN CAPITALE ANNUALE CONOSCIUTO, CON O SENZA CAPITALE INIZIALE A UN TASSO DI RIV CONOSCIUTO CHE MONTANTE AVRO' TRA X ANNI? | BTA19: INVESTENDO UN CAPITALE ANNUALE CONOSCIUTO, CON O SENZA CAPITALE INIZIALE A UN TASSO DI RIV CONOSCIUTO CHE MONTANTE AVRO' TRA X ANNI? | BTQ19: INVESTENDO UN CAPITALE ANNUALE CONOSCIUTO, CON O SENZA CAPITALE INIZIALE A UN TASSO DI RIV CONOSCIUTO CHE MONTANTE AVRO' TRA X ANNI? | BUG19: INVESTENDO UN CAPITALE ANNUALE CONOSCIUTO, CON O SENZA CAPITALE INIZIALE A UN TASSO DI RIV CONOSCIUTO CHE MONTANTE AVRO' TRA X ANNI? | BUW19: INVESTENDO UN CAPITALE ANNUALE CONOSCIUTO, CON O SENZA CAPITALE INIZIALE A UN TASSO DI RIV CONOSCIUTO CHE MONTANTE AVRO' TRA X ANNI? | BVM19: INVESTENDO UN CAPITALE ANNUALE CONOSCIUTO, CON O SENZA CAPITALE INIZIALE A UN TASSO DI RIV CONOSCIUTO CHE MONTANTE AVRO' TRA X ANNI? | BWC19: INVESTENDO UN CAPITALE ANNUALE CONOSCIUTO, CON O SENZA CAPITALE INIZIALE A UN TASSO DI RIV CONOSCIUTO CHE MONTANTE AVRO' TRA X ANNI? | BWS19: INVESTENDO UN CAPITALE ANNUALE CONOSCIUTO, CON O SENZA CAPITALE INIZIALE A UN TASSO DI RIV CONOSCIUTO CHE MONTANTE AVRO' TRA X ANNI? | BXI19: INVESTENDO UN CAPITALE ANNUALE CONOSCIUTO, CON O SENZA CAPITALE INIZIALE A UN TASSO DI RIV CONOSCIUTO CHE MONTANTE AVRO' TRA X ANNI? | BXY19: INVESTENDO UN CAPITALE ANNUALE CONOSCIUTO, CON O SENZA CAPITALE INIZIALE A UN TASSO DI RIV CONOSCIUTO CHE MONTANTE AVRO' TRA X ANNI? | BYO19: INVESTENDO UN CAPITALE ANNUALE CONOSCIUTO, CON O SENZA CAPITALE INIZIALE A UN TASSO DI RIV CONOSCIUTO CHE MONTANTE AVRO' TRA X ANNI? | BZE19: INVESTENDO UN CAPITALE ANNUALE CONOSCIUTO, CON O SENZA CAPITALE INIZIALE A UN TASSO DI RIV CONOSCIUTO CHE MONTANTE AVRO' TRA X ANNI? | BZU19: INVESTENDO UN CAPITALE ANNUALE CONOSCIUTO, CON O SENZA CAPITALE INIZIALE A UN TASSO DI RIV CONOSCIUTO CHE MONTANTE AVRO' TRA X ANNI? | CAK19: INVESTENDO UN CAPITALE ANNUALE CONOSCIUTO, CON O SENZA CAPITALE INIZIALE A UN TASSO DI RIV CONOSCIUTO CHE MONTANTE AVRO' TRA X ANNI? | CBA19: INVESTENDO UN CAPITALE ANNUALE CONOSCIUTO, CON O SENZA CAPITALE INIZIALE A UN TASSO DI RIV CONOSCIUTO CHE MONTANTE AVRO' TRA X ANNI? | CBQ19: INVESTENDO UN CAPITALE ANNUALE CONOSCIUTO, CON O SENZA CAPITALE INIZIALE A UN TASSO DI RIV CONOSCIUTO CHE MONTANTE AVRO' TRA X ANNI? | CCG19: INVESTENDO UN CAPITALE ANNUALE CONOSCIUTO, CON O SENZA CAPITALE INIZIALE A UN TASSO DI RIV CONOSCIUTO CHE MONTANTE AVRO' TRA X ANNI? | CCW19: INVESTENDO UN CAPITALE ANNUALE CONOSCIUTO, CON O SENZA CAPITALE INIZIALE A UN TASSO DI RIV CONOSCIUTO CHE MONTANTE AVRO' TRA X ANNI? | CDM19: INVESTENDO UN CAPITALE ANNUALE CONOSCIUTO, CON O SENZA CAPITALE INIZIALE A UN TASSO DI RIV CONOSCIUTO CHE MONTANTE AVRO' TRA X ANNI? | CEC19: INVESTENDO UN CAPITALE ANNUALE CONOSCIUTO, CON O SENZA CAPITALE INIZIALE A UN TASSO DI RIV CONOSCIUTO CHE MONTANTE AVRO' TRA X ANNI? | CES19: INVESTENDO UN CAPITALE ANNUALE CONOSCIUTO, CON O SENZA CAPITALE INIZIALE A UN TASSO DI RIV CONOSCIUTO CHE MONTANTE AVRO' TRA X ANNI? | CFI19: INVESTENDO UN CAPITALE ANNUALE CONOSCIUTO, CON O SENZA CAPITALE INIZIALE A UN TASSO DI RIV CONOSCIUTO CHE MONTANTE AVRO' TRA X ANNI? | CFY19: INVESTENDO UN CAPITALE ANNUALE CONOSCIUTO, CON O SENZA CAPITALE INIZIALE A UN TASSO DI RIV CONOSCIUTO CHE MONTANTE AVRO' TRA X ANNI? | CGO19: INVESTENDO UN CAPITALE ANNUALE CONOSCIUTO, CON O SENZA CAPITALE INIZIALE A UN TASSO DI RIV CONOSCIUTO CHE MONTANTE AVRO' TRA X ANNI? | CHE19: INVESTENDO UN CAPITALE ANNUALE CONOSCIUTO, CON O SENZA CAPITALE INIZIALE A UN TASSO DI RIV CONOSCIUTO CHE MONTANTE AVRO' TRA X ANNI? | CHU19: INVESTENDO UN CAPITALE ANNUALE CONOSCIUTO, CON O SENZA CAPITALE INIZIALE A UN TASSO DI RIV CONOSCIUTO CHE MONTANTE AVRO' TRA X ANNI? | CIK19: INVESTENDO UN CAPITALE ANNUALE CONOSCIUTO, CON O SENZA CAPITALE INIZIALE A UN TASSO DI RIV CONOSCIUTO CHE MONTANTE AVRO' TRA X ANNI? | CJA19: INVESTENDO UN CAPITALE ANNUALE CONOSCIUTO, CON O SENZA CAPITALE INIZIALE A UN TASSO DI RIV CONOSCIUTO CHE MONTANTE AVRO' TRA X ANNI? | CJQ19: INVESTENDO UN CAPITALE ANNUALE CONOSCIUTO, CON O SENZA CAPITALE INIZIALE A UN TASSO DI RIV CONOSCIUTO CHE MONTANTE AVRO' TRA X ANNI? | CKG19: INVESTENDO UN CAPITALE ANNUALE CONOSCIUTO, CON O SENZA CAPITALE INIZIALE A UN TASSO DI RIV CONOSCIUTO CHE MONTANTE AVRO' TRA X ANNI? | CKW19: INVESTENDO UN CAPITALE ANNUALE CONOSCIUTO, CON O SENZA CAPITALE INIZIALE A UN TASSO DI RIV CONOSCIUTO CHE MONTANTE AVRO' TRA X ANNI? | CLM19: INVESTENDO UN CAPITALE ANNUALE CONOSCIUTO, CON O SENZA CAPITALE INIZIALE A UN TASSO DI RIV CONOSCIUTO CHE MONTANTE AVRO' TRA X ANNI? | CMC19: INVESTENDO UN CAPITALE ANNUALE CONOSCIUTO, CON O SENZA CAPITALE INIZIALE A UN TASSO DI RIV CONOSCIUTO CHE MONTANTE AVRO' TRA X ANNI? | CMS19: INVESTENDO UN CAPITALE ANNUALE CONOSCIUTO, CON O SENZA CAPITALE INIZIALE A UN TASSO DI RIV CONOSCIUTO CHE MONTANTE AVRO' TRA X ANNI? | CNI19: INVESTENDO UN CAPITALE ANNUALE CONOSCIUTO, CON O SENZA CAPITALE INIZIALE A UN TASSO DI RIV CONOSCIUTO CHE MONTANTE AVRO' TRA X ANNI? | CNY19: INVESTENDO UN CAPITALE ANNUALE CONOSCIUTO, CON O SENZA CAPITALE INIZIALE A UN TASSO DI RIV CONOSCIUTO CHE MONTANTE AVRO' TRA X ANNI? | COO19: INVESTENDO UN CAPITALE ANNUALE CONOSCIUTO, CON O SENZA CAPITALE INIZIALE A UN TASSO DI RIV CONOSCIUTO CHE MONTANTE AVRO' TRA X ANNI? | CPE19: INVESTENDO UN CAPITALE ANNUALE CONOSCIUTO, CON O SENZA CAPITALE INIZIALE A UN TASSO DI RIV CONOSCIUTO CHE MONTANTE AVRO' TRA X ANNI? | CPU19: INVESTENDO UN CAPITALE ANNUALE CONOSCIUTO, CON O SENZA CAPITALE INIZIALE A UN TASSO DI RIV CONOSCIUTO CHE MONTANTE AVRO' TRA X ANNI? | CQK19: INVESTENDO UN CAPITALE ANNUALE CONOSCIUTO, CON O SENZA CAPITALE INIZIALE A UN TASSO DI RIV CONOSCIUTO CHE MONTANTE AVRO' TRA X ANNI? | CRA19: INVESTENDO UN CAPITALE ANNUALE CONOSCIUTO, CON O SENZA CAPITALE INIZIALE A UN TASSO DI RIV CONOSCIUTO CHE MONTANTE AVRO' TRA X ANNI? | CRQ19: INVESTENDO UN CAPITALE ANNUALE CONOSCIUTO, CON O SENZA CAPITALE INIZIALE A UN TASSO DI RIV CONOSCIUTO CHE MONTANTE AVRO' TRA X ANNI? | CSG19: INVESTENDO UN CAPITALE ANNUALE CONOSCIUTO, CON O SENZA CAPITALE INIZIALE A UN TASSO DI RIV CONOSCIUTO CHE MONTANTE AVRO' TRA X ANNI? | CSW19: INVESTENDO UN CAPITALE ANNUALE CONOSCIUTO, CON O SENZA CAPITALE INIZIALE A UN TASSO DI RIV CONOSCIUTO CHE MONTANTE AVRO' TRA X ANNI? | CTM19: INVESTENDO UN CAPITALE ANNUALE CONOSCIUTO, CON O SENZA CAPITALE INIZIALE A UN TASSO DI RIV CONOSCIUTO CHE MONTANTE AVRO' TRA X ANNI? | CUC19: INVESTENDO UN CAPITALE ANNUALE CONOSCIUTO, CON O SENZA CAPITALE INIZIALE A UN TASSO DI RIV CONOSCIUTO CHE MONTANTE AVRO' TRA X ANNI? | CUS19: INVESTENDO UN CAPITALE ANNUALE CONOSCIUTO, CON O SENZA CAPITALE INIZIALE A UN TASSO DI RIV CONOSCIUTO CHE MONTANTE AVRO' TRA X ANNI? | CVI19: INVESTENDO UN CAPITALE ANNUALE CONOSCIUTO, CON O SENZA CAPITALE INIZIALE A UN TASSO DI RIV CONOSCIUTO CHE MONTANTE AVRO' TRA X ANNI? | CVY19: INVESTENDO UN CAPITALE ANNUALE CONOSCIUTO, CON O SENZA CAPITALE INIZIALE A UN TASSO DI RIV CONOSCIUTO CHE MONTANTE AVRO' TRA X ANNI? | CWO19: INVESTENDO UN CAPITALE ANNUALE CONOSCIUTO, CON O SENZA CAPITALE INIZIALE A UN TASSO DI RIV CONOSCIUTO CHE MONTANTE AVRO' TRA X ANNI? | CXE19: INVESTENDO UN CAPITALE ANNUALE CONOSCIUTO, CON O SENZA CAPITALE INIZIALE A UN TASSO DI RIV CONOSCIUTO CHE MONTANTE AVRO' TRA X ANNI? | CXU19: INVESTENDO UN CAPITALE ANNUALE CONOSCIUTO, CON O SENZA CAPITALE INIZIALE A UN TASSO DI RIV CONOSCIUTO CHE MONTANTE AVRO' TRA X ANNI? | CYK19: INVESTENDO UN CAPITALE ANNUALE CONOSCIUTO, CON O SENZA CAPITALE INIZIALE A UN TASSO DI RIV CONOSCIUTO CHE MONTANTE AVRO' TRA X ANNI? | CZA19: INVESTENDO UN CAPITALE ANNUALE CONOSCIUTO, CON O SENZA CAPITALE INIZIALE A UN TASSO DI RIV CONOSCIUTO CHE MONTANTE AVRO' TRA X ANNI? | CZQ19: INVESTENDO UN CAPITALE ANNUALE CONOSCIUTO, CON O SENZA CAPITALE INIZIALE A UN TASSO DI RIV CONOSCIUTO CHE MONTANTE AVRO' TRA X ANNI? | DAG19: INVESTENDO UN CAPITALE ANNUALE CONOSCIUTO, CON O SENZA CAPITALE INIZIALE A UN TASSO DI RIV CONOSCIUTO CHE MONTANTE AVRO' TRA X ANNI? | DAW19: INVESTENDO UN CAPITALE ANNUALE CONOSCIUTO, CON O SENZA CAPITALE INIZIALE A UN TASSO DI RIV CONOSCIUTO CHE MONTANTE AVRO' TRA X ANNI? | DBM19: INVESTENDO UN CAPITALE ANNUALE CONOSCIUTO, CON O SENZA CAPITALE INIZIALE A UN TASSO DI RIV CONOSCIUTO CHE MONTANTE AVRO' TRA X ANNI? | DCC19: INVESTENDO UN CAPITALE ANNUALE CONOSCIUTO, CON O SENZA CAPITALE INIZIALE A UN TASSO DI RIV CONOSCIUTO CHE MONTANTE AVRO' TRA X ANNI? | DCS19: INVESTENDO UN CAPITALE ANNUALE CONOSCIUTO, CON O SENZA CAPITALE INIZIALE A UN TASSO DI RIV CONOSCIUTO CHE MONTANTE AVRO' TRA X ANNI? | DDI19: INVESTENDO UN CAPITALE ANNUALE CONOSCIUTO, CON O SENZA CAPITALE INIZIALE A UN TASSO DI RIV CONOSCIUTO CHE MONTANTE AVRO' TRA X ANNI? | DDY19: INVESTENDO UN CAPITALE ANNUALE CONOSCIUTO, CON O SENZA CAPITALE INIZIALE A UN TASSO DI RIV CONOSCIUTO CHE MONTANTE AVRO' TRA X ANNI? | DEO19: INVESTENDO UN CAPITALE ANNUALE CONOSCIUTO, CON O SENZA CAPITALE INIZIALE A UN TASSO DI RIV CONOSCIUTO CHE MONTANTE AVRO' TRA X ANNI? | DFE19: INVESTENDO UN CAPITALE ANNUALE CONOSCIUTO, CON O SENZA CAPITALE INIZIALE A UN TASSO DI RIV CONOSCIUTO CHE MONTANTE AVRO' TRA X ANNI? | DFU19: INVESTENDO UN CAPITALE ANNUALE CONOSCIUTO, CON O SENZA CAPITALE INIZIALE A UN TASSO DI RIV CONOSCIUTO CHE MONTANTE AVRO' TRA X ANNI? | DGK19: INVESTENDO UN CAPITALE ANNUALE CONOSCIUTO, CON O SENZA CAPITALE INIZIALE A UN TASSO DI RIV CONOSCIUTO CHE MONTANTE AVRO' TRA X ANNI? | DHA19: INVESTENDO UN CAPITALE ANNUALE CONOSCIUTO, CON O SENZA CAPITALE INIZIALE A UN TASSO DI RIV CONOSCIUTO CHE MONTANTE AVRO' TRA X ANNI? | DHQ19: INVESTENDO UN CAPITALE ANNUALE CONOSCIUTO, CON O SENZA CAPITALE INIZIALE A UN TASSO DI RIV CONOSCIUTO CHE MONTANTE AVRO' TRA X ANNI? | DIG19: INVESTENDO UN CAPITALE ANNUALE CONOSCIUTO, CON O SENZA CAPITALE INIZIALE A UN TASSO DI RIV CONOSCIUTO CHE MONTANTE AVRO' TRA X ANNI? | DIW19: INVESTENDO UN CAPITALE ANNUALE CONOSCIUTO, CON O SENZA CAPITALE INIZIALE A UN TASSO DI RIV CONOSCIUTO CHE MONTANTE AVRO' TRA X ANNI? | DJM19: INVESTENDO UN CAPITALE ANNUALE CONOSCIUTO, CON O SENZA CAPITALE INIZIALE A UN TASSO DI RIV CONOSCIUTO CHE MONTANTE AVRO' TRA X ANNI? | DKC19: INVESTENDO UN CAPITALE ANNUALE CONOSCIUTO, CON O SENZA CAPITALE INIZIALE A UN TASSO DI RIV CONOSCIUTO CHE MONTANTE AVRO' TRA X ANNI? | DKS19: INVESTENDO UN CAPITALE ANNUALE CONOSCIUTO, CON O SENZA CAPITALE INIZIALE A UN TASSO DI RIV CONOSCIUTO CHE MONTANTE AVRO' TRA X ANNI? | DLI19: INVESTENDO UN CAPITALE ANNUALE CONOSCIUTO, CON O SENZA CAPITALE INIZIALE A UN TASSO DI RIV CONOSCIUTO CHE MONTANTE AVRO' TRA X ANNI? | DLY19: INVESTENDO UN CAPITALE ANNUALE CONOSCIUTO, CON O SENZA CAPITALE INIZIALE A UN TASSO DI RIV CONOSCIUTO CHE MONTANTE AVRO' TRA X ANNI? | DMO19: INVESTENDO UN CAPITALE ANNUALE CONOSCIUTO, CON O SENZA CAPITALE INIZIALE A UN TASSO DI RIV CONOSCIUTO CHE MONTANTE AVRO' TRA X ANNI? | DNE19: INVESTENDO UN CAPITALE ANNUALE CONOSCIUTO, CON O SENZA CAPITALE INIZIALE A UN TASSO DI RIV CONOSCIUTO CHE MONTANTE AVRO' TRA X ANNI? | DNU19: INVESTENDO UN CAPITALE ANNUALE CONOSCIUTO, CON O SENZA CAPITALE INIZIALE A UN TASSO DI RIV CONOSCIUTO CHE MONTANTE AVRO' TRA X ANNI? | DOK19: INVESTENDO UN CAPITALE ANNUALE CONOSCIUTO, CON O SENZA CAPITALE INIZIALE A UN TASSO DI RIV CONOSCIUTO CHE MONTANTE AVRO' TRA X ANNI? | DPA19: INVESTENDO UN CAPITALE ANNUALE CONOSCIUTO, CON O SENZA CAPITALE INIZIALE A UN TASSO DI RIV CONOSCIUTO CHE MONTANTE AVRO' TRA X ANNI? | DPQ19: INVESTENDO UN CAPITALE ANNUALE CONOSCIUTO, CON O SENZA CAPITALE INIZIALE A UN TASSO DI RIV CONOSCIUTO CHE MONTANTE AVRO' TRA X ANNI? | DQG19: INVESTENDO UN CAPITALE ANNUALE CONOSCIUTO, CON O SENZA CAPITALE INIZIALE A UN TASSO DI RIV CONOSCIUTO CHE MONTANTE AVRO' TRA X ANNI? | DQW19: INVESTENDO UN CAPITALE ANNUALE CONOSCIUTO, CON O SENZA CAPITALE INIZIALE A UN TASSO DI RIV CONOSCIUTO CHE MONTANTE AVRO' TRA X ANNI? | DRM19: INVESTENDO UN CAPITALE ANNUALE CONOSCIUTO, CON O SENZA CAPITALE INIZIALE A UN TASSO DI RIV CONOSCIUTO CHE MONTANTE AVRO' TRA X ANNI? | DSC19: INVESTENDO UN CAPITALE ANNUALE CONOSCIUTO, CON O SENZA CAPITALE INIZIALE A UN TASSO DI RIV CONOSCIUTO CHE MONTANTE AVRO' TRA X ANNI? | DSS19: INVESTENDO UN CAPITALE ANNUALE CONOSCIUTO, CON O SENZA CAPITALE INIZIALE A UN TASSO DI RIV CONOSCIUTO CHE MONTANTE AVRO' TRA X ANNI? | DTI19: INVESTENDO UN CAPITALE ANNUALE CONOSCIUTO, CON O SENZA CAPITALE INIZIALE A UN TASSO DI RIV CONOSCIUTO CHE MONTANTE AVRO' TRA X ANNI? | DTY19: INVESTENDO UN CAPITALE ANNUALE CONOSCIUTO, CON O SENZA CAPITALE INIZIALE A UN TASSO DI RIV CONOSCIUTO CHE MONTANTE AVRO' TRA X ANNI? | DUO19: INVESTENDO UN CAPITALE ANNUALE CONOSCIUTO, CON O SENZA CAPITALE INIZIALE A UN TASSO DI RIV CONOSCIUTO CHE MONTANTE AVRO' TRA X ANNI? | DVE19: INVESTENDO UN CAPITALE ANNUALE CONOSCIUTO, CON O SENZA CAPITALE INIZIALE A UN TASSO DI RIV CONOSCIUTO CHE MONTANTE AVRO' TRA X ANNI? | DVU19: INVESTENDO UN CAPITALE ANNUALE CONOSCIUTO, CON O SENZA CAPITALE INIZIALE A UN TASSO DI RIV CONOSCIUTO CHE MONTANTE AVRO' TRA X ANNI? | DWK19: INVESTENDO UN CAPITALE ANNUALE CONOSCIUTO, CON O SENZA CAPITALE INIZIALE A UN TASSO DI RIV CONOSCIUTO CHE MONTANTE AVRO' TRA X ANNI? | DXA19: INVESTENDO UN CAPITALE ANNUALE CONOSCIUTO, CON O SENZA CAPITALE INIZIALE A UN TASSO DI RIV CONOSCIUTO CHE MONTANTE AVRO' TRA X ANNI? | DXQ19: INVESTENDO UN CAPITALE ANNUALE CONOSCIUTO, CON O SENZA CAPITALE INIZIALE A UN TASSO DI RIV CONOSCIUTO CHE MONTANTE AVRO' TRA X ANNI? | DYG19: INVESTENDO UN CAPITALE ANNUALE CONOSCIUTO, CON O SENZA CAPITALE INIZIALE A UN TASSO DI RIV CONOSCIUTO CHE MONTANTE AVRO' TRA X ANNI? | DYW19: INVESTENDO UN CAPITALE ANNUALE CONOSCIUTO, CON O SENZA CAPITALE INIZIALE A UN TASSO DI RIV CONOSCIUTO CHE MONTANTE AVRO' TRA X ANNI? | DZM19: INVESTENDO UN CAPITALE ANNUALE CONOSCIUTO, CON O SENZA CAPITALE INIZIALE A UN TASSO DI RIV CONOSCIUTO CHE MONTANTE AVRO' TRA X ANNI? | EAC19: INVESTENDO UN CAPITALE ANNUALE CONOSCIUTO, CON O SENZA CAPITALE INIZIALE A UN TASSO DI RIV CONOSCIUTO CHE MONTANTE AVRO' TRA X ANNI? | EAS19: INVESTENDO UN CAPITALE ANNUALE CONOSCIUTO, CON O SENZA CAPITALE INIZIALE A UN TASSO DI RIV CONOSCIUTO CHE MONTANTE AVRO' TRA X ANNI? | EBI19: INVESTENDO UN CAPITALE ANNUALE CONOSCIUTO, CON O SENZA CAPITALE INIZIALE A UN TASSO DI RIV CONOSCIUTO CHE MONTANTE AVRO' TRA X ANNI? | EBY19: INVESTENDO UN CAPITALE ANNUALE CONOSCIUTO, CON O SENZA CAPITALE INIZIALE A UN TASSO DI RIV CONOSCIUTO CHE MONTANTE AVRO' TRA X ANNI? | ECO19: INVESTENDO UN CAPITALE ANNUALE CONOSCIUTO, CON O SENZA CAPITALE INIZIALE A UN TASSO DI RIV CONOSCIUTO CHE MONTANTE AVRO' TRA X ANNI? | EDE19: INVESTENDO UN CAPITALE ANNUALE CONOSCIUTO, CON O SENZA CAPITALE INIZIALE A UN TASSO DI RIV CONOSCIUTO CHE MONTANTE AVRO' TRA X ANNI? | EDU19: INVESTENDO UN CAPITALE ANNUALE CONOSCIUTO, CON O SENZA CAPITALE INIZIALE A UN TASSO DI RIV CONOSCIUTO CHE MONTANTE AVRO' TRA X ANNI? | EEK19: INVESTENDO UN CAPITALE ANNUALE CONOSCIUTO, CON O SENZA CAPITALE INIZIALE A UN TASSO DI RIV CONOSCIUTO CHE MONTANTE AVRO' TRA X ANNI? | EFA19: INVESTENDO UN CAPITALE ANNUALE CONOSCIUTO, CON O SENZA CAPITALE INIZIALE A UN TASSO DI RIV CONOSCIUTO CHE MONTANTE AVRO' TRA X ANNI? | EFQ19: INVESTENDO UN CAPITALE ANNUALE CONOSCIUTO, CON O SENZA CAPITALE INIZIALE A UN TASSO DI RIV CONOSCIUTO CHE MONTANTE AVRO' TRA X ANNI? | EGG19: INVESTENDO UN CAPITALE ANNUALE CONOSCIUTO, CON O SENZA CAPITALE INIZIALE A UN TASSO DI RIV CONOSCIUTO CHE MONTANTE AVRO' TRA X ANNI? | EGW19: INVESTENDO UN CAPITALE ANNUALE CONOSCIUTO, CON O SENZA CAPITALE INIZIALE A UN TASSO DI RIV CONOSCIUTO CHE MONTANTE AVRO' TRA X ANNI? | EHM19: INVESTENDO UN CAPITALE ANNUALE CONOSCIUTO, CON O SENZA CAPITALE INIZIALE A UN TASSO DI RIV CONOSCIUTO CHE MONTANTE AVRO' TRA X ANNI? | EIC19: INVESTENDO UN CAPITALE ANNUALE CONOSCIUTO, CON O SENZA CAPITALE INIZIALE A UN TASSO DI RIV CONOSCIUTO CHE MONTANTE AVRO' TRA X ANNI? | EIS19: INVESTENDO UN CAPITALE ANNUALE CONOSCIUTO, CON O SENZA CAPITALE INIZIALE A UN TASSO DI RIV CONOSCIUTO CHE MONTANTE AVRO' TRA X ANNI? | EJI19: INVESTENDO UN CAPITALE ANNUALE CONOSCIUTO, CON O SENZA CAPITALE INIZIALE A UN TASSO DI RIV CONOSCIUTO CHE MONTANTE AVRO' TRA X ANNI? | EJY19: INVESTENDO UN CAPITALE ANNUALE CONOSCIUTO, CON O SENZA CAPITALE INIZIALE A UN TASSO DI RIV CONOSCIUTO CHE MONTANTE AVRO' TRA X ANNI? | EKO19: INVESTENDO UN CAPITALE ANNUALE CONOSCIUTO, CON O SENZA CAPITALE INIZIALE A UN TASSO DI RIV CONOSCIUTO CHE MONTANTE AVRO' TRA X ANNI? | ELE19: INVESTENDO UN CAPITALE ANNUALE CONOSCIUTO, CON O SENZA CAPITALE INIZIALE A UN TASSO DI RIV CONOSCIUTO CHE MONTANTE AVRO' TRA X ANNI? | ELU19: INVESTENDO UN CAPITALE ANNUALE CONOSCIUTO, CON O SENZA CAPITALE INIZIALE A UN TASSO DI RIV CONOSCIUTO CHE MONTANTE AVRO' TRA X ANNI? | EMK19: INVESTENDO UN CAPITALE ANNUALE CONOSCIUTO, CON O SENZA CAPITALE INIZIALE A UN TASSO DI RIV CONOSCIUTO CHE MONTANTE AVRO' TRA X ANNI? | ENA19: INVESTENDO UN CAPITALE ANNUALE CONOSCIUTO, CON O SENZA CAPITALE INIZIALE A UN TASSO DI RIV CONOSCIUTO CHE MONTANTE AVRO' TRA X ANNI? | ENQ19: INVESTENDO UN CAPITALE ANNUALE CONOSCIUTO, CON O SENZA CAPITALE INIZIALE A UN TASSO DI RIV CONOSCIUTO CHE MONTANTE AVRO' TRA X ANNI? | EOG19: INVESTENDO UN CAPITALE ANNUALE CONOSCIUTO, CON O SENZA CAPITALE INIZIALE A UN TASSO DI RIV CONOSCIUTO CHE MONTANTE AVRO' TRA X ANNI? | EOW19: INVESTENDO UN CAPITALE ANNUALE CONOSCIUTO, CON O SENZA CAPITALE INIZIALE A UN TASSO DI RIV CONOSCIUTO CHE MONTANTE AVRO' TRA X ANNI? | EPM19: INVESTENDO UN CAPITALE ANNUALE CONOSCIUTO, CON O SENZA CAPITALE INIZIALE A UN TASSO DI RIV CONOSCIUTO CHE MONTANTE AVRO' TRA X ANNI? | EQC19: INVESTENDO UN CAPITALE ANNUALE CONOSCIUTO, CON O SENZA CAPITALE INIZIALE A UN TASSO DI RIV CONOSCIUTO CHE MONTANTE AVRO' TRA X ANNI? | EQS19: INVESTENDO UN CAPITALE ANNUALE CONOSCIUTO, CON O SENZA CAPITALE INIZIALE A UN TASSO DI RIV CONOSCIUTO CHE MONTANTE AVRO' TRA X ANNI? | ERI19: INVESTENDO UN CAPITALE ANNUALE CONOSCIUTO, CON O SENZA CAPITALE INIZIALE A UN TASSO DI RIV CONOSCIUTO CHE MONTANTE AVRO' TRA X ANNI? | ERY19: INVESTENDO UN CAPITALE ANNUALE CONOSCIUTO, CON O SENZA CAPITALE INIZIALE A UN TASSO DI RIV CONOSCIUTO CHE MONTANTE AVRO' TRA X ANNI? | ESO19: INVESTENDO UN CAPITALE ANNUALE CONOSCIUTO, CON O SENZA CAPITALE INIZIALE A UN TASSO DI RIV CONOSCIUTO CHE MONTANTE AVRO' TRA X ANNI? | ETE19: INVESTENDO UN CAPITALE ANNUALE CONOSCIUTO, CON O SENZA CAPITALE INIZIALE A UN TASSO DI RIV CONOSCIUTO CHE MONTANTE AVRO' TRA X ANNI? | ETU19: INVESTENDO UN CAPITALE ANNUALE CONOSCIUTO, CON O SENZA CAPITALE INIZIALE A UN TASSO DI RIV CONOSCIUTO CHE MONTANTE AVRO' TRA X ANNI? | EUK19: INVESTENDO UN CAPITALE ANNUALE CONOSCIUTO, CON O SENZA CAPITALE INIZIALE A UN TASSO DI RIV CONOSCIUTO CHE MONTANTE AVRO' TRA X ANNI? | EVA19: INVESTENDO UN CAPITALE ANNUALE CONOSCIUTO, CON O SENZA CAPITALE INIZIALE A UN TASSO DI RIV CONOSCIUTO CHE MONTANTE AVRO' TRA X ANNI? | EVQ19: INVESTENDO UN CAPITALE ANNUALE CONOSCIUTO, CON O SENZA CAPITALE INIZIALE A UN TASSO DI RIV CONOSCIUTO CHE MONTANTE AVRO' TRA X ANNI? | EWG19: INVESTENDO UN CAPITALE ANNUALE CONOSCIUTO, CON O SENZA CAPITALE INIZIALE A UN TASSO DI RIV CONOSCIUTO CHE MONTANTE AVRO' TRA X ANNI? | EWW19: INVESTENDO UN CAPITALE ANNUALE CONOSCIUTO, CON O SENZA CAPITALE INIZIALE A UN TASSO DI RIV CONOSCIUTO CHE MONTANTE AVRO' TRA X ANNI? | EXM19: INVESTENDO UN CAPITALE ANNUALE CONOSCIUTO, CON O SENZA CAPITALE INIZIALE A UN TASSO DI RIV CONOSCIUTO CHE MONTANTE AVRO' TRA X ANNI? | EYC19: INVESTENDO UN CAPITALE ANNUALE CONOSCIUTO, CON O SENZA CAPITALE INIZIALE A UN TASSO DI RIV CONOSCIUTO CHE MONTANTE AVRO' TRA X ANNI? | EYS19: INVESTENDO UN CAPITALE ANNUALE CONOSCIUTO, CON O SENZA CAPITALE INIZIALE A UN TASSO DI RIV CONOSCIUTO CHE MONTANTE AVRO' TRA X ANNI? | EZI19: INVESTENDO UN CAPITALE ANNUALE CONOSCIUTO, CON O SENZA CAPITALE INIZIALE A UN TASSO DI RIV CONOSCIUTO CHE MONTANTE AVRO' TRA X ANNI? | EZY19: INVESTENDO UN CAPITALE ANNUALE CONOSCIUTO, CON O SENZA CAPITALE INIZIALE A UN TASSO DI RIV CONOSCIUTO CHE MONTANTE AVRO' TRA X ANNI? | FAO19: INVESTENDO UN CAPITALE ANNUALE CONOSCIUTO, CON O SENZA CAPITALE INIZIALE A UN TASSO DI RIV CONOSCIUTO CHE MONTANTE AVRO' TRA X ANNI? | FBE19: INVESTENDO UN CAPITALE ANNUALE CONOSCIUTO, CON O SENZA CAPITALE INIZIALE A UN TASSO DI RIV CONOSCIUTO CHE MONTANTE AVRO' TRA X ANNI? | FBU19: INVESTENDO UN CAPITALE ANNUALE CONOSCIUTO, CON O SENZA CAPITALE INIZIALE A UN TASSO DI RIV CONOSCIUTO CHE MONTANTE AVRO' TRA X ANNI? | FCK19: INVESTENDO UN CAPITALE ANNUALE CONOSCIUTO, CON O SENZA CAPITALE INIZIALE A UN TASSO DI RIV CONOSCIUTO CHE MONTANTE AVRO' TRA X ANNI? | FDA19: INVESTENDO UN CAPITALE ANNUALE CONOSCIUTO, CON O SENZA CAPITALE INIZIALE A UN TASSO DI RIV CONOSCIUTO CHE MONTANTE AVRO' TRA X ANNI? | FDQ19: INVESTENDO UN CAPITALE ANNUALE CONOSCIUTO, CON O SENZA CAPITALE INIZIALE A UN TASSO DI RIV CONOSCIUTO CHE MONTANTE AVRO' TRA X ANNI? | FEG19: INVESTENDO UN CAPITALE ANNUALE CONOSCIUTO, CON O SENZA CAPITALE INIZIALE A UN TASSO DI RIV CONOSCIUTO CHE MONTANTE AVRO' TRA X ANNI? | FEW19: INVESTENDO UN CAPITALE ANNUALE CONOSCIUTO, CON O SENZA CAPITALE INIZIALE A UN TASSO DI RIV CONOSCIUTO CHE MONTANTE AVRO' TRA X ANNI? | FFM19: INVESTENDO UN CAPITALE ANNUALE CONOSCIUTO, CON O SENZA CAPITALE INIZIALE A UN TASSO DI RIV CONOSCIUTO CHE MONTANTE AVRO' TRA X ANNI? | FGC19: INVESTENDO UN CAPITALE ANNUALE CONOSCIUTO, CON O SENZA CAPITALE INIZIALE A UN TASSO DI RIV CONOSCIUTO CHE MONTANTE AVRO' TRA X ANNI? | FGS19: INVESTENDO UN CAPITALE ANNUALE CONOSCIUTO, CON O SENZA CAPITALE INIZIALE A UN TASSO DI RIV CONOSCIUTO CHE MONTANTE AVRO' TRA X ANNI? | FHI19: INVESTENDO UN CAPITALE ANNUALE CONOSCIUTO, CON O SENZA CAPITALE INIZIALE A UN TASSO DI RIV CONOSCIUTO CHE MONTANTE AVRO' TRA X ANNI? | FHY19: INVESTENDO UN CAPITALE ANNUALE CONOSCIUTO, CON O SENZA CAPITALE INIZIALE A UN TASSO DI RIV CONOSCIUTO CHE MONTANTE AVRO' TRA X ANNI? | FIO19: INVESTENDO UN CAPITALE ANNUALE CONOSCIUTO, CON O SENZA CAPITALE INIZIALE A UN TASSO DI RIV CONOSCIUTO CHE MONTANTE AVRO' TRA X ANNI? | FJE19: INVESTENDO UN CAPITALE ANNUALE CONOSCIUTO, CON O SENZA CAPITALE INIZIALE A UN TASSO DI RIV CONOSCIUTO CHE MONTANTE AVRO' TRA X ANNI? | FJU19: INVESTENDO UN CAPITALE ANNUALE CONOSCIUTO, CON O SENZA CAPITALE INIZIALE A UN TASSO DI RIV CONOSCIUTO CHE MONTANTE AVRO' TRA X ANNI? | FKK19: INVESTENDO UN CAPITALE ANNUALE CONOSCIUTO, CON O SENZA CAPITALE INIZIALE A UN TASSO DI RIV CONOSCIUTO CHE MONTANTE AVRO' TRA X ANNI? | FLA19: INVESTENDO UN CAPITALE ANNUALE CONOSCIUTO, CON O SENZA CAPITALE INIZIALE A UN TASSO DI RIV CONOSCIUTO CHE MONTANTE AVRO' TRA X ANNI? | FLQ19: INVESTENDO UN CAPITALE ANNUALE CONOSCIUTO, CON O SENZA CAPITALE INIZIALE A UN TASSO DI RIV CONOSCIUTO CHE MONTANTE AVRO' TRA X ANNI? | FMG19: INVESTENDO UN CAPITALE ANNUALE CONOSCIUTO, CON O SENZA CAPITALE INIZIALE A UN TASSO DI RIV CONOSCIUTO CHE MONTANTE AVRO' TRA X ANNI? | FMW19: INVESTENDO UN CAPITALE ANNUALE CONOSCIUTO, CON O SENZA CAPITALE INIZIALE A UN TASSO DI RIV CONOSCIUTO CHE MONTANTE AVRO' TRA X ANNI? | FNM19: INVESTENDO UN CAPITALE ANNUALE CONOSCIUTO, CON O SENZA CAPITALE INIZIALE A UN TASSO DI RIV CONOSCIUTO CHE MONTANTE AVRO' TRA X ANNI? | FOC19: INVESTENDO UN CAPITALE ANNUALE CONOSCIUTO, CON O SENZA CAPITALE INIZIALE A UN TASSO DI RIV CONOSCIUTO CHE MONTANTE AVRO' TRA X ANNI? | FOS19: INVESTENDO UN CAPITALE ANNUALE CONOSCIUTO, CON O SENZA CAPITALE INIZIALE A UN TASSO DI RIV CONOSCIUTO CHE MONTANTE AVRO' TRA X ANNI? | FPI19: INVESTENDO UN CAPITALE ANNUALE CONOSCIUTO, CON O SENZA CAPITALE INIZIALE A UN TASSO DI RIV CONOSCIUTO CHE MONTANTE AVRO' TRA X ANNI? | FPY19: INVESTENDO UN CAPITALE ANNUALE CONOSCIUTO, CON O SENZA CAPITALE INIZIALE A UN TASSO DI RIV CONOSCIUTO CHE MONTANTE AVRO' TRA X ANNI? | FQO19: INVESTENDO UN CAPITALE ANNUALE CONOSCIUTO, CON O SENZA CAPITALE INIZIALE A UN TASSO DI RIV CONOSCIUTO CHE MONTANTE AVRO' TRA X ANNI? | FRE19: INVESTENDO UN CAPITALE ANNUALE CONOSCIUTO, CON O SENZA CAPITALE INIZIALE A UN TASSO DI RIV CONOSCIUTO CHE MONTANTE AVRO' TRA X ANNI? | FRU19: INVESTENDO UN CAPITALE ANNUALE CONOSCIUTO, CON O SENZA CAPITALE INIZIALE A UN TASSO DI RIV CONOSCIUTO CHE MONTANTE AVRO' TRA X ANNI? | FSK19: INVESTENDO UN CAPITALE ANNUALE CONOSCIUTO, CON O SENZA CAPITALE INIZIALE A UN TASSO DI RIV CONOSCIUTO CHE MONTANTE AVRO' TRA X ANNI? | FTA19: INVESTENDO UN CAPITALE ANNUALE CONOSCIUTO, CON O SENZA CAPITALE INIZIALE A UN TASSO DI RIV CONOSCIUTO CHE MONTANTE AVRO' TRA X ANNI? | FTQ19: INVESTENDO UN CAPITALE ANNUALE CONOSCIUTO, CON O SENZA CAPITALE INIZIALE A UN TASSO DI RIV CONOSCIUTO CHE MONTANTE AVRO' TRA X ANNI? | FUG19: INVESTENDO UN CAPITALE ANNUALE CONOSCIUTO, CON O SENZA CAPITALE INIZIALE A UN TASSO DI RIV CONOSCIUTO CHE MONTANTE AVRO' TRA X ANNI? | FUW19: INVESTENDO UN CAPITALE ANNUALE CONOSCIUTO, CON O SENZA CAPITALE INIZIALE A UN TASSO DI RIV CONOSCIUTO CHE MONTANTE AVRO' TRA X ANNI? | FVM19: INVESTENDO UN CAPITALE ANNUALE CONOSCIUTO, CON O SENZA CAPITALE INIZIALE A UN TASSO DI RIV CONOSCIUTO CHE MONTANTE AVRO' TRA X ANNI? | FWC19: INVESTENDO UN CAPITALE ANNUALE CONOSCIUTO, CON O SENZA CAPITALE INIZIALE A UN TASSO DI RIV CONOSCIUTO CHE MONTANTE AVRO' TRA X ANNI? | FWS19: INVESTENDO UN CAPITALE ANNUALE CONOSCIUTO, CON O SENZA CAPITALE INIZIALE A UN TASSO DI RIV CONOSCIUTO CHE MONTANTE AVRO' TRA X ANNI? | FXI19: INVESTENDO UN CAPITALE ANNUALE CONOSCIUTO, CON O SENZA CAPITALE INIZIALE A UN TASSO DI RIV CONOSCIUTO CHE MONTANTE AVRO' TRA X ANNI? | FXY19: INVESTENDO UN CAPITALE ANNUALE CONOSCIUTO, CON O SENZA CAPITALE INIZIALE A UN TASSO DI RIV CONOSCIUTO CHE MONTANTE AVRO' TRA X ANNI? | FYO19: INVESTENDO UN CAPITALE ANNUALE CONOSCIUTO, CON O SENZA CAPITALE INIZIALE A UN TASSO DI RIV CONOSCIUTO CHE MONTANTE AVRO' TRA X ANNI? | FZE19: INVESTENDO UN CAPITALE ANNUALE CONOSCIUTO, CON O SENZA CAPITALE INIZIALE A UN TASSO DI RIV CONOSCIUTO CHE MONTANTE AVRO' TRA X ANNI? | FZU19: INVESTENDO UN CAPITALE ANNUALE CONOSCIUTO, CON O SENZA CAPITALE INIZIALE A UN TASSO DI RIV CONOSCIUTO CHE MONTANTE AVRO' TRA X ANNI? | GAK19: INVESTENDO UN CAPITALE ANNUALE CONOSCIUTO, CON O SENZA CAPITALE INIZIALE A UN TASSO DI RIV CONOSCIUTO CHE MONTANTE AVRO' TRA X ANNI? | GBA19: INVESTENDO UN CAPITALE ANNUALE CONOSCIUTO, CON O SENZA CAPITALE INIZIALE A UN TASSO DI RIV CONOSCIUTO CHE MONTANTE AVRO' TRA X ANNI? | GBQ19: INVESTENDO UN CAPITALE ANNUALE CONOSCIUTO, CON O SENZA CAPITALE INIZIALE A UN TASSO DI RIV CONOSCIUTO CHE MONTANTE AVRO' TRA X ANNI? | GCG19: INVESTENDO UN CAPITALE ANNUALE CONOSCIUTO, CON O SENZA CAPITALE INIZIALE A UN TASSO DI RIV CONOSCIUTO CHE MONTANTE AVRO' TRA X ANNI? | GCW19: INVESTENDO UN CAPITALE ANNUALE CONOSCIUTO, CON O SENZA CAPITALE INIZIALE A UN TASSO DI RIV CONOSCIUTO CHE MONTANTE AVRO' TRA X ANNI? | GDM19: INVESTENDO UN CAPITALE ANNUALE CONOSCIUTO, CON O SENZA CAPITALE INIZIALE A UN TASSO DI RIV CONOSCIUTO CHE MONTANTE AVRO' TRA X ANNI? | GEC19: INVESTENDO UN CAPITALE ANNUALE CONOSCIUTO, CON O SENZA CAPITALE INIZIALE A UN TASSO DI RIV CONOSCIUTO CHE MONTANTE AVRO' TRA X ANNI? | GES19: INVESTENDO UN CAPITALE ANNUALE CONOSCIUTO, CON O SENZA CAPITALE INIZIALE A UN TASSO DI RIV CONOSCIUTO CHE MONTANTE AVRO' TRA X ANNI? | GFI19: INVESTENDO UN CAPITALE ANNUALE CONOSCIUTO, CON O SENZA CAPITALE INIZIALE A UN TASSO DI RIV CONOSCIUTO CHE MONTANTE AVRO' TRA X ANNI? | GFY19: INVESTENDO UN CAPITALE ANNUALE CONOSCIUTO, CON O SENZA CAPITALE INIZIALE A UN TASSO DI RIV CONOSCIUTO CHE MONTANTE AVRO' TRA X ANNI? | GGO19: INVESTENDO UN CAPITALE ANNUALE CONOSCIUTO, CON O SENZA CAPITALE INIZIALE A UN TASSO DI RIV CONOSCIUTO CHE MONTANTE AVRO' TRA X ANNI? | GHE19: INVESTENDO UN CAPITALE ANNUALE CONOSCIUTO, CON O SENZA CAPITALE INIZIALE A UN TASSO DI RIV CONOSCIUTO CHE MONTANTE AVRO' TRA X ANNI? | GHU19: INVESTENDO UN CAPITALE ANNUALE CONOSCIUTO, CON O SENZA CAPITALE INIZIALE A UN TASSO DI RIV CONOSCIUTO CHE MONTANTE AVRO' TRA X ANNI? | GIK19: INVESTENDO UN CAPITALE ANNUALE CONOSCIUTO, CON O SENZA CAPITALE INIZIALE A UN TASSO DI RIV CONOSCIUTO CHE MONTANTE AVRO' TRA X ANNI? | GJA19: INVESTENDO UN CAPITALE ANNUALE CONOSCIUTO, CON O SENZA CAPITALE INIZIALE A UN TASSO DI RIV CONOSCIUTO CHE MONTANTE AVRO' TRA X ANNI? | GJQ19: INVESTENDO UN CAPITALE ANNUALE CONOSCIUTO, CON O SENZA CAPITALE INIZIALE A UN TASSO DI RIV CONOSCIUTO CHE MONTANTE AVRO' TRA X ANNI? | GKG19: INVESTENDO UN CAPITALE ANNUALE CONOSCIUTO, CON O SENZA CAPITALE INIZIALE A UN TASSO DI RIV CONOSCIUTO CHE MONTANTE AVRO' TRA X ANNI? | GKW19: INVESTENDO UN CAPITALE ANNUALE CONOSCIUTO, CON O SENZA CAPITALE INIZIALE A UN TASSO DI RIV CONOSCIUTO CHE MONTANTE AVRO' TRA X ANNI? | GLM19: INVESTENDO UN CAPITALE ANNUALE CONOSCIUTO, CON O SENZA CAPITALE INIZIALE A UN TASSO DI RIV CONOSCIUTO CHE MONTANTE AVRO' TRA X ANNI? | GMC19: INVESTENDO UN CAPITALE ANNUALE CONOSCIUTO, CON O SENZA CAPITALE INIZIALE A UN TASSO DI RIV CONOSCIUTO CHE MONTANTE AVRO' TRA X ANNI? | GMS19: INVESTENDO UN CAPITALE ANNUALE CONOSCIUTO, CON O SENZA CAPITALE INIZIALE A UN TASSO DI RIV CONOSCIUTO CHE MONTANTE AVRO' TRA X ANNI? | GNI19: INVESTENDO UN CAPITALE ANNUALE CONOSCIUTO, CON O SENZA CAPITALE INIZIALE A UN TASSO DI RIV CONOSCIUTO CHE MONTANTE AVRO' TRA X ANNI? | GNY19: INVESTENDO UN CAPITALE ANNUALE CONOSCIUTO, CON O SENZA CAPITALE INIZIALE A UN TASSO DI RIV CONOSCIUTO CHE MONTANTE AVRO' TRA X ANNI? | GOO19: INVESTENDO UN CAPITALE ANNUALE CONOSCIUTO, CON O SENZA CAPITALE INIZIALE A UN TASSO DI RIV CONOSCIUTO CHE MONTANTE AVRO' TRA X ANNI? | GPE19: INVESTENDO UN CAPITALE ANNUALE CONOSCIUTO, CON O SENZA CAPITALE INIZIALE A UN TASSO DI RIV CONOSCIUTO CHE MONTANTE AVRO' TRA X ANNI? | GPU19: INVESTENDO UN CAPITALE ANNUALE CONOSCIUTO, CON O SENZA CAPITALE INIZIALE A UN TASSO DI RIV CONOSCIUTO CHE MONTANTE AVRO' TRA X ANNI? | GQK19: INVESTENDO UN CAPITALE ANNUALE CONOSCIUTO, CON O SENZA CAPITALE INIZIALE A UN TASSO DI RIV CONOSCIUTO CHE MONTANTE AVRO' TRA X ANNI? | GRA19: INVESTENDO UN CAPITALE ANNUALE CONOSCIUTO, CON O SENZA CAPITALE INIZIALE A UN TASSO DI RIV CONOSCIUTO CHE MONTANTE AVRO' TRA X ANNI? | GRQ19: INVESTENDO UN CAPITALE ANNUALE CONOSCIUTO, CON O SENZA CAPITALE INIZIALE A UN TASSO DI RIV CONOSCIUTO CHE MONTANTE AVRO' TRA X ANNI? | GSG19: INVESTENDO UN CAPITALE ANNUALE CONOSCIUTO, CON O SENZA CAPITALE INIZIALE A UN TASSO DI RIV CONOSCIUTO CHE MONTANTE AVRO' TRA X ANNI? | GSW19: INVESTENDO UN CAPITALE ANNUALE CONOSCIUTO, CON O SENZA CAPITALE INIZIALE A UN TASSO DI RIV CONOSCIUTO CHE MONTANTE AVRO' TRA X ANNI? | GTM19: INVESTENDO UN CAPITALE ANNUALE CONOSCIUTO, CON O SENZA CAPITALE INIZIALE A UN TASSO DI RIV CONOSCIUTO CHE MONTANTE AVRO' TRA X ANNI? | GUC19: INVESTENDO UN CAPITALE ANNUALE CONOSCIUTO, CON O SENZA CAPITALE INIZIALE A UN TASSO DI RIV CONOSCIUTO CHE MONTANTE AVRO' TRA X ANNI? | GUS19: INVESTENDO UN CAPITALE ANNUALE CONOSCIUTO, CON O SENZA CAPITALE INIZIALE A UN TASSO DI RIV CONOSCIUTO CHE MONTANTE AVRO' TRA X ANNI? | GVI19: INVESTENDO UN CAPITALE ANNUALE CONOSCIUTO, CON O SENZA CAPITALE INIZIALE A UN TASSO DI RIV CONOSCIUTO CHE MONTANTE AVRO' TRA X ANNI? | GVY19: INVESTENDO UN CAPITALE ANNUALE CONOSCIUTO, CON O SENZA CAPITALE INIZIALE A UN TASSO DI RIV CONOSCIUTO CHE MONTANTE AVRO' TRA X ANNI? | GWO19: INVESTENDO UN CAPITALE ANNUALE CONOSCIUTO, CON O SENZA CAPITALE INIZIALE A UN TASSO DI RIV CONOSCIUTO CHE MONTANTE AVRO' TRA X ANNI? | GXE19: INVESTENDO UN CAPITALE ANNUALE CONOSCIUTO, CON O SENZA CAPITALE INIZIALE A UN TASSO DI RIV CONOSCIUTO CHE MONTANTE AVRO' TRA X ANNI? | GXU19: INVESTENDO UN CAPITALE ANNUALE CONOSCIUTO, CON O SENZA CAPITALE INIZIALE A UN TASSO DI RIV CONOSCIUTO CHE MONTANTE AVRO' TRA X ANNI? | GYK19: INVESTENDO UN CAPITALE ANNUALE CONOSCIUTO, CON O SENZA CAPITALE INIZIALE A UN TASSO DI RIV CONOSCIUTO CHE MONTANTE AVRO' TRA X ANNI? | GZA19: INVESTENDO UN CAPITALE ANNUALE CONOSCIUTO, CON O SENZA CAPITALE INIZIALE A UN TASSO DI RIV CONOSCIUTO CHE MONTANTE AVRO' TRA X ANNI? | GZQ19: INVESTENDO UN CAPITALE ANNUALE CONOSCIUTO, CON O SENZA CAPITALE INIZIALE A UN TASSO DI RIV CONOSCIUTO CHE MONTANTE AVRO' TRA X ANNI? | HAG19: INVESTENDO UN CAPITALE ANNUALE CONOSCIUTO, CON O SENZA CAPITALE INIZIALE A UN TASSO DI RIV CONOSCIUTO CHE MONTANTE AVRO' TRA X ANNI? | HAW19: INVESTENDO UN CAPITALE ANNUALE CONOSCIUTO, CON O SENZA CAPITALE INIZIALE A UN TASSO DI RIV CONOSCIUTO CHE MONTANTE AVRO' TRA X ANNI? | HBM19: INVESTENDO UN CAPITALE ANNUALE CONOSCIUTO, CON O SENZA CAPITALE INIZIALE A UN TASSO DI RIV CONOSCIUTO CHE MONTANTE AVRO' TRA X ANNI? | HCC19: INVESTENDO UN CAPITALE ANNUALE CONOSCIUTO, CON O SENZA CAPITALE INIZIALE A UN TASSO DI RIV CONOSCIUTO CHE MONTANTE AVRO' TRA X ANNI? | HCS19: INVESTENDO UN CAPITALE ANNUALE CONOSCIUTO, CON O SENZA CAPITALE INIZIALE A UN TASSO DI RIV CONOSCIUTO CHE MONTANTE AVRO' TRA X ANNI? | HDI19: INVESTENDO UN CAPITALE ANNUALE CONOSCIUTO, CON O SENZA CAPITALE INIZIALE A UN TASSO DI RIV CONOSCIUTO CHE MONTANTE AVRO' TRA X ANNI? | HDY19: INVESTENDO UN CAPITALE ANNUALE CONOSCIUTO, CON O SENZA CAPITALE INIZIALE A UN TASSO DI RIV CONOSCIUTO CHE MONTANTE AVRO' TRA X ANNI? | HEO19: INVESTENDO UN CAPITALE ANNUALE CONOSCIUTO, CON O SENZA CAPITALE INIZIALE A UN TASSO DI RIV CONOSCIUTO CHE MONTANTE AVRO' TRA X ANNI? | HFE19: INVESTENDO UN CAPITALE ANNUALE CONOSCIUTO, CON O SENZA CAPITALE INIZIALE A UN TASSO DI RIV CONOSCIUTO CHE MONTANTE AVRO' TRA X ANNI? | HFU19: INVESTENDO UN CAPITALE ANNUALE CONOSCIUTO, CON O SENZA CAPITALE INIZIALE A UN TASSO DI RIV CONOSCIUTO CHE MONTANTE AVRO' TRA X ANNI? | HGK19: INVESTENDO UN CAPITALE ANNUALE CONOSCIUTO, CON O SENZA CAPITALE INIZIALE A UN TASSO DI RIV CONOSCIUTO CHE MONTANTE AVRO' TRA X ANNI? | HHA19: INVESTENDO UN CAPITALE ANNUALE CONOSCIUTO, CON O SENZA CAPITALE INIZIALE A UN TASSO DI RIV CONOSCIUTO CHE MONTANTE AVRO' TRA X ANNI? | HHQ19: INVESTENDO UN CAPITALE ANNUALE CONOSCIUTO, CON O SENZA CAPITALE INIZIALE A UN TASSO DI RIV CONOSCIUTO CHE MONTANTE AVRO' TRA X ANNI? | HIG19: INVESTENDO UN CAPITALE ANNUALE CONOSCIUTO, CON O SENZA CAPITALE INIZIALE A UN TASSO DI RIV CONOSCIUTO CHE MONTANTE AVRO' TRA X ANNI? | HIW19: INVESTENDO UN CAPITALE ANNUALE CONOSCIUTO, CON O SENZA CAPITALE INIZIALE A UN TASSO DI RIV CONOSCIUTO CHE MONTANTE AVRO' TRA X ANNI? | HJM19: INVESTENDO UN CAPITALE ANNUALE CONOSCIUTO, CON O SENZA CAPITALE INIZIALE A UN TASSO DI RIV CONOSCIUTO CHE MONTANTE AVRO' TRA X ANNI? | HKC19: INVESTENDO UN CAPITALE ANNUALE CONOSCIUTO, CON O SENZA CAPITALE INIZIALE A UN TASSO DI RIV CONOSCIUTO CHE MONTANTE AVRO' TRA X ANNI? | HKS19: INVESTENDO UN CAPITALE ANNUALE CONOSCIUTO, CON O SENZA CAPITALE INIZIALE A UN TASSO DI RIV CONOSCIUTO CHE MONTANTE AVRO' TRA X ANNI? | HLI19: INVESTENDO UN CAPITALE ANNUALE CONOSCIUTO, CON O SENZA CAPITALE INIZIALE A UN TASSO DI RIV CONOSCIUTO CHE MONTANTE AVRO' TRA X ANNI? | HLY19: INVESTENDO UN CAPITALE ANNUALE CONOSCIUTO, CON O SENZA CAPITALE INIZIALE A UN TASSO DI RIV CONOSCIUTO CHE MONTANTE AVRO' TRA X ANNI? | HMO19: INVESTENDO UN CAPITALE ANNUALE CONOSCIUTO, CON O SENZA CAPITALE INIZIALE A UN TASSO DI RIV CONOSCIUTO CHE MONTANTE AVRO' TRA X ANNI? | HNE19: INVESTENDO UN CAPITALE ANNUALE CONOSCIUTO, CON O SENZA CAPITALE INIZIALE A UN TASSO DI RIV CONOSCIUTO CHE MONTANTE AVRO' TRA X ANNI? | HNU19: INVESTENDO UN CAPITALE ANNUALE CONOSCIUTO, CON O SENZA CAPITALE INIZIALE A UN TASSO DI RIV CONOSCIUTO CHE MONTANTE AVRO' TRA X ANNI? | HOK19: INVESTENDO UN CAPITALE ANNUALE CONOSCIUTO, CON O SENZA CAPITALE INIZIALE A UN TASSO DI RIV CONOSCIUTO CHE MONTANTE AVRO' TRA X ANNI? | HPA19: INVESTENDO UN CAPITALE ANNUALE CONOSCIUTO, CON O SENZA CAPITALE INIZIALE A UN TASSO DI RIV CONOSCIUTO CHE MONTANTE AVRO' TRA X ANNI? | HPQ19: INVESTENDO UN CAPITALE ANNUALE CONOSCIUTO, CON O SENZA CAPITALE INIZIALE A UN TASSO DI RIV CONOSCIUTO CHE MONTANTE AVRO' TRA X ANNI? | HQG19: INVESTENDO UN CAPITALE ANNUALE CONOSCIUTO, CON O SENZA CAPITALE INIZIALE A UN TASSO DI RIV CONOSCIUTO CHE MONTANTE AVRO' TRA X ANNI? | HQW19: INVESTENDO UN CAPITALE ANNUALE CONOSCIUTO, CON O SENZA CAPITALE INIZIALE A UN TASSO DI RIV CONOSCIUTO CHE MONTANTE AVRO' TRA X ANNI? | HRM19: INVESTENDO UN CAPITALE ANNUALE CONOSCIUTO, CON O SENZA CAPITALE INIZIALE A UN TASSO DI RIV CONOSCIUTO CHE MONTANTE AVRO' TRA X ANNI? | HSC19: INVESTENDO UN CAPITALE ANNUALE CONOSCIUTO, CON O SENZA CAPITALE INIZIALE A UN TASSO DI RIV CONOSCIUTO CHE MONTANTE AVRO' TRA X ANNI? | HSS19: INVESTENDO UN CAPITALE ANNUALE CONOSCIUTO, CON O SENZA CAPITALE INIZIALE A UN TASSO DI RIV CONOSCIUTO CHE MONTANTE AVRO' TRA X ANNI? | HTI19: INVESTENDO UN CAPITALE ANNUALE CONOSCIUTO, CON O SENZA CAPITALE INIZIALE A UN TASSO DI RIV CONOSCIUTO CHE MONTANTE AVRO' TRA X ANNI? | HTY19: INVESTENDO UN CAPITALE ANNUALE CONOSCIUTO, CON O SENZA CAPITALE INIZIALE A UN TASSO DI RIV CONOSCIUTO CHE MONTANTE AVRO' TRA X ANNI? | HUO19: INVESTENDO UN CAPITALE ANNUALE CONOSCIUTO, CON O SENZA CAPITALE INIZIALE A UN TASSO DI RIV CONOSCIUTO CHE MONTANTE AVRO' TRA X ANNI? | HVE19: INVESTENDO UN CAPITALE ANNUALE CONOSCIUTO, CON O SENZA CAPITALE INIZIALE A UN TASSO DI RIV CONOSCIUTO CHE MONTANTE AVRO' TRA X ANNI? | HVU19: INVESTENDO UN CAPITALE ANNUALE CONOSCIUTO, CON O SENZA CAPITALE INIZIALE A UN TASSO DI RIV CONOSCIUTO CHE MONTANTE AVRO' TRA X ANNI? | HWK19: INVESTENDO UN CAPITALE ANNUALE CONOSCIUTO, CON O SENZA CAPITALE INIZIALE A UN TASSO DI RIV CONOSCIUTO CHE MONTANTE AVRO' TRA X ANNI? | HXA19: INVESTENDO UN CAPITALE ANNUALE CONOSCIUTO, CON O SENZA CAPITALE INIZIALE A UN TASSO DI RIV CONOSCIUTO CHE MONTANTE AVRO' TRA X ANNI? | HXQ19: INVESTENDO UN CAPITALE ANNUALE CONOSCIUTO, CON O SENZA CAPITALE INIZIALE A UN TASSO DI RIV CONOSCIUTO CHE MONTANTE AVRO' TRA X ANNI? | HYG19: INVESTENDO UN CAPITALE ANNUALE CONOSCIUTO, CON O SENZA CAPITALE INIZIALE A UN TASSO DI RIV CONOSCIUTO CHE MONTANTE AVRO' TRA X ANNI? | HYW19: INVESTENDO UN CAPITALE ANNUALE CONOSCIUTO, CON O SENZA CAPITALE INIZIALE A UN TASSO DI RIV CONOSCIUTO CHE MONTANTE AVRO' TRA X ANNI? | HZM19: INVESTENDO UN CAPITALE ANNUALE CONOSCIUTO, CON O SENZA CAPITALE INIZIALE A UN TASSO DI RIV CONOSCIUTO CHE MONTANTE AVRO' TRA X ANNI? | IAC19: INVESTENDO UN CAPITALE ANNUALE CONOSCIUTO, CON O SENZA CAPITALE INIZIALE A UN TASSO DI RIV CONOSCIUTO CHE MONTANTE AVRO' TRA X ANNI? | IAS19: INVESTENDO UN CAPITALE ANNUALE CONOSCIUTO, CON O SENZA CAPITALE INIZIALE A UN TASSO DI RIV CONOSCIUTO CHE MONTANTE AVRO' TRA X ANNI? | IBI19: INVESTENDO UN CAPITALE ANNUALE CONOSCIUTO, CON O SENZA CAPITALE INIZIALE A UN TASSO DI RIV CONOSCIUTO CHE MONTANTE AVRO' TRA X ANNI? | IBY19: INVESTENDO UN CAPITALE ANNUALE CONOSCIUTO, CON O SENZA CAPITALE INIZIALE A UN TASSO DI RIV CONOSCIUTO CHE MONTANTE AVRO' TRA X ANNI? | ICO19: INVESTENDO UN CAPITALE ANNUALE CONOSCIUTO, CON O SENZA CAPITALE INIZIALE A UN TASSO DI RIV CONOSCIUTO CHE MONTANTE AVRO' TRA X ANNI? | IDE19: INVESTENDO UN CAPITALE ANNUALE CONOSCIUTO, CON O SENZA CAPITALE INIZIALE A UN TASSO DI RIV CONOSCIUTO CHE MONTANTE AVRO' TRA X ANNI? | IDU19: INVESTENDO UN CAPITALE ANNUALE CONOSCIUTO, CON O SENZA CAPITALE INIZIALE A UN TASSO DI RIV CONOSCIUTO CHE MONTANTE AVRO' TRA X ANNI? | IEK19: INVESTENDO UN CAPITALE ANNUALE CONOSCIUTO, CON O SENZA CAPITALE INIZIALE A UN TASSO DI RIV CONOSCIUTO CHE MONTANTE AVRO' TRA X ANNI? | IFA19: INVESTENDO UN CAPITALE ANNUALE CONOSCIUTO, CON O SENZA CAPITALE INIZIALE A UN TASSO DI RIV CONOSCIUTO CHE MONTANTE AVRO' TRA X ANNI? | IFQ19: INVESTENDO UN CAPITALE ANNUALE CONOSCIUTO, CON O SENZA CAPITALE INIZIALE A UN TASSO DI RIV CONOSCIUTO CHE MONTANTE AVRO' TRA X ANNI? | IGG19: INVESTENDO UN CAPITALE ANNUALE CONOSCIUTO, CON O SENZA CAPITALE INIZIALE A UN TASSO DI RIV CONOSCIUTO CHE MONTANTE AVRO' TRA X ANNI? | IGW19: INVESTENDO UN CAPITALE ANNUALE CONOSCIUTO, CON O SENZA CAPITALE INIZIALE A UN TASSO DI RIV CONOSCIUTO CHE MONTANTE AVRO' TRA X ANNI? | IHM19: INVESTENDO UN CAPITALE ANNUALE CONOSCIUTO, CON O SENZA CAPITALE INIZIALE A UN TASSO DI RIV CONOSCIUTO CHE MONTANTE AVRO' TRA X ANNI? | IIC19: INVESTENDO UN CAPITALE ANNUALE CONOSCIUTO, CON O SENZA CAPITALE INIZIALE A UN TASSO DI RIV CONOSCIUTO CHE MONTANTE AVRO' TRA X ANNI? | IIS19: INVESTENDO UN CAPITALE ANNUALE CONOSCIUTO, CON O SENZA CAPITALE INIZIALE A UN TASSO DI RIV CONOSCIUTO CHE MONTANTE AVRO' TRA X ANNI? | IJI19: INVESTENDO UN CAPITALE ANNUALE CONOSCIUTO, CON O SENZA CAPITALE INIZIALE A UN TASSO DI RIV CONOSCIUTO CHE MONTANTE AVRO' TRA X ANNI? | IJY19: INVESTENDO UN CAPITALE ANNUALE CONOSCIUTO, CON O SENZA CAPITALE INIZIALE A UN TASSO DI RIV CONOSCIUTO CHE MONTANTE AVRO' TRA X ANNI? | IKO19: INVESTENDO UN CAPITALE ANNUALE CONOSCIUTO, CON O SENZA CAPITALE INIZIALE A UN TASSO DI RIV CONOSCIUTO CHE MONTANTE AVRO' TRA X ANNI? | ILE19: INVESTENDO UN CAPITALE ANNUALE CONOSCIUTO, CON O SENZA CAPITALE INIZIALE A UN TASSO DI RIV CONOSCIUTO CHE MONTANTE AVRO' TRA X ANNI? | ILU19: INVESTENDO UN CAPITALE ANNUALE CONOSCIUTO, CON O SENZA CAPITALE INIZIALE A UN TASSO DI RIV CONOSCIUTO CHE MONTANTE AVRO' TRA X ANNI? | IMK19: INVESTENDO UN CAPITALE ANNUALE CONOSCIUTO, CON O SENZA CAPITALE INIZIALE A UN TASSO DI RIV CONOSCIUTO CHE MONTANTE AVRO' TRA X ANNI? | INA19: INVESTENDO UN CAPITALE ANNUALE CONOSCIUTO, CON O SENZA CAPITALE INIZIALE A UN TASSO DI RIV CONOSCIUTO CHE MONTANTE AVRO' TRA X ANNI? | INQ19: INVESTENDO UN CAPITALE ANNUALE CONOSCIUTO, CON O SENZA CAPITALE INIZIALE A UN TASSO DI RIV CONOSCIUTO CHE MONTANTE AVRO' TRA X ANNI? | IOG19: INVESTENDO UN CAPITALE ANNUALE CONOSCIUTO, CON O SENZA CAPITALE INIZIALE A UN TASSO DI RIV CONOSCIUTO CHE MONTANTE AVRO' TRA X ANNI? | IOW19: INVESTENDO UN CAPITALE ANNUALE CONOSCIUTO, CON O SENZA CAPITALE INIZIALE A UN TASSO DI RIV CONOSCIUTO CHE MONTANTE AVRO' TRA X ANNI? | IPM19: INVESTENDO UN CAPITALE ANNUALE CONOSCIUTO, CON O SENZA CAPITALE INIZIALE A UN TASSO DI RIV CONOSCIUTO CHE MONTANTE AVRO' TRA X ANNI? | IQC19: INVESTENDO UN CAPITALE ANNUALE CONOSCIUTO, CON O SENZA CAPITALE INIZIALE A UN TASSO DI RIV CONOSCIUTO CHE MONTANTE AVRO' TRA X ANNI? | IQS19: INVESTENDO UN CAPITALE ANNUALE CONOSCIUTO, CON O SENZA CAPITALE INIZIALE A UN TASSO DI RIV CONOSCIUTO CHE MONTANTE AVRO' TRA X ANNI? | IRI19: INVESTENDO UN CAPITALE ANNUALE CONOSCIUTO, CON O SENZA CAPITALE INIZIALE A UN TASSO DI RIV CONOSCIUTO CHE MONTANTE AVRO' TRA X ANNI? | IRY19: INVESTENDO UN CAPITALE ANNUALE CONOSCIUTO, CON O SENZA CAPITALE INIZIALE A UN TASSO DI RIV CONOSCIUTO CHE MONTANTE AVRO' TRA X ANNI? | ISO19: INVESTENDO UN CAPITALE ANNUALE CONOSCIUTO, CON O SENZA CAPITALE INIZIALE A UN TASSO DI RIV CONOSCIUTO CHE MONTANTE AVRO' TRA X ANNI? | ITE19: INVESTENDO UN CAPITALE ANNUALE CONOSCIUTO, CON O SENZA CAPITALE INIZIALE A UN TASSO DI RIV CONOSCIUTO CHE MONTANTE AVRO' TRA X ANNI? | ITU19: INVESTENDO UN CAPITALE ANNUALE CONOSCIUTO, CON O SENZA CAPITALE INIZIALE A UN TASSO DI RIV CONOSCIUTO CHE MONTANTE AVRO' TRA X ANNI? | IUK19: INVESTENDO UN CAPITALE ANNUALE CONOSCIUTO, CON O SENZA CAPITALE INIZIALE A UN TASSO DI RIV CONOSCIUTO CHE MONTANTE AVRO' TRA X ANNI? | IVA19: INVESTENDO UN CAPITALE ANNUALE CONOSCIUTO, CON O SENZA CAPITALE INIZIALE A UN TASSO DI RIV CONOSCIUTO CHE MONTANTE AVRO' TRA X ANNI? | IVQ19: INVESTENDO UN CAPITALE ANNUALE CONOSCIUTO, CON O SENZA CAPITALE INIZIALE A UN TASSO DI RIV CONOSCIUTO CHE MONTANTE AVRO' TRA X ANNI? | IWG19: INVESTENDO UN CAPITALE ANNUALE CONOSCIUTO, CON O SENZA CAPITALE INIZIALE A UN TASSO DI RIV CONOSCIUTO CHE MONTANTE AVRO' TRA X ANNI? | IWW19: INVESTENDO UN CAPITALE ANNUALE CONOSCIUTO, CON O SENZA CAPITALE INIZIALE A UN TASSO DI RIV CONOSCIUTO CHE MONTANTE AVRO' TRA X ANNI? | IXM19: INVESTENDO UN CAPITALE ANNUALE CONOSCIUTO, CON O SENZA CAPITALE INIZIALE A UN TASSO DI RIV CONOSCIUTO CHE MONTANTE AVRO' TRA X ANNI? | IYC19: INVESTENDO UN CAPITALE ANNUALE CONOSCIUTO, CON O SENZA CAPITALE INIZIALE A UN TASSO DI RIV CONOSCIUTO CHE MONTANTE AVRO' TRA X ANNI? | IYS19: INVESTENDO UN CAPITALE ANNUALE CONOSCIUTO, CON O SENZA CAPITALE INIZIALE A UN TASSO DI RIV CONOSCIUTO CHE MONTANTE AVRO' TRA X ANNI? | IZI19: INVESTENDO UN CAPITALE ANNUALE CONOSCIUTO, CON O SENZA CAPITALE INIZIALE A UN TASSO DI RIV CONOSCIUTO CHE MONTANTE AVRO' TRA X ANNI? | IZY19: INVESTENDO UN CAPITALE ANNUALE CONOSCIUTO, CON O SENZA CAPITALE INIZIALE A UN TASSO DI RIV CONOSCIUTO CHE MONTANTE AVRO' TRA X ANNI? | JAO19: INVESTENDO UN CAPITALE ANNUALE CONOSCIUTO, CON O SENZA CAPITALE INIZIALE A UN TASSO DI RIV CONOSCIUTO CHE MONTANTE AVRO' TRA X ANNI? | JBE19: INVESTENDO UN CAPITALE ANNUALE CONOSCIUTO, CON O SENZA CAPITALE INIZIALE A UN TASSO DI RIV CONOSCIUTO CHE MONTANTE AVRO' TRA X ANNI? | JBU19: INVESTENDO UN CAPITALE ANNUALE CONOSCIUTO, CON O SENZA CAPITALE INIZIALE A UN TASSO DI RIV CONOSCIUTO CHE MONTANTE AVRO' TRA X ANNI? | JCK19: INVESTENDO UN CAPITALE ANNUALE CONOSCIUTO, CON O SENZA CAPITALE INIZIALE A UN TASSO DI RIV CONOSCIUTO CHE MONTANTE AVRO' TRA X ANNI? | JDA19: INVESTENDO UN CAPITALE ANNUALE CONOSCIUTO, CON O SENZA CAPITALE INIZIALE A UN TASSO DI RIV CONOSCIUTO CHE MONTANTE AVRO' TRA X ANNI? | JDQ19: INVESTENDO UN CAPITALE ANNUALE CONOSCIUTO, CON O SENZA CAPITALE INIZIALE A UN TASSO DI RIV CONOSCIUTO CHE MONTANTE AVRO' TRA X ANNI? | JEG19: INVESTENDO UN CAPITALE ANNUALE CONOSCIUTO, CON O SENZA CAPITALE INIZIALE A UN TASSO DI RIV CONOSCIUTO CHE MONTANTE AVRO' TRA X ANNI? | JEW19: INVESTENDO UN CAPITALE ANNUALE CONOSCIUTO, CON O SENZA CAPITALE INIZIALE A UN TASSO DI RIV CONOSCIUTO CHE MONTANTE AVRO' TRA X ANNI? | JFM19: INVESTENDO UN CAPITALE ANNUALE CONOSCIUTO, CON O SENZA CAPITALE INIZIALE A UN TASSO DI RIV CONOSCIUTO CHE MONTANTE AVRO' TRA X ANNI? | JGC19: INVESTENDO UN CAPITALE ANNUALE CONOSCIUTO, CON O SENZA CAPITALE INIZIALE A UN TASSO DI RIV CONOSCIUTO CHE MONTANTE AVRO' TRA X ANNI? | JGS19: INVESTENDO UN CAPITALE ANNUALE CONOSCIUTO, CON O SENZA CAPITALE INIZIALE A UN TASSO DI RIV CONOSCIUTO CHE MONTANTE AVRO' TRA X ANNI? | JHI19: INVESTENDO UN CAPITALE ANNUALE CONOSCIUTO, CON O SENZA CAPITALE INIZIALE A UN TASSO DI RIV CONOSCIUTO CHE MONTANTE AVRO' TRA X ANNI? | JHY19: INVESTENDO UN CAPITALE ANNUALE CONOSCIUTO, CON O SENZA CAPITALE INIZIALE A UN TASSO DI RIV CONOSCIUTO CHE MONTANTE AVRO' TRA X ANNI? | JIO19: INVESTENDO UN CAPITALE ANNUALE CONOSCIUTO, CON O SENZA CAPITALE INIZIALE A UN TASSO DI RIV CONOSCIUTO CHE MONTANTE AVRO' TRA X ANNI? | JJE19: INVESTENDO UN CAPITALE ANNUALE CONOSCIUTO, CON O SENZA CAPITALE INIZIALE A UN TASSO DI RIV CONOSCIUTO CHE MONTANTE AVRO' TRA X ANNI? | JJU19: INVESTENDO UN CAPITALE ANNUALE CONOSCIUTO, CON O SENZA CAPITALE INIZIALE A UN TASSO DI RIV CONOSCIUTO CHE MONTANTE AVRO' TRA X ANNI? | JKK19: INVESTENDO UN CAPITALE ANNUALE CONOSCIUTO, CON O SENZA CAPITALE INIZIALE A UN TASSO DI RIV CONOSCIUTO CHE MONTANTE AVRO' TRA X ANNI? | JLA19: INVESTENDO UN CAPITALE ANNUALE CONOSCIUTO, CON O SENZA CAPITALE INIZIALE A UN TASSO DI RIV CONOSCIUTO CHE MONTANTE AVRO' TRA X ANNI? | JLQ19: INVESTENDO UN CAPITALE ANNUALE CONOSCIUTO, CON O SENZA CAPITALE INIZIALE A UN TASSO DI RIV CONOSCIUTO CHE MONTANTE AVRO' TRA X ANNI? | JMG19: INVESTENDO UN CAPITALE ANNUALE CONOSCIUTO, CON O SENZA CAPITALE INIZIALE A UN TASSO DI RIV CONOSCIUTO CHE MONTANTE AVRO' TRA X ANNI? | JMW19: INVESTENDO UN CAPITALE ANNUALE CONOSCIUTO, CON O SENZA CAPITALE INIZIALE A UN TASSO DI RIV CONOSCIUTO CHE MONTANTE AVRO' TRA X ANNI? | JNM19: INVESTENDO UN CAPITALE ANNUALE CONOSCIUTO, CON O SENZA CAPITALE INIZIALE A UN TASSO DI RIV CONOSCIUTO CHE MONTANTE AVRO' TRA X ANNI? | JOC19: INVESTENDO UN CAPITALE ANNUALE CONOSCIUTO, CON O SENZA CAPITALE INIZIALE A UN TASSO DI RIV CONOSCIUTO CHE MONTANTE AVRO' TRA X ANNI? | JOS19: INVESTENDO UN CAPITALE ANNUALE CONOSCIUTO, CON O SENZA CAPITALE INIZIALE A UN TASSO DI RIV CONOSCIUTO CHE MONTANTE AVRO' TRA X ANNI? | JPI19: INVESTENDO UN CAPITALE ANNUALE CONOSCIUTO, CON O SENZA CAPITALE INIZIALE A UN TASSO DI RIV CONOSCIUTO CHE MONTANTE AVRO' TRA X ANNI? | JPY19: INVESTENDO UN CAPITALE ANNUALE CONOSCIUTO, CON O SENZA CAPITALE INIZIALE A UN TASSO DI RIV CONOSCIUTO CHE MONTANTE AVRO' TRA X ANNI? | JQO19: INVESTENDO UN CAPITALE ANNUALE CONOSCIUTO, CON O SENZA CAPITALE INIZIALE A UN TASSO DI RIV CONOSCIUTO CHE MONTANTE AVRO' TRA X ANNI? | JRE19: INVESTENDO UN CAPITALE ANNUALE CONOSCIUTO, CON O SENZA CAPITALE INIZIALE A UN TASSO DI RIV CONOSCIUTO CHE MONTANTE AVRO' TRA X ANNI? | JRU19: INVESTENDO UN CAPITALE ANNUALE CONOSCIUTO, CON O SENZA CAPITALE INIZIALE A UN TASSO DI RIV CONOSCIUTO CHE MONTANTE AVRO' TRA X ANNI? | JSK19: INVESTENDO UN CAPITALE ANNUALE CONOSCIUTO, CON O SENZA CAPITALE INIZIALE A UN TASSO DI RIV CONOSCIUTO CHE MONTANTE AVRO' TRA X ANNI? | JTA19: INVESTENDO UN CAPITALE ANNUALE CONOSCIUTO, CON O SENZA CAPITALE INIZIALE A UN TASSO DI RIV CONOSCIUTO CHE MONTANTE AVRO' TRA X ANNI? | JTQ19: INVESTENDO UN CAPITALE ANNUALE CONOSCIUTO, CON O SENZA CAPITALE INIZIALE A UN TASSO DI RIV CONOSCIUTO CHE MONTANTE AVRO' TRA X ANNI? | JUG19: INVESTENDO UN CAPITALE ANNUALE CONOSCIUTO, CON O SENZA CAPITALE INIZIALE A UN TASSO DI RIV CONOSCIUTO CHE MONTANTE AVRO' TRA X ANNI? | JUW19: INVESTENDO UN CAPITALE ANNUALE CONOSCIUTO, CON O SENZA CAPITALE INIZIALE A UN TASSO DI RIV CONOSCIUTO CHE MONTANTE AVRO' TRA X ANNI? | JVM19: INVESTENDO UN CAPITALE ANNUALE CONOSCIUTO, CON O SENZA CAPITALE INIZIALE A UN TASSO DI RIV CONOSCIUTO CHE MONTANTE AVRO' TRA X ANNI? | JWC19: INVESTENDO UN CAPITALE ANNUALE CONOSCIUTO, CON O SENZA CAPITALE INIZIALE A UN TASSO DI RIV CONOSCIUTO CHE MONTANTE AVRO' TRA X ANNI? | JWS19: INVESTENDO UN CAPITALE ANNUALE CONOSCIUTO, CON O SENZA CAPITALE INIZIALE A UN TASSO DI RIV CONOSCIUTO CHE MONTANTE AVRO' TRA X ANNI? | JXI19: INVESTENDO UN CAPITALE ANNUALE CONOSCIUTO, CON O SENZA CAPITALE INIZIALE A UN TASSO DI RIV CONOSCIUTO CHE MONTANTE AVRO' TRA X ANNI? | JXY19: INVESTENDO UN CAPITALE ANNUALE CONOSCIUTO, CON O SENZA CAPITALE INIZIALE A UN TASSO DI RIV CONOSCIUTO CHE MONTANTE AVRO' TRA X ANNI? | JYO19: INVESTENDO UN CAPITALE ANNUALE CONOSCIUTO, CON O SENZA CAPITALE INIZIALE A UN TASSO DI RIV CONOSCIUTO CHE MONTANTE AVRO' TRA X ANNI? | JZE19: INVESTENDO UN CAPITALE ANNUALE CONOSCIUTO, CON O SENZA CAPITALE INIZIALE A UN TASSO DI RIV CONOSCIUTO CHE MONTANTE AVRO' TRA X ANNI? | JZU19: INVESTENDO UN CAPITALE ANNUALE CONOSCIUTO, CON O SENZA CAPITALE INIZIALE A UN TASSO DI RIV CONOSCIUTO CHE MONTANTE AVRO' TRA X ANNI? | KAK19: INVESTENDO UN CAPITALE ANNUALE CONOSCIUTO, CON O SENZA CAPITALE INIZIALE A UN TASSO DI RIV CONOSCIUTO CHE MONTANTE AVRO' TRA X ANNI? | KBA19: INVESTENDO UN CAPITALE ANNUALE CONOSCIUTO, CON O SENZA CAPITALE INIZIALE A UN TASSO DI RIV CONOSCIUTO CHE MONTANTE AVRO' TRA X ANNI? | KBQ19: INVESTENDO UN CAPITALE ANNUALE CONOSCIUTO, CON O SENZA CAPITALE INIZIALE A UN TASSO DI RIV CONOSCIUTO CHE MONTANTE AVRO' TRA X ANNI? | KCG19: INVESTENDO UN CAPITALE ANNUALE CONOSCIUTO, CON O SENZA CAPITALE INIZIALE A UN TASSO DI RIV CONOSCIUTO CHE MONTANTE AVRO' TRA X ANNI? | KCW19: INVESTENDO UN CAPITALE ANNUALE CONOSCIUTO, CON O SENZA CAPITALE INIZIALE A UN TASSO DI RIV CONOSCIUTO CHE MONTANTE AVRO' TRA X ANNI? | KDM19: INVESTENDO UN CAPITALE ANNUALE CONOSCIUTO, CON O SENZA CAPITALE INIZIALE A UN TASSO DI RIV CONOSCIUTO CHE MONTANTE AVRO' TRA X ANNI? | KEC19: INVESTENDO UN CAPITALE ANNUALE CONOSCIUTO, CON O SENZA CAPITALE INIZIALE A UN TASSO DI RIV CONOSCIUTO CHE MONTANTE AVRO' TRA X ANNI? | KES19: INVESTENDO UN CAPITALE ANNUALE CONOSCIUTO, CON O SENZA CAPITALE INIZIALE A UN TASSO DI RIV CONOSCIUTO CHE MONTANTE AVRO' TRA X ANNI? | KFI19: INVESTENDO UN CAPITALE ANNUALE CONOSCIUTO, CON O SENZA CAPITALE INIZIALE A UN TASSO DI RIV CONOSCIUTO CHE MONTANTE AVRO' TRA X ANNI? | KFY19: INVESTENDO UN CAPITALE ANNUALE CONOSCIUTO, CON O SENZA CAPITALE INIZIALE A UN TASSO DI RIV CONOSCIUTO CHE MONTANTE AVRO' TRA X ANNI? | KGO19: INVESTENDO UN CAPITALE ANNUALE CONOSCIUTO, CON O SENZA CAPITALE INIZIALE A UN TASSO DI RIV CONOSCIUTO CHE MONTANTE AVRO' TRA X ANNI? | KHE19: INVESTENDO UN CAPITALE ANNUALE CONOSCIUTO, CON O SENZA CAPITALE INIZIALE A UN TASSO DI RIV CONOSCIUTO CHE MONTANTE AVRO' TRA X ANNI? | KHU19: INVESTENDO UN CAPITALE ANNUALE CONOSCIUTO, CON O SENZA CAPITALE INIZIALE A UN TASSO DI RIV CONOSCIUTO CHE MONTANTE AVRO' TRA X ANNI? | KIK19: INVESTENDO UN CAPITALE ANNUALE CONOSCIUTO, CON O SENZA CAPITALE INIZIALE A UN TASSO DI RIV CONOSCIUTO CHE MONTANTE AVRO' TRA X ANNI? | KJA19: INVESTENDO UN CAPITALE ANNUALE CONOSCIUTO, CON O SENZA CAPITALE INIZIALE A UN TASSO DI RIV CONOSCIUTO CHE MONTANTE AVRO' TRA X ANNI? | KJQ19: INVESTENDO UN CAPITALE ANNUALE CONOSCIUTO, CON O SENZA CAPITALE INIZIALE A UN TASSO DI RIV CONOSCIUTO CHE MONTANTE AVRO' TRA X ANNI? | KKG19: INVESTENDO UN CAPITALE ANNUALE CONOSCIUTO, CON O SENZA CAPITALE INIZIALE A UN TASSO DI RIV CONOSCIUTO CHE MONTANTE AVRO' TRA X ANNI? | KKW19: INVESTENDO UN CAPITALE ANNUALE CONOSCIUTO, CON O SENZA CAPITALE INIZIALE A UN TASSO DI RIV CONOSCIUTO CHE MONTANTE AVRO' TRA X ANNI? | KLM19: INVESTENDO UN CAPITALE ANNUALE CONOSCIUTO, CON O SENZA CAPITALE INIZIALE A UN TASSO DI RIV CONOSCIUTO CHE MONTANTE AVRO' TRA X ANNI? | KMC19: INVESTENDO UN CAPITALE ANNUALE CONOSCIUTO, CON O SENZA CAPITALE INIZIALE A UN TASSO DI RIV CONOSCIUTO CHE MONTANTE AVRO' TRA X ANNI? | KMS19: INVESTENDO UN CAPITALE ANNUALE CONOSCIUTO, CON O SENZA CAPITALE INIZIALE A UN TASSO DI RIV CONOSCIUTO CHE MONTANTE AVRO' TRA X ANNI? | KNI19: INVESTENDO UN CAPITALE ANNUALE CONOSCIUTO, CON O SENZA CAPITALE INIZIALE A UN TASSO DI RIV CONOSCIUTO CHE MONTANTE AVRO' TRA X ANNI? | KNY19: INVESTENDO UN CAPITALE ANNUALE CONOSCIUTO, CON O SENZA CAPITALE INIZIALE A UN TASSO DI RIV CONOSCIUTO CHE MONTANTE AVRO' TRA X ANNI? | KOO19: INVESTENDO UN CAPITALE ANNUALE CONOSCIUTO, CON O SENZA CAPITALE INIZIALE A UN TASSO DI RIV CONOSCIUTO CHE MONTANTE AVRO' TRA X ANNI? | KPE19: INVESTENDO UN CAPITALE ANNUALE CONOSCIUTO, CON O SENZA CAPITALE INIZIALE A UN TASSO DI RIV CONOSCIUTO CHE MONTANTE AVRO' TRA X ANNI? | KPU19: INVESTENDO UN CAPITALE ANNUALE CONOSCIUTO, CON O SENZA CAPITALE INIZIALE A UN TASSO DI RIV CONOSCIUTO CHE MONTANTE AVRO' TRA X ANNI? | KQK19: INVESTENDO UN CAPITALE ANNUALE CONOSCIUTO, CON O SENZA CAPITALE INIZIALE A UN TASSO DI RIV CONOSCIUTO CHE MONTANTE AVRO' TRA X ANNI? | KRA19: INVESTENDO UN CAPITALE ANNUALE CONOSCIUTO, CON O SENZA CAPITALE INIZIALE A UN TASSO DI RIV CONOSCIUTO CHE MONTANTE AVRO' TRA X ANNI? | KRQ19: INVESTENDO UN CAPITALE ANNUALE CONOSCIUTO, CON O SENZA CAPITALE INIZIALE A UN TASSO DI RIV CONOSCIUTO CHE MONTANTE AVRO' TRA X ANNI? | KSG19: INVESTENDO UN CAPITALE ANNUALE CONOSCIUTO, CON O SENZA CAPITALE INIZIALE A UN TASSO DI RIV CONOSCIUTO CHE MONTANTE AVRO' TRA X ANNI? | KSW19: INVESTENDO UN CAPITALE ANNUALE CONOSCIUTO, CON O SENZA CAPITALE INIZIALE A UN TASSO DI RIV CONOSCIUTO CHE MONTANTE AVRO' TRA X ANNI? | KTM19: INVESTENDO UN CAPITALE ANNUALE CONOSCIUTO, CON O SENZA CAPITALE INIZIALE A UN TASSO DI RIV CONOSCIUTO CHE MONTANTE AVRO' TRA X ANNI? | KUC19: INVESTENDO UN CAPITALE ANNUALE CONOSCIUTO, CON O SENZA CAPITALE INIZIALE A UN TASSO DI RIV CONOSCIUTO CHE MONTANTE AVRO' TRA X ANNI? | KUS19: INVESTENDO UN CAPITALE ANNUALE CONOSCIUTO, CON O SENZA CAPITALE INIZIALE A UN TASSO DI RIV CONOSCIUTO CHE MONTANTE AVRO' TRA X ANNI? | KVI19: INVESTENDO UN CAPITALE ANNUALE CONOSCIUTO, CON O SENZA CAPITALE INIZIALE A UN TASSO DI RIV CONOSCIUTO CHE MONTANTE AVRO' TRA X ANNI? | KVY19: INVESTENDO UN CAPITALE ANNUALE CONOSCIUTO, CON O SENZA CAPITALE INIZIALE A UN TASSO DI RIV CONOSCIUTO CHE MONTANTE AVRO' TRA X ANNI? | KWO19: INVESTENDO UN CAPITALE ANNUALE CONOSCIUTO, CON O SENZA CAPITALE INIZIALE A UN TASSO DI RIV CONOSCIUTO CHE MONTANTE AVRO' TRA X ANNI? | KXE19: INVESTENDO UN CAPITALE ANNUALE CONOSCIUTO, CON O SENZA CAPITALE INIZIALE A UN TASSO DI RIV CONOSCIUTO CHE MONTANTE AVRO' TRA X ANNI? | KXU19: INVESTENDO UN CAPITALE ANNUALE CONOSCIUTO, CON O SENZA CAPITALE INIZIALE A UN TASSO DI RIV CONOSCIUTO CHE MONTANTE AVRO' TRA X ANNI? | KYK19: INVESTENDO UN CAPITALE ANNUALE CONOSCIUTO, CON O SENZA CAPITALE INIZIALE A UN TASSO DI RIV CONOSCIUTO CHE MONTANTE AVRO' TRA X ANNI? | KZA19: INVESTENDO UN CAPITALE ANNUALE CONOSCIUTO, CON O SENZA CAPITALE INIZIALE A UN TASSO DI RIV CONOSCIUTO CHE MONTANTE AVRO' TRA X ANNI? | KZQ19: INVESTENDO UN CAPITALE ANNUALE CONOSCIUTO, CON O SENZA CAPITALE INIZIALE A UN TASSO DI RIV CONOSCIUTO CHE MONTANTE AVRO' TRA X ANNI? | LAG19: INVESTENDO UN CAPITALE ANNUALE CONOSCIUTO, CON O SENZA CAPITALE INIZIALE A UN TASSO DI RIV CONOSCIUTO CHE MONTANTE AVRO' TRA X ANNI? | LAW19: INVESTENDO UN CAPITALE ANNUALE CONOSCIUTO, CON O SENZA CAPITALE INIZIALE A UN TASSO DI RIV CONOSCIUTO CHE MONTANTE AVRO' TRA X ANNI? | LBM19: INVESTENDO UN CAPITALE ANNUALE CONOSCIUTO, CON O SENZA CAPITALE INIZIALE A UN TASSO DI RIV CONOSCIUTO CHE MONTANTE AVRO' TRA X ANNI? | LCC19: INVESTENDO UN CAPITALE ANNUALE CONOSCIUTO, CON O SENZA CAPITALE INIZIALE A UN TASSO DI RIV CONOSCIUTO CHE MONTANTE AVRO' TRA X ANNI? | LCS19: INVESTENDO UN CAPITALE ANNUALE CONOSCIUTO, CON O SENZA CAPITALE INIZIALE A UN TASSO DI RIV CONOSCIUTO CHE MONTANTE AVRO' TRA X ANNI? | LDI19: INVESTENDO UN CAPITALE ANNUALE CONOSCIUTO, CON O SENZA CAPITALE INIZIALE A UN TASSO DI RIV CONOSCIUTO CHE MONTANTE AVRO' TRA X ANNI? | LDY19: INVESTENDO UN CAPITALE ANNUALE CONOSCIUTO, CON O SENZA CAPITALE INIZIALE A UN TASSO DI RIV CONOSCIUTO CHE MONTANTE AVRO' TRA X ANNI? | LEO19: INVESTENDO UN CAPITALE ANNUALE CONOSCIUTO, CON O SENZA CAPITALE INIZIALE A UN TASSO DI RIV CONOSCIUTO CHE MONTANTE AVRO' TRA X ANNI? | LFE19: INVESTENDO UN CAPITALE ANNUALE CONOSCIUTO, CON O SENZA CAPITALE INIZIALE A UN TASSO DI RIV CONOSCIUTO CHE MONTANTE AVRO' TRA X ANNI? | LFU19: INVESTENDO UN CAPITALE ANNUALE CONOSCIUTO, CON O SENZA CAPITALE INIZIALE A UN TASSO DI RIV CONOSCIUTO CHE MONTANTE AVRO' TRA X ANNI? | LGK19: INVESTENDO UN CAPITALE ANNUALE CONOSCIUTO, CON O SENZA CAPITALE INIZIALE A UN TASSO DI RIV CONOSCIUTO CHE MONTANTE AVRO' TRA X ANNI? | LHA19: INVESTENDO UN CAPITALE ANNUALE CONOSCIUTO, CON O SENZA CAPITALE INIZIALE A UN TASSO DI RIV CONOSCIUTO CHE MONTANTE AVRO' TRA X ANNI? | LHQ19: INVESTENDO UN CAPITALE ANNUALE CONOSCIUTO, CON O SENZA CAPITALE INIZIALE A UN TASSO DI RIV CONOSCIUTO CHE MONTANTE AVRO' TRA X ANNI? | LIG19: INVESTENDO UN CAPITALE ANNUALE CONOSCIUTO, CON O SENZA CAPITALE INIZIALE A UN TASSO DI RIV CONOSCIUTO CHE MONTANTE AVRO' TRA X ANNI? | LIW19: INVESTENDO UN CAPITALE ANNUALE CONOSCIUTO, CON O SENZA CAPITALE INIZIALE A UN TASSO DI RIV CONOSCIUTO CHE MONTANTE AVRO' TRA X ANNI? | LJM19: INVESTENDO UN CAPITALE ANNUALE CONOSCIUTO, CON O SENZA CAPITALE INIZIALE A UN TASSO DI RIV CONOSCIUTO CHE MONTANTE AVRO' TRA X ANNI? | LKC19: INVESTENDO UN CAPITALE ANNUALE CONOSCIUTO, CON O SENZA CAPITALE INIZIALE A UN TASSO DI RIV CONOSCIUTO CHE MONTANTE AVRO' TRA X ANNI? | LKS19: INVESTENDO UN CAPITALE ANNUALE CONOSCIUTO, CON O SENZA CAPITALE INIZIALE A UN TASSO DI RIV CONOSCIUTO CHE MONTANTE AVRO' TRA X ANNI? | LLI19: INVESTENDO UN CAPITALE ANNUALE CONOSCIUTO, CON O SENZA CAPITALE INIZIALE A UN TASSO DI RIV CONOSCIUTO CHE MONTANTE AVRO' TRA X ANNI? | LLY19: INVESTENDO UN CAPITALE ANNUALE CONOSCIUTO, CON O SENZA CAPITALE INIZIALE A UN TASSO DI RIV CONOSCIUTO CHE MONTANTE AVRO' TRA X ANNI? | LMO19: INVESTENDO UN CAPITALE ANNUALE CONOSCIUTO, CON O SENZA CAPITALE INIZIALE A UN TASSO DI RIV CONOSCIUTO CHE MONTANTE AVRO' TRA X ANNI? | LNE19: INVESTENDO UN CAPITALE ANNUALE CONOSCIUTO, CON O SENZA CAPITALE INIZIALE A UN TASSO DI RIV CONOSCIUTO CHE MONTANTE AVRO' TRA X ANNI? | LNU19: INVESTENDO UN CAPITALE ANNUALE CONOSCIUTO, CON O SENZA CAPITALE INIZIALE A UN TASSO DI RIV CONOSCIUTO CHE MONTANTE AVRO' TRA X ANNI? | LOK19: INVESTENDO UN CAPITALE ANNUALE CONOSCIUTO, CON O SENZA CAPITALE INIZIALE A UN TASSO DI RIV CONOSCIUTO CHE MONTANTE AVRO' TRA X ANNI? | LPA19: INVESTENDO UN CAPITALE ANNUALE CONOSCIUTO, CON O SENZA CAPITALE INIZIALE A UN TASSO DI RIV CONOSCIUTO CHE MONTANTE AVRO' TRA X ANNI? | LPQ19: INVESTENDO UN CAPITALE ANNUALE CONOSCIUTO, CON O SENZA CAPITALE INIZIALE A UN TASSO DI RIV CONOSCIUTO CHE MONTANTE AVRO' TRA X ANNI? | LQG19: INVESTENDO UN CAPITALE ANNUALE CONOSCIUTO, CON O SENZA CAPITALE INIZIALE A UN TASSO DI RIV CONOSCIUTO CHE MONTANTE AVRO' TRA X ANNI? | LQW19: INVESTENDO UN CAPITALE ANNUALE CONOSCIUTO, CON O SENZA CAPITALE INIZIALE A UN TASSO DI RIV CONOSCIUTO CHE MONTANTE AVRO' TRA X ANNI? | LRM19: INVESTENDO UN CAPITALE ANNUALE CONOSCIUTO, CON O SENZA CAPITALE INIZIALE A UN TASSO DI RIV CONOSCIUTO CHE MONTANTE AVRO' TRA X ANNI? | LSC19: INVESTENDO UN CAPITALE ANNUALE CONOSCIUTO, CON O SENZA CAPITALE INIZIALE A UN TASSO DI RIV CONOSCIUTO CHE MONTANTE AVRO' TRA X ANNI? | LSS19: INVESTENDO UN CAPITALE ANNUALE CONOSCIUTO, CON O SENZA CAPITALE INIZIALE A UN TASSO DI RIV CONOSCIUTO CHE MONTANTE AVRO' TRA X ANNI? | LTI19: INVESTENDO UN CAPITALE ANNUALE CONOSCIUTO, CON O SENZA CAPITALE INIZIALE A UN TASSO DI RIV CONOSCIUTO CHE MONTANTE AVRO' TRA X ANNI? | LTY19: INVESTENDO UN CAPITALE ANNUALE CONOSCIUTO, CON O SENZA CAPITALE INIZIALE A UN TASSO DI RIV CONOSCIUTO CHE MONTANTE AVRO' TRA X ANNI? | LUO19: INVESTENDO UN CAPITALE ANNUALE CONOSCIUTO, CON O SENZA CAPITALE INIZIALE A UN TASSO DI RIV CONOSCIUTO CHE MONTANTE AVRO' TRA X ANNI? | LVE19: INVESTENDO UN CAPITALE ANNUALE CONOSCIUTO, CON O SENZA CAPITALE INIZIALE A UN TASSO DI RIV CONOSCIUTO CHE MONTANTE AVRO' TRA X ANNI? | LVU19: INVESTENDO UN CAPITALE ANNUALE CONOSCIUTO, CON O SENZA CAPITALE INIZIALE A UN TASSO DI RIV CONOSCIUTO CHE MONTANTE AVRO' TRA X ANNI? | LWK19: INVESTENDO UN CAPITALE ANNUALE CONOSCIUTO, CON O SENZA CAPITALE INIZIALE A UN TASSO DI RIV CONOSCIUTO CHE MONTANTE AVRO' TRA X ANNI? | LXA19: INVESTENDO UN CAPITALE ANNUALE CONOSCIUTO, CON O SENZA CAPITALE INIZIALE A UN TASSO DI RIV CONOSCIUTO CHE MONTANTE AVRO' TRA X ANNI? | LXQ19: INVESTENDO UN CAPITALE ANNUALE CONOSCIUTO, CON O SENZA CAPITALE INIZIALE A UN TASSO DI RIV CONOSCIUTO CHE MONTANTE AVRO' TRA X ANNI? | LYG19: INVESTENDO UN CAPITALE ANNUALE CONOSCIUTO, CON O SENZA CAPITALE INIZIALE A UN TASSO DI RIV CONOSCIUTO CHE MONTANTE AVRO' TRA X ANNI? | LYW19: INVESTENDO UN CAPITALE ANNUALE CONOSCIUTO, CON O SENZA CAPITALE INIZIALE A UN TASSO DI RIV CONOSCIUTO CHE MONTANTE AVRO' TRA X ANNI? | LZM19: INVESTENDO UN CAPITALE ANNUALE CONOSCIUTO, CON O SENZA CAPITALE INIZIALE A UN TASSO DI RIV CONOSCIUTO CHE MONTANTE AVRO' TRA X ANNI? | MAC19: INVESTENDO UN CAPITALE ANNUALE CONOSCIUTO, CON O SENZA CAPITALE INIZIALE A UN TASSO DI RIV CONOSCIUTO CHE MONTANTE AVRO' TRA X ANNI? | MAS19: INVESTENDO UN CAPITALE ANNUALE CONOSCIUTO, CON O SENZA CAPITALE INIZIALE A UN TASSO DI RIV CONOSCIUTO CHE MONTANTE AVRO' TRA X ANNI? | MBI19: INVESTENDO UN CAPITALE ANNUALE CONOSCIUTO, CON O SENZA CAPITALE INIZIALE A UN TASSO DI RIV CONOSCIUTO CHE MONTANTE AVRO' TRA X ANNI? | MBY19: INVESTENDO UN CAPITALE ANNUALE CONOSCIUTO, CON O SENZA CAPITALE INIZIALE A UN TASSO DI RIV CONOSCIUTO CHE MONTANTE AVRO' TRA X ANNI? | MCO19: INVESTENDO UN CAPITALE ANNUALE CONOSCIUTO, CON O SENZA CAPITALE INIZIALE A UN TASSO DI RIV CONOSCIUTO CHE MONTANTE AVRO' TRA X ANNI? | MDE19: INVESTENDO UN CAPITALE ANNUALE CONOSCIUTO, CON O SENZA CAPITALE INIZIALE A UN TASSO DI RIV CONOSCIUTO CHE MONTANTE AVRO' TRA X ANNI? | MDU19: INVESTENDO UN CAPITALE ANNUALE CONOSCIUTO, CON O SENZA CAPITALE INIZIALE A UN TASSO DI RIV CONOSCIUTO CHE MONTANTE AVRO' TRA X ANNI? | MEK19: INVESTENDO UN CAPITALE ANNUALE CONOSCIUTO, CON O SENZA CAPITALE INIZIALE A UN TASSO DI RIV CONOSCIUTO CHE MONTANTE AVRO' TRA X ANNI? | MFA19: INVESTENDO UN CAPITALE ANNUALE CONOSCIUTO, CON O SENZA CAPITALE INIZIALE A UN TASSO DI RIV CONOSCIUTO CHE MONTANTE AVRO' TRA X ANNI? | MFQ19: INVESTENDO UN CAPITALE ANNUALE CONOSCIUTO, CON O SENZA CAPITALE INIZIALE A UN TASSO DI RIV CONOSCIUTO CHE MONTANTE AVRO' TRA X ANNI? | MGG19: INVESTENDO UN CAPITALE ANNUALE CONOSCIUTO, CON O SENZA CAPITALE INIZIALE A UN TASSO DI RIV CONOSCIUTO CHE MONTANTE AVRO' TRA X ANNI? | MGW19: INVESTENDO UN CAPITALE ANNUALE CONOSCIUTO, CON O SENZA CAPITALE INIZIALE A UN TASSO DI RIV CONOSCIUTO CHE MONTANTE AVRO' TRA X ANNI? | MHM19: INVESTENDO UN CAPITALE ANNUALE CONOSCIUTO, CON O SENZA CAPITALE INIZIALE A UN TASSO DI RIV CONOSCIUTO CHE MONTANTE AVRO' TRA X ANNI? | MIC19: INVESTENDO UN CAPITALE ANNUALE CONOSCIUTO, CON O SENZA CAPITALE INIZIALE A UN TASSO DI RIV CONOSCIUTO CHE MONTANTE AVRO' TRA X ANNI? | MIS19: INVESTENDO UN CAPITALE ANNUALE CONOSCIUTO, CON O SENZA CAPITALE INIZIALE A UN TASSO DI RIV CONOSCIUTO CHE MONTANTE AVRO' TRA X ANNI? | MJI19: INVESTENDO UN CAPITALE ANNUALE CONOSCIUTO, CON O SENZA CAPITALE INIZIALE A UN TASSO DI RIV CONOSCIUTO CHE MONTANTE AVRO' TRA X ANNI? | MJY19: INVESTENDO UN CAPITALE ANNUALE CONOSCIUTO, CON O SENZA CAPITALE INIZIALE A UN TASSO DI RIV CONOSCIUTO CHE MONTANTE AVRO' TRA X ANNI? | MKO19: INVESTENDO UN CAPITALE ANNUALE CONOSCIUTO, CON O SENZA CAPITALE INIZIALE A UN TASSO DI RIV CONOSCIUTO CHE MONTANTE AVRO' TRA X ANNI? | MLE19: INVESTENDO UN CAPITALE ANNUALE CONOSCIUTO, CON O SENZA CAPITALE INIZIALE A UN TASSO DI RIV CONOSCIUTO CHE MONTANTE AVRO' TRA X ANNI? | MLU19: INVESTENDO UN CAPITALE ANNUALE CONOSCIUTO, CON O SENZA CAPITALE INIZIALE A UN TASSO DI RIV CONOSCIUTO CHE MONTANTE AVRO' TRA X ANNI? | MMK19: INVESTENDO UN CAPITALE ANNUALE CONOSCIUTO, CON O SENZA CAPITALE INIZIALE A UN TASSO DI RIV CONOSCIUTO CHE MONTANTE AVRO' TRA X ANNI? | MNA19: INVESTENDO UN CAPITALE ANNUALE CONOSCIUTO, CON O SENZA CAPITALE INIZIALE A UN TASSO DI RIV CONOSCIUTO CHE MONTANTE AVRO' TRA X ANNI? | MNQ19: INVESTENDO UN CAPITALE ANNUALE CONOSCIUTO, CON O SENZA CAPITALE INIZIALE A UN TASSO DI RIV CONOSCIUTO CHE MONTANTE AVRO' TRA X ANNI? | MOG19: INVESTENDO UN CAPITALE ANNUALE CONOSCIUTO, CON O SENZA CAPITALE INIZIALE A UN TASSO DI RIV CONOSCIUTO CHE MONTANTE AVRO' TRA X ANNI? | MOW19: INVESTENDO UN CAPITALE ANNUALE CONOSCIUTO, CON O SENZA CAPITALE INIZIALE A UN TASSO DI RIV CONOSCIUTO CHE MONTANTE AVRO' TRA X ANNI? | MPM19: INVESTENDO UN CAPITALE ANNUALE CONOSCIUTO, CON O SENZA CAPITALE INIZIALE A UN TASSO DI RIV CONOSCIUTO CHE MONTANTE AVRO' TRA X ANNI? | MQC19: INVESTENDO UN CAPITALE ANNUALE CONOSCIUTO, CON O SENZA CAPITALE INIZIALE A UN TASSO DI RIV CONOSCIUTO CHE MONTANTE AVRO' TRA X ANNI? | MQS19: INVESTENDO UN CAPITALE ANNUALE CONOSCIUTO, CON O SENZA CAPITALE INIZIALE A UN TASSO DI RIV CONOSCIUTO CHE MONTANTE AVRO' TRA X ANNI? | MRI19: INVESTENDO UN CAPITALE ANNUALE CONOSCIUTO, CON O SENZA CAPITALE INIZIALE A UN TASSO DI RIV CONOSCIUTO CHE MONTANTE AVRO' TRA X ANNI? | MRY19: INVESTENDO UN CAPITALE ANNUALE CONOSCIUTO, CON O SENZA CAPITALE INIZIALE A UN TASSO DI RIV CONOSCIUTO CHE MONTANTE AVRO' TRA X ANNI? | MSO19: INVESTENDO UN CAPITALE ANNUALE CONOSCIUTO, CON O SENZA CAPITALE INIZIALE A UN TASSO DI RIV CONOSCIUTO CHE MONTANTE AVRO' TRA X ANNI? | MTE19: INVESTENDO UN CAPITALE ANNUALE CONOSCIUTO, CON O SENZA CAPITALE INIZIALE A UN TASSO DI RIV CONOSCIUTO CHE MONTANTE AVRO' TRA X ANNI? | MTU19: INVESTENDO UN CAPITALE ANNUALE CONOSCIUTO, CON O SENZA CAPITALE INIZIALE A UN TASSO DI RIV CONOSCIUTO CHE MONTANTE AVRO' TRA X ANNI? | MUK19: INVESTENDO UN CAPITALE ANNUALE CONOSCIUTO, CON O SENZA CAPITALE INIZIALE A UN TASSO DI RIV CONOSCIUTO CHE MONTANTE AVRO' TRA X ANNI? | MVA19: INVESTENDO UN CAPITALE ANNUALE CONOSCIUTO, CON O SENZA CAPITALE INIZIALE A UN TASSO DI RIV CONOSCIUTO CHE MONTANTE AVRO' TRA X ANNI? | MVQ19: INVESTENDO UN CAPITALE ANNUALE CONOSCIUTO, CON O SENZA CAPITALE INIZIALE A UN TASSO DI RIV CONOSCIUTO CHE MONTANTE AVRO' TRA X ANNI? | MWG19: INVESTENDO UN CAPITALE ANNUALE CONOSCIUTO, CON O SENZA CAPITALE INIZIALE A UN TASSO DI RIV CONOSCIUTO CHE MONTANTE AVRO' TRA X ANNI? | MWW19: INVESTENDO UN CAPITALE ANNUALE CONOSCIUTO, CON O SENZA CAPITALE INIZIALE A UN TASSO DI RIV CONOSCIUTO CHE MONTANTE AVRO' TRA X ANNI? | MXM19: INVESTENDO UN CAPITALE ANNUALE CONOSCIUTO, CON O SENZA CAPITALE INIZIALE A UN TASSO DI RIV CONOSCIUTO CHE MONTANTE AVRO' TRA X ANNI? | MYC19: INVESTENDO UN CAPITALE ANNUALE CONOSCIUTO, CON O SENZA CAPITALE INIZIALE A UN TASSO DI RIV CONOSCIUTO CHE MONTANTE AVRO' TRA X ANNI? | MYS19: INVESTENDO UN CAPITALE ANNUALE CONOSCIUTO, CON O SENZA CAPITALE INIZIALE A UN TASSO DI RIV CONOSCIUTO CHE MONTANTE AVRO' TRA X ANNI? | MZI19: INVESTENDO UN CAPITALE ANNUALE CONOSCIUTO, CON O SENZA CAPITALE INIZIALE A UN TASSO DI RIV CONOSCIUTO CHE MONTANTE AVRO' TRA X ANNI? | MZY19: INVESTENDO UN CAPITALE ANNUALE CONOSCIUTO, CON O SENZA CAPITALE INIZIALE A UN TASSO DI RIV CONOSCIUTO CHE MONTANTE AVRO' TRA X ANNI? | NAO19: INVESTENDO UN CAPITALE ANNUALE CONOSCIUTO, CON O SENZA CAPITALE INIZIALE A UN TASSO DI RIV CONOSCIUTO CHE MONTANTE AVRO' TRA X ANNI? | NBE19: INVESTENDO UN CAPITALE ANNUALE CONOSCIUTO, CON O SENZA CAPITALE INIZIALE A UN TASSO DI RIV CONOSCIUTO CHE MONTANTE AVRO' TRA X ANNI? | NBU19: INVESTENDO UN CAPITALE ANNUALE CONOSCIUTO, CON O SENZA CAPITALE INIZIALE A UN TASSO DI RIV CONOSCIUTO CHE MONTANTE AVRO' TRA X ANNI? | NCK19: INVESTENDO UN CAPITALE ANNUALE CONOSCIUTO, CON O SENZA CAPITALE INIZIALE A UN TASSO DI RIV CONOSCIUTO CHE MONTANTE AVRO' TRA X ANNI? | NDA19: INVESTENDO UN CAPITALE ANNUALE CONOSCIUTO, CON O SENZA CAPITALE INIZIALE A UN TASSO DI RIV CONOSCIUTO CHE MONTANTE AVRO' TRA X ANNI? | NDQ19: INVESTENDO UN CAPITALE ANNUALE CONOSCIUTO, CON O SENZA CAPITALE INIZIALE A UN TASSO DI RIV CONOSCIUTO CHE MONTANTE AVRO' TRA X ANNI? | NEG19: INVESTENDO UN CAPITALE ANNUALE CONOSCIUTO, CON O SENZA CAPITALE INIZIALE A UN TASSO DI RIV CONOSCIUTO CHE MONTANTE AVRO' TRA X ANNI? | NEW19: INVESTENDO UN CAPITALE ANNUALE CONOSCIUTO, CON O SENZA CAPITALE INIZIALE A UN TASSO DI RIV CONOSCIUTO CHE MONTANTE AVRO' TRA X ANNI? | NFM19: INVESTENDO UN CAPITALE ANNUALE CONOSCIUTO, CON O SENZA CAPITALE INIZIALE A UN TASSO DI RIV CONOSCIUTO CHE MONTANTE AVRO' TRA X ANNI? | NGC19: INVESTENDO UN CAPITALE ANNUALE CONOSCIUTO, CON O SENZA CAPITALE INIZIALE A UN TASSO DI RIV CONOSCIUTO CHE MONTANTE AVRO' TRA X ANNI? | NGS19: INVESTENDO UN CAPITALE ANNUALE CONOSCIUTO, CON O SENZA CAPITALE INIZIALE A UN TASSO DI RIV CONOSCIUTO CHE MONTANTE AVRO' TRA X ANNI? | NHI19: INVESTENDO UN CAPITALE ANNUALE CONOSCIUTO, CON O SENZA CAPITALE INIZIALE A UN TASSO DI RIV CONOSCIUTO CHE MONTANTE AVRO' TRA X ANNI? | NHY19: INVESTENDO UN CAPITALE ANNUALE CONOSCIUTO, CON O SENZA CAPITALE INIZIALE A UN TASSO DI RIV CONOSCIUTO CHE MONTANTE AVRO' TRA X ANNI? | NIO19: INVESTENDO UN CAPITALE ANNUALE CONOSCIUTO, CON O SENZA CAPITALE INIZIALE A UN TASSO DI RIV CONOSCIUTO CHE MONTANTE AVRO' TRA X ANNI? | NJE19: INVESTENDO UN CAPITALE ANNUALE CONOSCIUTO, CON O SENZA CAPITALE INIZIALE A UN TASSO DI RIV CONOSCIUTO CHE MONTANTE AVRO' TRA X ANNI? | NJU19: INVESTENDO UN CAPITALE ANNUALE CONOSCIUTO, CON O SENZA CAPITALE INIZIALE A UN TASSO DI RIV CONOSCIUTO CHE MONTANTE AVRO' TRA X ANNI? | NKK19: INVESTENDO UN CAPITALE ANNUALE CONOSCIUTO, CON O SENZA CAPITALE INIZIALE A UN TASSO DI RIV CONOSCIUTO CHE MONTANTE AVRO' TRA X ANNI? | NLA19: INVESTENDO UN CAPITALE ANNUALE CONOSCIUTO, CON O SENZA CAPITALE INIZIALE A UN TASSO DI RIV CONOSCIUTO CHE MONTANTE AVRO' TRA X ANNI? | NLQ19: INVESTENDO UN CAPITALE ANNUALE CONOSCIUTO, CON O SENZA CAPITALE INIZIALE A UN TASSO DI RIV CONOSCIUTO CHE MONTANTE AVRO' TRA X ANNI? | NMG19: INVESTENDO UN CAPITALE ANNUALE CONOSCIUTO, CON O SENZA CAPITALE INIZIALE A UN TASSO DI RIV CONOSCIUTO CHE MONTANTE AVRO' TRA X ANNI? | NMW19: INVESTENDO UN CAPITALE ANNUALE CONOSCIUTO, CON O SENZA CAPITALE INIZIALE A UN TASSO DI RIV CONOSCIUTO CHE MONTANTE AVRO' TRA X ANNI? | NNM19: INVESTENDO UN CAPITALE ANNUALE CONOSCIUTO, CON O SENZA CAPITALE INIZIALE A UN TASSO DI RIV CONOSCIUTO CHE MONTANTE AVRO' TRA X ANNI? | NOC19: INVESTENDO UN CAPITALE ANNUALE CONOSCIUTO, CON O SENZA CAPITALE INIZIALE A UN TASSO DI RIV CONOSCIUTO CHE MONTANTE AVRO' TRA X ANNI? | NOS19: INVESTENDO UN CAPITALE ANNUALE CONOSCIUTO, CON O SENZA CAPITALE INIZIALE A UN TASSO DI RIV CONOSCIUTO CHE MONTANTE AVRO' TRA X ANNI? | NPI19: INVESTENDO UN CAPITALE ANNUALE CONOSCIUTO, CON O SENZA CAPITALE INIZIALE A UN TASSO DI RIV CONOSCIUTO CHE MONTANTE AVRO' TRA X ANNI? | NPY19: INVESTENDO UN CAPITALE ANNUALE CONOSCIUTO, CON O SENZA CAPITALE INIZIALE A UN TASSO DI RIV CONOSCIUTO CHE MONTANTE AVRO' TRA X ANNI? | NQO19: INVESTENDO UN CAPITALE ANNUALE CONOSCIUTO, CON O SENZA CAPITALE INIZIALE A UN TASSO DI RIV CONOSCIUTO CHE MONTANTE AVRO' TRA X ANNI? | NRE19: INVESTENDO UN CAPITALE ANNUALE CONOSCIUTO, CON O SENZA CAPITALE INIZIALE A UN TASSO DI RIV CONOSCIUTO CHE MONTANTE AVRO' TRA X ANNI? | NRU19: INVESTENDO UN CAPITALE ANNUALE CONOSCIUTO, CON O SENZA CAPITALE INIZIALE A UN TASSO DI RIV CONOSCIUTO CHE MONTANTE AVRO' TRA X ANNI? | NSK19: INVESTENDO UN CAPITALE ANNUALE CONOSCIUTO, CON O SENZA CAPITALE INIZIALE A UN TASSO DI RIV CONOSCIUTO CHE MONTANTE AVRO' TRA X ANNI? | NTA19: INVESTENDO UN CAPITALE ANNUALE CONOSCIUTO, CON O SENZA CAPITALE INIZIALE A UN TASSO DI RIV CONOSCIUTO CHE MONTANTE AVRO' TRA X ANNI? | NTQ19: INVESTENDO UN CAPITALE ANNUALE CONOSCIUTO, CON O SENZA CAPITALE INIZIALE A UN TASSO DI RIV CONOSCIUTO CHE MONTANTE AVRO' TRA X ANNI? | NUG19: INVESTENDO UN CAPITALE ANNUALE CONOSCIUTO, CON O SENZA CAPITALE INIZIALE A UN TASSO DI RIV CONOSCIUTO CHE MONTANTE AVRO' TRA X ANNI? | NUW19: INVESTENDO UN CAPITALE ANNUALE CONOSCIUTO, CON O SENZA CAPITALE INIZIALE A UN TASSO DI RIV CONOSCIUTO CHE MONTANTE AVRO' TRA X ANNI? | NVM19: INVESTENDO UN CAPITALE ANNUALE CONOSCIUTO, CON O SENZA CAPITALE INIZIALE A UN TASSO DI RIV CONOSCIUTO CHE MONTANTE AVRO' TRA X ANNI? | NWC19: INVESTENDO UN CAPITALE ANNUALE CONOSCIUTO, CON O SENZA CAPITALE INIZIALE A UN TASSO DI RIV CONOSCIUTO CHE MONTANTE AVRO' TRA X ANNI? | NWS19: INVESTENDO UN CAPITALE ANNUALE CONOSCIUTO, CON O SENZA CAPITALE INIZIALE A UN TASSO DI RIV CONOSCIUTO CHE MONTANTE AVRO' TRA X ANNI? | NXI19: INVESTENDO UN CAPITALE ANNUALE CONOSCIUTO, CON O SENZA CAPITALE INIZIALE A UN TASSO DI RIV CONOSCIUTO CHE MONTANTE AVRO' TRA X ANNI? | NXY19: INVESTENDO UN CAPITALE ANNUALE CONOSCIUTO, CON O SENZA CAPITALE INIZIALE A UN TASSO DI RIV CONOSCIUTO CHE MONTANTE AVRO' TRA X ANNI? | NYO19: INVESTENDO UN CAPITALE ANNUALE CONOSCIUTO, CON O SENZA CAPITALE INIZIALE A UN TASSO DI RIV CONOSCIUTO CHE MONTANTE AVRO' TRA X ANNI? | NZE19: INVESTENDO UN CAPITALE ANNUALE CONOSCIUTO, CON O SENZA CAPITALE INIZIALE A UN TASSO DI RIV CONOSCIUTO CHE MONTANTE AVRO' TRA X ANNI? | NZU19: INVESTENDO UN CAPITALE ANNUALE CONOSCIUTO, CON O SENZA CAPITALE INIZIALE A UN TASSO DI RIV CONOSCIUTO CHE MONTANTE AVRO' TRA X ANNI? | OAK19: INVESTENDO UN CAPITALE ANNUALE CONOSCIUTO, CON O SENZA CAPITALE INIZIALE A UN TASSO DI RIV CONOSCIUTO CHE MONTANTE AVRO' TRA X ANNI? | OBA19: INVESTENDO UN CAPITALE ANNUALE CONOSCIUTO, CON O SENZA CAPITALE INIZIALE A UN TASSO DI RIV CONOSCIUTO CHE MONTANTE AVRO' TRA X ANNI? | OBQ19: INVESTENDO UN CAPITALE ANNUALE CONOSCIUTO, CON O SENZA CAPITALE INIZIALE A UN TASSO DI RIV CONOSCIUTO CHE MONTANTE AVRO' TRA X ANNI? | OCG19: INVESTENDO UN CAPITALE ANNUALE CONOSCIUTO, CON O SENZA CAPITALE INIZIALE A UN TASSO DI RIV CONOSCIUTO CHE MONTANTE AVRO' TRA X ANNI? | OCW19: INVESTENDO UN CAPITALE ANNUALE CONOSCIUTO, CON O SENZA CAPITALE INIZIALE A UN TASSO DI RIV CONOSCIUTO CHE MONTANTE AVRO' TRA X ANNI? | ODM19: INVESTENDO UN CAPITALE ANNUALE CONOSCIUTO, CON O SENZA CAPITALE INIZIALE A UN TASSO DI RIV CONOSCIUTO CHE MONTANTE AVRO' TRA X ANNI? | OEC19: INVESTENDO UN CAPITALE ANNUALE CONOSCIUTO, CON O SENZA CAPITALE INIZIALE A UN TASSO DI RIV CONOSCIUTO CHE MONTANTE AVRO' TRA X ANNI? | OES19: INVESTENDO UN CAPITALE ANNUALE CONOSCIUTO, CON O SENZA CAPITALE INIZIALE A UN TASSO DI RIV CONOSCIUTO CHE MONTANTE AVRO' TRA X ANNI? | OFI19: INVESTENDO UN CAPITALE ANNUALE CONOSCIUTO, CON O SENZA CAPITALE INIZIALE A UN TASSO DI RIV CONOSCIUTO CHE MONTANTE AVRO' TRA X ANNI? | OFY19: INVESTENDO UN CAPITALE ANNUALE CONOSCIUTO, CON O SENZA CAPITALE INIZIALE A UN TASSO DI RIV CONOSCIUTO CHE MONTANTE AVRO' TRA X ANNI? | OGO19: INVESTENDO UN CAPITALE ANNUALE CONOSCIUTO, CON O SENZA CAPITALE INIZIALE A UN TASSO DI RIV CONOSCIUTO CHE MONTANTE AVRO' TRA X ANNI? | OHE19: INVESTENDO UN CAPITALE ANNUALE CONOSCIUTO, CON O SENZA CAPITALE INIZIALE A UN TASSO DI RIV CONOSCIUTO CHE MONTANTE AVRO' TRA X ANNI? | OHU19: INVESTENDO UN CAPITALE ANNUALE CONOSCIUTO, CON O SENZA CAPITALE INIZIALE A UN TASSO DI RIV CONOSCIUTO CHE MONTANTE AVRO' TRA X ANNI? | OIK19: INVESTENDO UN CAPITALE ANNUALE CONOSCIUTO, CON O SENZA CAPITALE INIZIALE A UN TASSO DI RIV CONOSCIUTO CHE MONTANTE AVRO' TRA X ANNI? | OJA19: INVESTENDO UN CAPITALE ANNUALE CONOSCIUTO, CON O SENZA CAPITALE INIZIALE A UN TASSO DI RIV CONOSCIUTO CHE MONTANTE AVRO' TRA X ANNI? | OJQ19: INVESTENDO UN CAPITALE ANNUALE CONOSCIUTO, CON O SENZA CAPITALE INIZIALE A UN TASSO DI RIV CONOSCIUTO CHE MONTANTE AVRO' TRA X ANNI? | OKG19: INVESTENDO UN CAPITALE ANNUALE CONOSCIUTO, CON O SENZA CAPITALE INIZIALE A UN TASSO DI RIV CONOSCIUTO CHE MONTANTE AVRO' TRA X ANNI? | OKW19: INVESTENDO UN CAPITALE ANNUALE CONOSCIUTO, CON O SENZA CAPITALE INIZIALE A UN TASSO DI RIV CONOSCIUTO CHE MONTANTE AVRO' TRA X ANNI? | OLM19: INVESTENDO UN CAPITALE ANNUALE CONOSCIUTO, CON O SENZA CAPITALE INIZIALE A UN TASSO DI RIV CONOSCIUTO CHE MONTANTE AVRO' TRA X ANNI? | OMC19: INVESTENDO UN CAPITALE ANNUALE CONOSCIUTO, CON O SENZA CAPITALE INIZIALE A UN TASSO DI RIV CONOSCIUTO CHE MONTANTE AVRO' TRA X ANNI? | OMS19: INVESTENDO UN CAPITALE ANNUALE CONOSCIUTO, CON O SENZA CAPITALE INIZIALE A UN TASSO DI RIV CONOSCIUTO CHE MONTANTE AVRO' TRA X ANNI? | ONI19: INVESTENDO UN CAPITALE ANNUALE CONOSCIUTO, CON O SENZA CAPITALE INIZIALE A UN TASSO DI RIV CONOSCIUTO CHE MONTANTE AVRO' TRA X ANNI? | ONY19: INVESTENDO UN CAPITALE ANNUALE CONOSCIUTO, CON O SENZA CAPITALE INIZIALE A UN TASSO DI RIV CONOSCIUTO CHE MONTANTE AVRO' TRA X ANNI? | OOO19: INVESTENDO UN CAPITALE ANNUALE CONOSCIUTO, CON O SENZA CAPITALE INIZIALE A UN TASSO DI RIV CONOSCIUTO CHE MONTANTE AVRO' TRA X ANNI? | OPE19: INVESTENDO UN CAPITALE ANNUALE CONOSCIUTO, CON O SENZA CAPITALE INIZIALE A UN TASSO DI RIV CONOSCIUTO CHE MONTANTE AVRO' TRA X ANNI? | OPU19: INVESTENDO UN CAPITALE ANNUALE CONOSCIUTO, CON O SENZA CAPITALE INIZIALE A UN TASSO DI RIV CONOSCIUTO CHE MONTANTE AVRO' TRA X ANNI? | OQK19: INVESTENDO UN CAPITALE ANNUALE CONOSCIUTO, CON O SENZA CAPITALE INIZIALE A UN TASSO DI RIV CONOSCIUTO CHE MONTANTE AVRO' TRA X ANNI? | ORA19: INVESTENDO UN CAPITALE ANNUALE CONOSCIUTO, CON O SENZA CAPITALE INIZIALE A UN TASSO DI RIV CONOSCIUTO CHE MONTANTE AVRO' TRA X ANNI? | ORQ19: INVESTENDO UN CAPITALE ANNUALE CONOSCIUTO, CON O SENZA CAPITALE INIZIALE A UN TASSO DI RIV CONOSCIUTO CHE MONTANTE AVRO' TRA X ANNI? | OSG19: INVESTENDO UN CAPITALE ANNUALE CONOSCIUTO, CON O SENZA CAPITALE INIZIALE A UN TASSO DI RIV CONOSCIUTO CHE MONTANTE AVRO' TRA X ANNI? | OSW19: INVESTENDO UN CAPITALE ANNUALE CONOSCIUTO, CON O SENZA CAPITALE INIZIALE A UN TASSO DI RIV CONOSCIUTO CHE MONTANTE AVRO' TRA X ANNI? | OTM19: INVESTENDO UN CAPITALE ANNUALE CONOSCIUTO, CON O SENZA CAPITALE INIZIALE A UN TASSO DI RIV CONOSCIUTO CHE MONTANTE AVRO' TRA X ANNI? | OUC19: INVESTENDO UN CAPITALE ANNUALE CONOSCIUTO, CON O SENZA CAPITALE INIZIALE A UN TASSO DI RIV CONOSCIUTO CHE MONTANTE AVRO' TRA X ANNI? | OUS19: INVESTENDO UN CAPITALE ANNUALE CONOSCIUTO, CON O SENZA CAPITALE INIZIALE A UN TASSO DI RIV CONOSCIUTO CHE MONTANTE AVRO' TRA X ANNI? | OVI19: INVESTENDO UN CAPITALE ANNUALE CONOSCIUTO, CON O SENZA CAPITALE INIZIALE A UN TASSO DI RIV CONOSCIUTO CHE MONTANTE AVRO' TRA X ANNI? | OVY19: INVESTENDO UN CAPITALE ANNUALE CONOSCIUTO, CON O SENZA CAPITALE INIZIALE A UN TASSO DI RIV CONOSCIUTO CHE MONTANTE AVRO' TRA X ANNI? | OWO19: INVESTENDO UN CAPITALE ANNUALE CONOSCIUTO, CON O SENZA CAPITALE INIZIALE A UN TASSO DI RIV CONOSCIUTO CHE MONTANTE AVRO' TRA X ANNI? | OXE19: INVESTENDO UN CAPITALE ANNUALE CONOSCIUTO, CON O SENZA CAPITALE INIZIALE A UN TASSO DI RIV CONOSCIUTO CHE MONTANTE AVRO' TRA X ANNI? | OXU19: INVESTENDO UN CAPITALE ANNUALE CONOSCIUTO, CON O SENZA CAPITALE INIZIALE A UN TASSO DI RIV CONOSCIUTO CHE MONTANTE AVRO' TRA X ANNI? | OYK19: INVESTENDO UN CAPITALE ANNUALE CONOSCIUTO, CON O SENZA CAPITALE INIZIALE A UN TASSO DI RIV CONOSCIUTO CHE MONTANTE AVRO' TRA X ANNI? | OZA19: INVESTENDO UN CAPITALE ANNUALE CONOSCIUTO, CON O SENZA CAPITALE INIZIALE A UN TASSO DI RIV CONOSCIUTO CHE MONTANTE AVRO' TRA X ANNI? | OZQ19: INVESTENDO UN CAPITALE ANNUALE CONOSCIUTO, CON O SENZA CAPITALE INIZIALE A UN TASSO DI RIV CONOSCIUTO CHE MONTANTE AVRO' TRA X ANNI? | PAG19: INVESTENDO UN CAPITALE ANNUALE CONOSCIUTO, CON O SENZA CAPITALE INIZIALE A UN TASSO DI RIV CONOSCIUTO CHE MONTANTE AVRO' TRA X ANNI? | PAW19: INVESTENDO UN CAPITALE ANNUALE CONOSCIUTO, CON O SENZA CAPITALE INIZIALE A UN TASSO DI RIV CONOSCIUTO CHE MONTANTE AVRO' TRA X ANNI? | PBM19: INVESTENDO UN CAPITALE ANNUALE CONOSCIUTO, CON O SENZA CAPITALE INIZIALE A UN TASSO DI RIV CONOSCIUTO CHE MONTANTE AVRO' TRA X ANNI? | PCC19: INVESTENDO UN CAPITALE ANNUALE CONOSCIUTO, CON O SENZA CAPITALE INIZIALE A UN TASSO DI RIV CONOSCIUTO CHE MONTANTE AVRO' TRA X ANNI? | PCS19: INVESTENDO UN CAPITALE ANNUALE CONOSCIUTO, CON O SENZA CAPITALE INIZIALE A UN TASSO DI RIV CONOSCIUTO CHE MONTANTE AVRO' TRA X ANNI? | PDI19: INVESTENDO UN CAPITALE ANNUALE CONOSCIUTO, CON O SENZA CAPITALE INIZIALE A UN TASSO DI RIV CONOSCIUTO CHE MONTANTE AVRO' TRA X ANNI? | PDY19: INVESTENDO UN CAPITALE ANNUALE CONOSCIUTO, CON O SENZA CAPITALE INIZIALE A UN TASSO DI RIV CONOSCIUTO CHE MONTANTE AVRO' TRA X ANNI? | PEO19: INVESTENDO UN CAPITALE ANNUALE CONOSCIUTO, CON O SENZA CAPITALE INIZIALE A UN TASSO DI RIV CONOSCIUTO CHE MONTANTE AVRO' TRA X ANNI? | PFE19: INVESTENDO UN CAPITALE ANNUALE CONOSCIUTO, CON O SENZA CAPITALE INIZIALE A UN TASSO DI RIV CONOSCIUTO CHE MONTANTE AVRO' TRA X ANNI? | PFU19: INVESTENDO UN CAPITALE ANNUALE CONOSCIUTO, CON O SENZA CAPITALE INIZIALE A UN TASSO DI RIV CONOSCIUTO CHE MONTANTE AVRO' TRA X ANNI? | PGK19: INVESTENDO UN CAPITALE ANNUALE CONOSCIUTO, CON O SENZA CAPITALE INIZIALE A UN TASSO DI RIV CONOSCIUTO CHE MONTANTE AVRO' TRA X ANNI? | PHA19: INVESTENDO UN CAPITALE ANNUALE CONOSCIUTO, CON O SENZA CAPITALE INIZIALE A UN TASSO DI RIV CONOSCIUTO CHE MONTANTE AVRO' TRA X ANNI? | PHQ19: INVESTENDO UN CAPITALE ANNUALE CONOSCIUTO, CON O SENZA CAPITALE INIZIALE A UN TASSO DI RIV CONOSCIUTO CHE MONTANTE AVRO' TRA X ANNI? | PIG19: INVESTENDO UN CAPITALE ANNUALE CONOSCIUTO, CON O SENZA CAPITALE INIZIALE A UN TASSO DI RIV CONOSCIUTO CHE MONTANTE AVRO' TRA X ANNI? | PIW19: INVESTENDO UN CAPITALE ANNUALE CONOSCIUTO, CON O SENZA CAPITALE INIZIALE A UN TASSO DI RIV CONOSCIUTO CHE MONTANTE AVRO' TRA X ANNI? | PJM19: INVESTENDO UN CAPITALE ANNUALE CONOSCIUTO, CON O SENZA CAPITALE INIZIALE A UN TASSO DI RIV CONOSCIUTO CHE MONTANTE AVRO' TRA X ANNI? | PKC19: INVESTENDO UN CAPITALE ANNUALE CONOSCIUTO, CON O SENZA CAPITALE INIZIALE A UN TASSO DI RIV CONOSCIUTO CHE MONTANTE AVRO' TRA X ANNI? | PKS19: INVESTENDO UN CAPITALE ANNUALE CONOSCIUTO, CON O SENZA CAPITALE INIZIALE A UN TASSO DI RIV CONOSCIUTO CHE MONTANTE AVRO' TRA X ANNI? | PLI19: INVESTENDO UN CAPITALE ANNUALE CONOSCIUTO, CON O SENZA CAPITALE INIZIALE A UN TASSO DI RIV CONOSCIUTO CHE MONTANTE AVRO' TRA X ANNI? | PLY19: INVESTENDO UN CAPITALE ANNUALE CONOSCIUTO, CON O SENZA CAPITALE INIZIALE A UN TASSO DI RIV CONOSCIUTO CHE MONTANTE AVRO' TRA X ANNI? | PMO19: INVESTENDO UN CAPITALE ANNUALE CONOSCIUTO, CON O SENZA CAPITALE INIZIALE A UN TASSO DI RIV CONOSCIUTO CHE MONTANTE AVRO' TRA X ANNI? | PNE19: INVESTENDO UN CAPITALE ANNUALE CONOSCIUTO, CON O SENZA CAPITALE INIZIALE A UN TASSO DI RIV CONOSCIUTO CHE MONTANTE AVRO' TRA X ANNI? | PNU19: INVESTENDO UN CAPITALE ANNUALE CONOSCIUTO, CON O SENZA CAPITALE INIZIALE A UN TASSO DI RIV CONOSCIUTO CHE MONTANTE AVRO' TRA X ANNI? | POK19: INVESTENDO UN CAPITALE ANNUALE CONOSCIUTO, CON O SENZA CAPITALE INIZIALE A UN TASSO DI RIV CONOSCIUTO CHE MONTANTE AVRO' TRA X ANNI? | PPA19: INVESTENDO UN CAPITALE ANNUALE CONOSCIUTO, CON O SENZA CAPITALE INIZIALE A UN TASSO DI RIV CONOSCIUTO CHE MONTANTE AVRO' TRA X ANNI? | PPQ19: INVESTENDO UN CAPITALE ANNUALE CONOSCIUTO, CON O SENZA CAPITALE INIZIALE A UN TASSO DI RIV CONOSCIUTO CHE MONTANTE AVRO' TRA X ANNI? | PQG19: INVESTENDO UN CAPITALE ANNUALE CONOSCIUTO, CON O SENZA CAPITALE INIZIALE A UN TASSO DI RIV CONOSCIUTO CHE MONTANTE AVRO' TRA X ANNI? | PQW19: INVESTENDO UN CAPITALE ANNUALE CONOSCIUTO, CON O SENZA CAPITALE INIZIALE A UN TASSO DI RIV CONOSCIUTO CHE MONTANTE AVRO' TRA X ANNI? | PRM19: INVESTENDO UN CAPITALE ANNUALE CONOSCIUTO, CON O SENZA CAPITALE INIZIALE A UN TASSO DI RIV CONOSCIUTO CHE MONTANTE AVRO' TRA X ANNI? | PSC19: INVESTENDO UN CAPITALE ANNUALE CONOSCIUTO, CON O SENZA CAPITALE INIZIALE A UN TASSO DI RIV CONOSCIUTO CHE MONTANTE AVRO' TRA X ANNI? | PSS19: INVESTENDO UN CAPITALE ANNUALE CONOSCIUTO, CON O SENZA CAPITALE INIZIALE A UN TASSO DI RIV CONOSCIUTO CHE MONTANTE AVRO' TRA X ANNI? | PTI19: INVESTENDO UN CAPITALE ANNUALE CONOSCIUTO, CON O SENZA CAPITALE INIZIALE A UN TASSO DI RIV CONOSCIUTO CHE MONTANTE AVRO' TRA X ANNI? | PTY19: INVESTENDO UN CAPITALE ANNUALE CONOSCIUTO, CON O SENZA CAPITALE INIZIALE A UN TASSO DI RIV CONOSCIUTO CHE MONTANTE AVRO' TRA X ANNI? | PUO19: INVESTENDO UN CAPITALE ANNUALE CONOSCIUTO, CON O SENZA CAPITALE INIZIALE A UN TASSO DI RIV CONOSCIUTO CHE MONTANTE AVRO' TRA X ANNI? | PVE19: INVESTENDO UN CAPITALE ANNUALE CONOSCIUTO, CON O SENZA CAPITALE INIZIALE A UN TASSO DI RIV CONOSCIUTO CHE MONTANTE AVRO' TRA X ANNI? | PVU19: INVESTENDO UN CAPITALE ANNUALE CONOSCIUTO, CON O SENZA CAPITALE INIZIALE A UN TASSO DI RIV CONOSCIUTO CHE MONTANTE AVRO' TRA X ANNI? | PWK19: INVESTENDO UN CAPITALE ANNUALE CONOSCIUTO, CON O SENZA CAPITALE INIZIALE A UN TASSO DI RIV CONOSCIUTO CHE MONTANTE AVRO' TRA X ANNI? | PXA19: INVESTENDO UN CAPITALE ANNUALE CONOSCIUTO, CON O SENZA CAPITALE INIZIALE A UN TASSO DI RIV CONOSCIUTO CHE MONTANTE AVRO' TRA X ANNI? | PXQ19: INVESTENDO UN CAPITALE ANNUALE CONOSCIUTO, CON O SENZA CAPITALE INIZIALE A UN TASSO DI RIV CONOSCIUTO CHE MONTANTE AVRO' TRA X ANNI? | PYG19: INVESTENDO UN CAPITALE ANNUALE CONOSCIUTO, CON O SENZA CAPITALE INIZIALE A UN TASSO DI RIV CONOSCIUTO CHE MONTANTE AVRO' TRA X ANNI? | PYW19: INVESTENDO UN CAPITALE ANNUALE CONOSCIUTO, CON O SENZA CAPITALE INIZIALE A UN TASSO DI RIV CONOSCIUTO CHE MONTANTE AVRO' TRA X ANNI? | PZM19: INVESTENDO UN CAPITALE ANNUALE CONOSCIUTO, CON O SENZA CAPITALE INIZIALE A UN TASSO DI RIV CONOSCIUTO CHE MONTANTE AVRO' TRA X ANNI? | QAC19: INVESTENDO UN CAPITALE ANNUALE CONOSCIUTO, CON O SENZA CAPITALE INIZIALE A UN TASSO DI RIV CONOSCIUTO CHE MONTANTE AVRO' TRA X ANNI? | QAS19: INVESTENDO UN CAPITALE ANNUALE CONOSCIUTO, CON O SENZA CAPITALE INIZIALE A UN TASSO DI RIV CONOSCIUTO CHE MONTANTE AVRO' TRA X ANNI? | QBI19: INVESTENDO UN CAPITALE ANNUALE CONOSCIUTO, CON O SENZA CAPITALE INIZIALE A UN TASSO DI RIV CONOSCIUTO CHE MONTANTE AVRO' TRA X ANNI? | QBY19: INVESTENDO UN CAPITALE ANNUALE CONOSCIUTO, CON O SENZA CAPITALE INIZIALE A UN TASSO DI RIV CONOSCIUTO CHE MONTANTE AVRO' TRA X ANNI? | QCO19: INVESTENDO UN CAPITALE ANNUALE CONOSCIUTO, CON O SENZA CAPITALE INIZIALE A UN TASSO DI RIV CONOSCIUTO CHE MONTANTE AVRO' TRA X ANNI? | QDE19: INVESTENDO UN CAPITALE ANNUALE CONOSCIUTO, CON O SENZA CAPITALE INIZIALE A UN TASSO DI RIV CONOSCIUTO CHE MONTANTE AVRO' TRA X ANNI? | QDU19: INVESTENDO UN CAPITALE ANNUALE CONOSCIUTO, CON O SENZA CAPITALE INIZIALE A UN TASSO DI RIV CONOSCIUTO CHE MONTANTE AVRO' TRA X ANNI? | QEK19: INVESTENDO UN CAPITALE ANNUALE CONOSCIUTO, CON O SENZA CAPITALE INIZIALE A UN TASSO DI RIV CONOSCIUTO CHE MONTANTE AVRO' TRA X ANNI? | QFA19: INVESTENDO UN CAPITALE ANNUALE CONOSCIUTO, CON O SENZA CAPITALE INIZIALE A UN TASSO DI RIV CONOSCIUTO CHE MONTANTE AVRO' TRA X ANNI? | QFQ19: INVESTENDO UN CAPITALE ANNUALE CONOSCIUTO, CON O SENZA CAPITALE INIZIALE A UN TASSO DI RIV CONOSCIUTO CHE MONTANTE AVRO' TRA X ANNI? | QGG19: INVESTENDO UN CAPITALE ANNUALE CONOSCIUTO, CON O SENZA CAPITALE INIZIALE A UN TASSO DI RIV CONOSCIUTO CHE MONTANTE AVRO' TRA X ANNI? | QGW19: INVESTENDO UN CAPITALE ANNUALE CONOSCIUTO, CON O SENZA CAPITALE INIZIALE A UN TASSO DI RIV CONOSCIUTO CHE MONTANTE AVRO' TRA X ANNI? | QHM19: INVESTENDO UN CAPITALE ANNUALE CONOSCIUTO, CON O SENZA CAPITALE INIZIALE A UN TASSO DI RIV CONOSCIUTO CHE MONTANTE AVRO' TRA X ANNI? | QIC19: INVESTENDO UN CAPITALE ANNUALE CONOSCIUTO, CON O SENZA CAPITALE INIZIALE A UN TASSO DI RIV CONOSCIUTO CHE MONTANTE AVRO' TRA X ANNI? | QIS19: INVESTENDO UN CAPITALE ANNUALE CONOSCIUTO, CON O SENZA CAPITALE INIZIALE A UN TASSO DI RIV CONOSCIUTO CHE MONTANTE AVRO' TRA X ANNI? | QJI19: INVESTENDO UN CAPITALE ANNUALE CONOSCIUTO, CON O SENZA CAPITALE INIZIALE A UN TASSO DI RIV CONOSCIUTO CHE MONTANTE AVRO' TRA X ANNI? | QJY19: INVESTENDO UN CAPITALE ANNUALE CONOSCIUTO, CON O SENZA CAPITALE INIZIALE A UN TASSO DI RIV CONOSCIUTO CHE MONTANTE AVRO' TRA X ANNI? | QKO19: INVESTENDO UN CAPITALE ANNUALE CONOSCIUTO, CON O SENZA CAPITALE INIZIALE A UN TASSO DI RIV CONOSCIUTO CHE MONTANTE AVRO' TRA X ANNI? | QLE19: INVESTENDO UN CAPITALE ANNUALE CONOSCIUTO, CON O SENZA CAPITALE INIZIALE A UN TASSO DI RIV CONOSCIUTO CHE MONTANTE AVRO' TRA X ANNI? | QLU19: INVESTENDO UN CAPITALE ANNUALE CONOSCIUTO, CON O SENZA CAPITALE INIZIALE A UN TASSO DI RIV CONOSCIUTO CHE MONTANTE AVRO' TRA X ANNI? | QMK19: INVESTENDO UN CAPITALE ANNUALE CONOSCIUTO, CON O SENZA CAPITALE INIZIALE A UN TASSO DI RIV CONOSCIUTO CHE MONTANTE AVRO' TRA X ANNI? | QNA19: INVESTENDO UN CAPITALE ANNUALE CONOSCIUTO, CON O SENZA CAPITALE INIZIALE A UN TASSO DI RIV CONOSCIUTO CHE MONTANTE AVRO' TRA X ANNI? | QNQ19: INVESTENDO UN CAPITALE ANNUALE CONOSCIUTO, CON O SENZA CAPITALE INIZIALE A UN TASSO DI RIV CONOSCIUTO CHE MONTANTE AVRO' TRA X ANNI? | QOG19: INVESTENDO UN CAPITALE ANNUALE CONOSCIUTO, CON O SENZA CAPITALE INIZIALE A UN TASSO DI RIV CONOSCIUTO CHE MONTANTE AVRO' TRA X ANNI? | QOW19: INVESTENDO UN CAPITALE ANNUALE CONOSCIUTO, CON O SENZA CAPITALE INIZIALE A UN TASSO DI RIV CONOSCIUTO CHE MONTANTE AVRO' TRA X ANNI? | QPM19: INVESTENDO UN CAPITALE ANNUALE CONOSCIUTO, CON O SENZA CAPITALE INIZIALE A UN TASSO DI RIV CONOSCIUTO CHE MONTANTE AVRO' TRA X ANNI? | QQC19: INVESTENDO UN CAPITALE ANNUALE CONOSCIUTO, CON O SENZA CAPITALE INIZIALE A UN TASSO DI RIV CONOSCIUTO CHE MONTANTE AVRO' TRA X ANNI? | QQS19: INVESTENDO UN CAPITALE ANNUALE CONOSCIUTO, CON O SENZA CAPITALE INIZIALE A UN TASSO DI RIV CONOSCIUTO CHE MONTANTE AVRO' TRA X ANNI? | QRI19: INVESTENDO UN CAPITALE ANNUALE CONOSCIUTO, CON O SENZA CAPITALE INIZIALE A UN TASSO DI RIV CONOSCIUTO CHE MONTANTE AVRO' TRA X ANNI? | QRY19: INVESTENDO UN CAPITALE ANNUALE CONOSCIUTO, CON O SENZA CAPITALE INIZIALE A UN TASSO DI RIV CONOSCIUTO CHE MONTANTE AVRO' TRA X ANNI? | QSO19: INVESTENDO UN CAPITALE ANNUALE CONOSCIUTO, CON O SENZA CAPITALE INIZIALE A UN TASSO DI RIV CONOSCIUTO CHE MONTANTE AVRO' TRA X ANNI? | QTE19: INVESTENDO UN CAPITALE ANNUALE CONOSCIUTO, CON O SENZA CAPITALE INIZIALE A UN TASSO DI RIV CONOSCIUTO CHE MONTANTE AVRO' TRA X ANNI? | QTU19: INVESTENDO UN CAPITALE ANNUALE CONOSCIUTO, CON O SENZA CAPITALE INIZIALE A UN TASSO DI RIV CONOSCIUTO CHE MONTANTE AVRO' TRA X ANNI? | QUK19: INVESTENDO UN CAPITALE ANNUALE CONOSCIUTO, CON O SENZA CAPITALE INIZIALE A UN TASSO DI RIV CONOSCIUTO CHE MONTANTE AVRO' TRA X ANNI? | QVA19: INVESTENDO UN CAPITALE ANNUALE CONOSCIUTO, CON O SENZA CAPITALE INIZIALE A UN TASSO DI RIV CONOSCIUTO CHE MONTANTE AVRO' TRA X ANNI? | QVQ19: INVESTENDO UN CAPITALE ANNUALE CONOSCIUTO, CON O SENZA CAPITALE INIZIALE A UN TASSO DI RIV CONOSCIUTO CHE MONTANTE AVRO' TRA X ANNI? | QWG19: INVESTENDO UN CAPITALE ANNUALE CONOSCIUTO, CON O SENZA CAPITALE INIZIALE A UN TASSO DI RIV CONOSCIUTO CHE MONTANTE AVRO' TRA X ANNI? | QWW19: INVESTENDO UN CAPITALE ANNUALE CONOSCIUTO, CON O SENZA CAPITALE INIZIALE A UN TASSO DI RIV CONOSCIUTO CHE MONTANTE AVRO' TRA X ANNI? | QXM19: INVESTENDO UN CAPITALE ANNUALE CONOSCIUTO, CON O SENZA CAPITALE INIZIALE A UN TASSO DI RIV CONOSCIUTO CHE MONTANTE AVRO' TRA X ANNI? | QYC19: INVESTENDO UN CAPITALE ANNUALE CONOSCIUTO, CON O SENZA CAPITALE INIZIALE A UN TASSO DI RIV CONOSCIUTO CHE MONTANTE AVRO' TRA X ANNI? | QYS19: INVESTENDO UN CAPITALE ANNUALE CONOSCIUTO, CON O SENZA CAPITALE INIZIALE A UN TASSO DI RIV CONOSCIUTO CHE MONTANTE AVRO' TRA X ANNI? | QZI19: INVESTENDO UN CAPITALE ANNUALE CONOSCIUTO, CON O SENZA CAPITALE INIZIALE A UN TASSO DI RIV CONOSCIUTO CHE MONTANTE AVRO' TRA X ANNI? | QZY19: INVESTENDO UN CAPITALE ANNUALE CONOSCIUTO, CON O SENZA CAPITALE INIZIALE A UN TASSO DI RIV CONOSCIUTO CHE MONTANTE AVRO' TRA X ANNI? | RAO19: INVESTENDO UN CAPITALE ANNUALE CONOSCIUTO, CON O SENZA CAPITALE INIZIALE A UN TASSO DI RIV CONOSCIUTO CHE MONTANTE AVRO' TRA X ANNI? | RBE19: INVESTENDO UN CAPITALE ANNUALE CONOSCIUTO, CON O SENZA CAPITALE INIZIALE A UN TASSO DI RIV CONOSCIUTO CHE MONTANTE AVRO' TRA X ANNI? | RBU19: INVESTENDO UN CAPITALE ANNUALE CONOSCIUTO, CON O SENZA CAPITALE INIZIALE A UN TASSO DI RIV CONOSCIUTO CHE MONTANTE AVRO' TRA X ANNI? | RCK19: INVESTENDO UN CAPITALE ANNUALE CONOSCIUTO, CON O SENZA CAPITALE INIZIALE A UN TASSO DI RIV CONOSCIUTO CHE MONTANTE AVRO' TRA X ANNI? | RDA19: INVESTENDO UN CAPITALE ANNUALE CONOSCIUTO, CON O SENZA CAPITALE INIZIALE A UN TASSO DI RIV CONOSCIUTO CHE MONTANTE AVRO' TRA X ANNI? | RDQ19: INVESTENDO UN CAPITALE ANNUALE CONOSCIUTO, CON O SENZA CAPITALE INIZIALE A UN TASSO DI RIV CONOSCIUTO CHE MONTANTE AVRO' TRA X ANNI? | REG19: INVESTENDO UN CAPITALE ANNUALE CONOSCIUTO, CON O SENZA CAPITALE INIZIALE A UN TASSO DI RIV CONOSCIUTO CHE MONTANTE AVRO' TRA X ANNI? | REW19: INVESTENDO UN CAPITALE ANNUALE CONOSCIUTO, CON O SENZA CAPITALE INIZIALE A UN TASSO DI RIV CONOSCIUTO CHE MONTANTE AVRO' TRA X ANNI? | RFM19: INVESTENDO UN CAPITALE ANNUALE CONOSCIUTO, CON O SENZA CAPITALE INIZIALE A UN TASSO DI RIV CONOSCIUTO CHE MONTANTE AVRO' TRA X ANNI? | RGC19: INVESTENDO UN CAPITALE ANNUALE CONOSCIUTO, CON O SENZA CAPITALE INIZIALE A UN TASSO DI RIV CONOSCIUTO CHE MONTANTE AVRO' TRA X ANNI? | RGS19: INVESTENDO UN CAPITALE ANNUALE CONOSCIUTO, CON O SENZA CAPITALE INIZIALE A UN TASSO DI RIV CONOSCIUTO CHE MONTANTE AVRO' TRA X ANNI? | RHI19: INVESTENDO UN CAPITALE ANNUALE CONOSCIUTO, CON O SENZA CAPITALE INIZIALE A UN TASSO DI RIV CONOSCIUTO CHE MONTANTE AVRO' TRA X ANNI? | RHY19: INVESTENDO UN CAPITALE ANNUALE CONOSCIUTO, CON O SENZA CAPITALE INIZIALE A UN TASSO DI RIV CONOSCIUTO CHE MONTANTE AVRO' TRA X ANNI? | RIO19: INVESTENDO UN CAPITALE ANNUALE CONOSCIUTO, CON O SENZA CAPITALE INIZIALE A UN TASSO DI RIV CONOSCIUTO CHE MONTANTE AVRO' TRA X ANNI? | RJE19: INVESTENDO UN CAPITALE ANNUALE CONOSCIUTO, CON O SENZA CAPITALE INIZIALE A UN TASSO DI RIV CONOSCIUTO CHE MONTANTE AVRO' TRA X ANNI? | RJU19: INVESTENDO UN CAPITALE ANNUALE CONOSCIUTO, CON O SENZA CAPITALE INIZIALE A UN TASSO DI RIV CONOSCIUTO CHE MONTANTE AVRO' TRA X ANNI? | RKK19: INVESTENDO UN CAPITALE ANNUALE CONOSCIUTO, CON O SENZA CAPITALE INIZIALE A UN TASSO DI RIV CONOSCIUTO CHE MONTANTE AVRO' TRA X ANNI? | RLA19: INVESTENDO UN CAPITALE ANNUALE CONOSCIUTO, CON O SENZA CAPITALE INIZIALE A UN TASSO DI RIV CONOSCIUTO CHE MONTANTE AVRO' TRA X ANNI? | RLQ19: INVESTENDO UN CAPITALE ANNUALE CONOSCIUTO, CON O SENZA CAPITALE INIZIALE A UN TASSO DI RIV CONOSCIUTO CHE MONTANTE AVRO' TRA X ANNI? | RMG19: INVESTENDO UN CAPITALE ANNUALE CONOSCIUTO, CON O SENZA CAPITALE INIZIALE A UN TASSO DI RIV CONOSCIUTO CHE MONTANTE AVRO' TRA X ANNI? | RMW19: INVESTENDO UN CAPITALE ANNUALE CONOSCIUTO, CON O SENZA CAPITALE INIZIALE A UN TASSO DI RIV CONOSCIUTO CHE MONTANTE AVRO' TRA X ANNI? | RNM19: INVESTENDO UN CAPITALE ANNUALE CONOSCIUTO, CON O SENZA CAPITALE INIZIALE A UN TASSO DI RIV CONOSCIUTO CHE MONTANTE AVRO' TRA X ANNI? | ROC19: INVESTENDO UN CAPITALE ANNUALE CONOSCIUTO, CON O SENZA CAPITALE INIZIALE A UN TASSO DI RIV CONOSCIUTO CHE MONTANTE AVRO' TRA X ANNI? | ROS19: INVESTENDO UN CAPITALE ANNUALE CONOSCIUTO, CON O SENZA CAPITALE INIZIALE A UN TASSO DI RIV CONOSCIUTO CHE MONTANTE AVRO' TRA X ANNI? | RPI19: INVESTENDO UN CAPITALE ANNUALE CONOSCIUTO, CON O SENZA CAPITALE INIZIALE A UN TASSO DI RIV CONOSCIUTO CHE MONTANTE AVRO' TRA X ANNI? | RPY19: INVESTENDO UN CAPITALE ANNUALE CONOSCIUTO, CON O SENZA CAPITALE INIZIALE A UN TASSO DI RIV CONOSCIUTO CHE MONTANTE AVRO' TRA X ANNI? | RQO19: INVESTENDO UN CAPITALE ANNUALE CONOSCIUTO, CON O SENZA CAPITALE INIZIALE A UN TASSO DI RIV CONOSCIUTO CHE MONTANTE AVRO' TRA X ANNI? | RRE19: INVESTENDO UN CAPITALE ANNUALE CONOSCIUTO, CON O SENZA CAPITALE INIZIALE A UN TASSO DI RIV CONOSCIUTO CHE MONTANTE AVRO' TRA X ANNI? | RRU19: INVESTENDO UN CAPITALE ANNUALE CONOSCIUTO, CON O SENZA CAPITALE INIZIALE A UN TASSO DI RIV CONOSCIUTO CHE MONTANTE AVRO' TRA X ANNI? | RSK19: INVESTENDO UN CAPITALE ANNUALE CONOSCIUTO, CON O SENZA CAPITALE INIZIALE A UN TASSO DI RIV CONOSCIUTO CHE MONTANTE AVRO' TRA X ANNI? | RTA19: INVESTENDO UN CAPITALE ANNUALE CONOSCIUTO, CON O SENZA CAPITALE INIZIALE A UN TASSO DI RIV CONOSCIUTO CHE MONTANTE AVRO' TRA X ANNI? | RTQ19: INVESTENDO UN CAPITALE ANNUALE CONOSCIUTO, CON O SENZA CAPITALE INIZIALE A UN TASSO DI RIV CONOSCIUTO CHE MONTANTE AVRO' TRA X ANNI? | RUG19: INVESTENDO UN CAPITALE ANNUALE CONOSCIUTO, CON O SENZA CAPITALE INIZIALE A UN TASSO DI RIV CONOSCIUTO CHE MONTANTE AVRO' TRA X ANNI? | RUW19: INVESTENDO UN CAPITALE ANNUALE CONOSCIUTO, CON O SENZA CAPITALE INIZIALE A UN TASSO DI RIV CONOSCIUTO CHE MONTANTE AVRO' TRA X ANNI? | RVM19: INVESTENDO UN CAPITALE ANNUALE CONOSCIUTO, CON O SENZA CAPITALE INIZIALE A UN TASSO DI RIV CONOSCIUTO CHE MONTANTE AVRO' TRA X ANNI? | RWC19: INVESTENDO UN CAPITALE ANNUALE CONOSCIUTO, CON O SENZA CAPITALE INIZIALE A UN TASSO DI RIV CONOSCIUTO CHE MONTANTE AVRO' TRA X ANNI? | RWS19: INVESTENDO UN CAPITALE ANNUALE CONOSCIUTO, CON O SENZA CAPITALE INIZIALE A UN TASSO DI RIV CONOSCIUTO CHE MONTANTE AVRO' TRA X ANNI? | RXI19: INVESTENDO UN CAPITALE ANNUALE CONOSCIUTO, CON O SENZA CAPITALE INIZIALE A UN TASSO DI RIV CONOSCIUTO CHE MONTANTE AVRO' TRA X ANNI? | RXY19: INVESTENDO UN CAPITALE ANNUALE CONOSCIUTO, CON O SENZA CAPITALE INIZIALE A UN TASSO DI RIV CONOSCIUTO CHE MONTANTE AVRO' TRA X ANNI? | RYO19: INVESTENDO UN CAPITALE ANNUALE CONOSCIUTO, CON O SENZA CAPITALE INIZIALE A UN TASSO DI RIV CONOSCIUTO CHE MONTANTE AVRO' TRA X ANNI? | RZE19: INVESTENDO UN CAPITALE ANNUALE CONOSCIUTO, CON O SENZA CAPITALE INIZIALE A UN TASSO DI RIV CONOSCIUTO CHE MONTANTE AVRO' TRA X ANNI? | RZU19: INVESTENDO UN CAPITALE ANNUALE CONOSCIUTO, CON O SENZA CAPITALE INIZIALE A UN TASSO DI RIV CONOSCIUTO CHE MONTANTE AVRO' TRA X ANNI? | SAK19: INVESTENDO UN CAPITALE ANNUALE CONOSCIUTO, CON O SENZA CAPITALE INIZIALE A UN TASSO DI RIV CONOSCIUTO CHE MONTANTE AVRO' TRA X ANNI? | SBA19: INVESTENDO UN CAPITALE ANNUALE CONOSCIUTO, CON O SENZA CAPITALE INIZIALE A UN TASSO DI RIV CONOSCIUTO CHE MONTANTE AVRO' TRA X ANNI? | SBQ19: INVESTENDO UN CAPITALE ANNUALE CONOSCIUTO, CON O SENZA CAPITALE INIZIALE A UN TASSO DI RIV CONOSCIUTO CHE MONTANTE AVRO' TRA X ANNI? | SCG19: INVESTENDO UN CAPITALE ANNUALE CONOSCIUTO, CON O SENZA CAPITALE INIZIALE A UN TASSO DI RIV CONOSCIUTO CHE MONTANTE AVRO' TRA X ANNI? | SCW19: INVESTENDO UN CAPITALE ANNUALE CONOSCIUTO, CON O SENZA CAPITALE INIZIALE A UN TASSO DI RIV CONOSCIUTO CHE MONTANTE AVRO' TRA X ANNI? | SDM19: INVESTENDO UN CAPITALE ANNUALE CONOSCIUTO, CON O SENZA CAPITALE INIZIALE A UN TASSO DI RIV CONOSCIUTO CHE MONTANTE AVRO' TRA X ANNI? | SEC19: INVESTENDO UN CAPITALE ANNUALE CONOSCIUTO, CON O SENZA CAPITALE INIZIALE A UN TASSO DI RIV CONOSCIUTO CHE MONTANTE AVRO' TRA X ANNI? | SES19: INVESTENDO UN CAPITALE ANNUALE CONOSCIUTO, CON O SENZA CAPITALE INIZIALE A UN TASSO DI RIV CONOSCIUTO CHE MONTANTE AVRO' TRA X ANNI? | SFI19: INVESTENDO UN CAPITALE ANNUALE CONOSCIUTO, CON O SENZA CAPITALE INIZIALE A UN TASSO DI RIV CONOSCIUTO CHE MONTANTE AVRO' TRA X ANNI? | SFY19: INVESTENDO UN CAPITALE ANNUALE CONOSCIUTO, CON O SENZA CAPITALE INIZIALE A UN TASSO DI RIV CONOSCIUTO CHE MONTANTE AVRO' TRA X ANNI? | SGO19: INVESTENDO UN CAPITALE ANNUALE CONOSCIUTO, CON O SENZA CAPITALE INIZIALE A UN TASSO DI RIV CONOSCIUTO CHE MONTANTE AVRO' TRA X ANNI? | SHE19: INVESTENDO UN CAPITALE ANNUALE CONOSCIUTO, CON O SENZA CAPITALE INIZIALE A UN TASSO DI RIV CONOSCIUTO CHE MONTANTE AVRO' TRA X ANNI? | SHU19: INVESTENDO UN CAPITALE ANNUALE CONOSCIUTO, CON O SENZA CAPITALE INIZIALE A UN TASSO DI RIV CONOSCIUTO CHE MONTANTE AVRO' TRA X ANNI? | SIK19: INVESTENDO UN CAPITALE ANNUALE CONOSCIUTO, CON O SENZA CAPITALE INIZIALE A UN TASSO DI RIV CONOSCIUTO CHE MONTANTE AVRO' TRA X ANNI? | SJA19: INVESTENDO UN CAPITALE ANNUALE CONOSCIUTO, CON O SENZA CAPITALE INIZIALE A UN TASSO DI RIV CONOSCIUTO CHE MONTANTE AVRO' TRA X ANNI? | SJQ19: INVESTENDO UN CAPITALE ANNUALE CONOSCIUTO, CON O SENZA CAPITALE INIZIALE A UN TASSO DI RIV CONOSCIUTO CHE MONTANTE AVRO' TRA X ANNI? | SKG19: INVESTENDO UN CAPITALE ANNUALE CONOSCIUTO, CON O SENZA CAPITALE INIZIALE A UN TASSO DI RIV CONOSCIUTO CHE MONTANTE AVRO' TRA X ANNI? | SKW19: INVESTENDO UN CAPITALE ANNUALE CONOSCIUTO, CON O SENZA CAPITALE INIZIALE A UN TASSO DI RIV CONOSCIUTO CHE MONTANTE AVRO' TRA X ANNI? | SLM19: INVESTENDO UN CAPITALE ANNUALE CONOSCIUTO, CON O SENZA CAPITALE INIZIALE A UN TASSO DI RIV CONOSCIUTO CHE MONTANTE AVRO' TRA X ANNI? | SMC19: INVESTENDO UN CAPITALE ANNUALE CONOSCIUTO, CON O SENZA CAPITALE INIZIALE A UN TASSO DI RIV CONOSCIUTO CHE MONTANTE AVRO' TRA X ANNI? | SMS19: INVESTENDO UN CAPITALE ANNUALE CONOSCIUTO, CON O SENZA CAPITALE INIZIALE A UN TASSO DI RIV CONOSCIUTO CHE MONTANTE AVRO' TRA X ANNI? | SNI19: INVESTENDO UN CAPITALE ANNUALE CONOSCIUTO, CON O SENZA CAPITALE INIZIALE A UN TASSO DI RIV CONOSCIUTO CHE MONTANTE AVRO' TRA X ANNI? | SNY19: INVESTENDO UN CAPITALE ANNUALE CONOSCIUTO, CON O SENZA CAPITALE INIZIALE A UN TASSO DI RIV CONOSCIUTO CHE MONTANTE AVRO' TRA X ANNI? | SOO19: INVESTENDO UN CAPITALE ANNUALE CONOSCIUTO, CON O SENZA CAPITALE INIZIALE A UN TASSO DI RIV CONOSCIUTO CHE MONTANTE AVRO' TRA X ANNI? | SPE19: INVESTENDO UN CAPITALE ANNUALE CONOSCIUTO, CON O SENZA CAPITALE INIZIALE A UN TASSO DI RIV CONOSCIUTO CHE MONTANTE AVRO' TRA X ANNI? | SPU19: INVESTENDO UN CAPITALE ANNUALE CONOSCIUTO, CON O SENZA CAPITALE INIZIALE A UN TASSO DI RIV CONOSCIUTO CHE MONTANTE AVRO' TRA X ANNI? | SQK19: INVESTENDO UN CAPITALE ANNUALE CONOSCIUTO, CON O SENZA CAPITALE INIZIALE A UN TASSO DI RIV CONOSCIUTO CHE MONTANTE AVRO' TRA X ANNI? | SRA19: INVESTENDO UN CAPITALE ANNUALE CONOSCIUTO, CON O SENZA CAPITALE INIZIALE A UN TASSO DI RIV CONOSCIUTO CHE MONTANTE AVRO' TRA X ANNI? | SRQ19: INVESTENDO UN CAPITALE ANNUALE CONOSCIUTO, CON O SENZA CAPITALE INIZIALE A UN TASSO DI RIV CONOSCIUTO CHE MONTANTE AVRO' TRA X ANNI? | SSG19: INVESTENDO UN CAPITALE ANNUALE CONOSCIUTO, CON O SENZA CAPITALE INIZIALE A UN TASSO DI RIV CONOSCIUTO CHE MONTANTE AVRO' TRA X ANNI? | SSW19: INVESTENDO UN CAPITALE ANNUALE CONOSCIUTO, CON O SENZA CAPITALE INIZIALE A UN TASSO DI RIV CONOSCIUTO CHE MONTANTE AVRO' TRA X ANNI? | STM19: INVESTENDO UN CAPITALE ANNUALE CONOSCIUTO, CON O SENZA CAPITALE INIZIALE A UN TASSO DI RIV CONOSCIUTO CHE MONTANTE AVRO' TRA X ANNI? | SUC19: INVESTENDO UN CAPITALE ANNUALE CONOSCIUTO, CON O SENZA CAPITALE INIZIALE A UN TASSO DI RIV CONOSCIUTO CHE MONTANTE AVRO' TRA X ANNI? | SUS19: INVESTENDO UN CAPITALE ANNUALE CONOSCIUTO, CON O SENZA CAPITALE INIZIALE A UN TASSO DI RIV CONOSCIUTO CHE MONTANTE AVRO' TRA X ANNI? | SVI19: INVESTENDO UN CAPITALE ANNUALE CONOSCIUTO, CON O SENZA CAPITALE INIZIALE A UN TASSO DI RIV CONOSCIUTO CHE MONTANTE AVRO' TRA X ANNI? | SVY19: INVESTENDO UN CAPITALE ANNUALE CONOSCIUTO, CON O SENZA CAPITALE INIZIALE A UN TASSO DI RIV CONOSCIUTO CHE MONTANTE AVRO' TRA X ANNI? | SWO19: INVESTENDO UN CAPITALE ANNUALE CONOSCIUTO, CON O SENZA CAPITALE INIZIALE A UN TASSO DI RIV CONOSCIUTO CHE MONTANTE AVRO' TRA X ANNI? | SXE19: INVESTENDO UN CAPITALE ANNUALE CONOSCIUTO, CON O SENZA CAPITALE INIZIALE A UN TASSO DI RIV CONOSCIUTO CHE MONTANTE AVRO' TRA X ANNI? | SXU19: INVESTENDO UN CAPITALE ANNUALE CONOSCIUTO, CON O SENZA CAPITALE INIZIALE A UN TASSO DI RIV CONOSCIUTO CHE MONTANTE AVRO' TRA X ANNI? | SYK19: INVESTENDO UN CAPITALE ANNUALE CONOSCIUTO, CON O SENZA CAPITALE INIZIALE A UN TASSO DI RIV CONOSCIUTO CHE MONTANTE AVRO' TRA X ANNI? | SZA19: INVESTENDO UN CAPITALE ANNUALE CONOSCIUTO, CON O SENZA CAPITALE INIZIALE A UN TASSO DI RIV CONOSCIUTO CHE MONTANTE AVRO' TRA X ANNI? | SZQ19: INVESTENDO UN CAPITALE ANNUALE CONOSCIUTO, CON O SENZA CAPITALE INIZIALE A UN TASSO DI RIV CONOSCIUTO CHE MONTANTE AVRO' TRA X ANNI? | TAG19: INVESTENDO UN CAPITALE ANNUALE CONOSCIUTO, CON O SENZA CAPITALE INIZIALE A UN TASSO DI RIV CONOSCIUTO CHE MONTANTE AVRO' TRA X ANNI? | TAW19: INVESTENDO UN CAPITALE ANNUALE CONOSCIUTO, CON O SENZA CAPITALE INIZIALE A UN TASSO DI RIV CONOSCIUTO CHE MONTANTE AVRO' TRA X ANNI? | TBM19: INVESTENDO UN CAPITALE ANNUALE CONOSCIUTO, CON O SENZA CAPITALE INIZIALE A UN TASSO DI RIV CONOSCIUTO CHE MONTANTE AVRO' TRA X ANNI? | TCC19: INVESTENDO UN CAPITALE ANNUALE CONOSCIUTO, CON O SENZA CAPITALE INIZIALE A UN TASSO DI RIV CONOSCIUTO CHE MONTANTE AVRO' TRA X ANNI? | TCS19: INVESTENDO UN CAPITALE ANNUALE CONOSCIUTO, CON O SENZA CAPITALE INIZIALE A UN TASSO DI RIV CONOSCIUTO CHE MONTANTE AVRO' TRA X ANNI? | TDI19: INVESTENDO UN CAPITALE ANNUALE CONOSCIUTO, CON O SENZA CAPITALE INIZIALE A UN TASSO DI RIV CONOSCIUTO CHE MONTANTE AVRO' TRA X ANNI? | TDY19: INVESTENDO UN CAPITALE ANNUALE CONOSCIUTO, CON O SENZA CAPITALE INIZIALE A UN TASSO DI RIV CONOSCIUTO CHE MONTANTE AVRO' TRA X ANNI? | TEO19: INVESTENDO UN CAPITALE ANNUALE CONOSCIUTO, CON O SENZA CAPITALE INIZIALE A UN TASSO DI RIV CONOSCIUTO CHE MONTANTE AVRO' TRA X ANNI? | TFE19: INVESTENDO UN CAPITALE ANNUALE CONOSCIUTO, CON O SENZA CAPITALE INIZIALE A UN TASSO DI RIV CONOSCIUTO CHE MONTANTE AVRO' TRA X ANNI? | TFU19: INVESTENDO UN CAPITALE ANNUALE CONOSCIUTO, CON O SENZA CAPITALE INIZIALE A UN TASSO DI RIV CONOSCIUTO CHE MONTANTE AVRO' TRA X ANNI? | TGK19: INVESTENDO UN CAPITALE ANNUALE CONOSCIUTO, CON O SENZA CAPITALE INIZIALE A UN TASSO DI RIV CONOSCIUTO CHE MONTANTE AVRO' TRA X ANNI? | THA19: INVESTENDO UN CAPITALE ANNUALE CONOSCIUTO, CON O SENZA CAPITALE INIZIALE A UN TASSO DI RIV CONOSCIUTO CHE MONTANTE AVRO' TRA X ANNI? | THQ19: INVESTENDO UN CAPITALE ANNUALE CONOSCIUTO, CON O SENZA CAPITALE INIZIALE A UN TASSO DI RIV CONOSCIUTO CHE MONTANTE AVRO' TRA X ANNI? | TIG19: INVESTENDO UN CAPITALE ANNUALE CONOSCIUTO, CON O SENZA CAPITALE INIZIALE A UN TASSO DI RIV CONOSCIUTO CHE MONTANTE AVRO' TRA X ANNI? | TIW19: INVESTENDO UN CAPITALE ANNUALE CONOSCIUTO, CON O SENZA CAPITALE INIZIALE A UN TASSO DI RIV CONOSCIUTO CHE MONTANTE AVRO' TRA X ANNI? | TJM19: INVESTENDO UN CAPITALE ANNUALE CONOSCIUTO, CON O SENZA CAPITALE INIZIALE A UN TASSO DI RIV CONOSCIUTO CHE MONTANTE AVRO' TRA X ANNI? | TKC19: INVESTENDO UN CAPITALE ANNUALE CONOSCIUTO, CON O SENZA CAPITALE INIZIALE A UN TASSO DI RIV CONOSCIUTO CHE MONTANTE AVRO' TRA X ANNI? | TKS19: INVESTENDO UN CAPITALE ANNUALE CONOSCIUTO, CON O SENZA CAPITALE INIZIALE A UN TASSO DI RIV CONOSCIUTO CHE MONTANTE AVRO' TRA X ANNI? | TLI19: INVESTENDO UN CAPITALE ANNUALE CONOSCIUTO, CON O SENZA CAPITALE INIZIALE A UN TASSO DI RIV CONOSCIUTO CHE MONTANTE AVRO' TRA X ANNI? | TLY19: INVESTENDO UN CAPITALE ANNUALE CONOSCIUTO, CON O SENZA CAPITALE INIZIALE A UN TASSO DI RIV CONOSCIUTO CHE MONTANTE AVRO' TRA X ANNI? | TMO19: INVESTENDO UN CAPITALE ANNUALE CONOSCIUTO, CON O SENZA CAPITALE INIZIALE A UN TASSO DI RIV CONOSCIUTO CHE MONTANTE AVRO' TRA X ANNI? | TNE19: INVESTENDO UN CAPITALE ANNUALE CONOSCIUTO, CON O SENZA CAPITALE INIZIALE A UN TASSO DI RIV CONOSCIUTO CHE MONTANTE AVRO' TRA X ANNI? | TNU19: INVESTENDO UN CAPITALE ANNUALE CONOSCIUTO, CON O SENZA CAPITALE INIZIALE A UN TASSO DI RIV CONOSCIUTO CHE MONTANTE AVRO' TRA X ANNI? | TOK19: INVESTENDO UN CAPITALE ANNUALE CONOSCIUTO, CON O SENZA CAPITALE INIZIALE A UN TASSO DI RIV CONOSCIUTO CHE MONTANTE AVRO' TRA X ANNI? | TPA19: INVESTENDO UN CAPITALE ANNUALE CONOSCIUTO, CON O SENZA CAPITALE INIZIALE A UN TASSO DI RIV CONOSCIUTO CHE MONTANTE AVRO' TRA X ANNI? | TPQ19: INVESTENDO UN CAPITALE ANNUALE CONOSCIUTO, CON O SENZA CAPITALE INIZIALE A UN TASSO DI RIV CONOSCIUTO CHE MONTANTE AVRO' TRA X ANNI? | TQG19: INVESTENDO UN CAPITALE ANNUALE CONOSCIUTO, CON O SENZA CAPITALE INIZIALE A UN TASSO DI RIV CONOSCIUTO CHE MONTANTE AVRO' TRA X ANNI? | TQW19: INVESTENDO UN CAPITALE ANNUALE CONOSCIUTO, CON O SENZA CAPITALE INIZIALE A UN TASSO DI RIV CONOSCIUTO CHE MONTANTE AVRO' TRA X ANNI? | TRM19: INVESTENDO UN CAPITALE ANNUALE CONOSCIUTO, CON O SENZA CAPITALE INIZIALE A UN TASSO DI RIV CONOSCIUTO CHE MONTANTE AVRO' TRA X ANNI? | TSC19: INVESTENDO UN CAPITALE ANNUALE CONOSCIUTO, CON O SENZA CAPITALE INIZIALE A UN TASSO DI RIV CONOSCIUTO CHE MONTANTE AVRO' TRA X ANNI? | TSS19: INVESTENDO UN CAPITALE ANNUALE CONOSCIUTO, CON O SENZA CAPITALE INIZIALE A UN TASSO DI RIV CONOSCIUTO CHE MONTANTE AVRO' TRA X ANNI? | TTI19: INVESTENDO UN CAPITALE ANNUALE CONOSCIUTO, CON O SENZA CAPITALE INIZIALE A UN TASSO DI RIV CONOSCIUTO CHE MONTANTE AVRO' TRA X ANNI? | TTY19: INVESTENDO UN CAPITALE ANNUALE CONOSCIUTO, CON O SENZA CAPITALE INIZIALE A UN TASSO DI RIV CONOSCIUTO CHE MONTANTE AVRO' TRA X ANNI? | TUO19: INVESTENDO UN CAPITALE ANNUALE CONOSCIUTO, CON O SENZA CAPITALE INIZIALE A UN TASSO DI RIV CONOSCIUTO CHE MONTANTE AVRO' TRA X ANNI? | TVE19: INVESTENDO UN CAPITALE ANNUALE CONOSCIUTO, CON O SENZA CAPITALE INIZIALE A UN TASSO DI RIV CONOSCIUTO CHE MONTANTE AVRO' TRA X ANNI? | TVU19: INVESTENDO UN CAPITALE ANNUALE CONOSCIUTO, CON O SENZA CAPITALE INIZIALE A UN TASSO DI RIV CONOSCIUTO CHE MONTANTE AVRO' TRA X ANNI? | TWK19: INVESTENDO UN CAPITALE ANNUALE CONOSCIUTO, CON O SENZA CAPITALE INIZIALE A UN TASSO DI RIV CONOSCIUTO CHE MONTANTE AVRO' TRA X ANNI? | TXA19: INVESTENDO UN CAPITALE ANNUALE CONOSCIUTO, CON O SENZA CAPITALE INIZIALE A UN TASSO DI RIV CONOSCIUTO CHE MONTANTE AVRO' TRA X ANNI? | TXQ19: INVESTENDO UN CAPITALE ANNUALE CONOSCIUTO, CON O SENZA CAPITALE INIZIALE A UN TASSO DI RIV CONOSCIUTO CHE MONTANTE AVRO' TRA X ANNI? | TYG19: INVESTENDO UN CAPITALE ANNUALE CONOSCIUTO, CON O SENZA CAPITALE INIZIALE A UN TASSO DI RIV CONOSCIUTO CHE MONTANTE AVRO' TRA X ANNI? | TYW19: INVESTENDO UN CAPITALE ANNUALE CONOSCIUTO, CON O SENZA CAPITALE INIZIALE A UN TASSO DI RIV CONOSCIUTO CHE MONTANTE AVRO' TRA X ANNI? | TZM19: INVESTENDO UN CAPITALE ANNUALE CONOSCIUTO, CON O SENZA CAPITALE INIZIALE A UN TASSO DI RIV CONOSCIUTO CHE MONTANTE AVRO' TRA X ANNI? | UAC19: INVESTENDO UN CAPITALE ANNUALE CONOSCIUTO, CON O SENZA CAPITALE INIZIALE A UN TASSO DI RIV CONOSCIUTO CHE MONTANTE AVRO' TRA X ANNI? | UAS19: INVESTENDO UN CAPITALE ANNUALE CONOSCIUTO, CON O SENZA CAPITALE INIZIALE A UN TASSO DI RIV CONOSCIUTO CHE MONTANTE AVRO' TRA X ANNI? | UBI19: INVESTENDO UN CAPITALE ANNUALE CONOSCIUTO, CON O SENZA CAPITALE INIZIALE A UN TASSO DI RIV CONOSCIUTO CHE MONTANTE AVRO' TRA X ANNI? | UBY19: INVESTENDO UN CAPITALE ANNUALE CONOSCIUTO, CON O SENZA CAPITALE INIZIALE A UN TASSO DI RIV CONOSCIUTO CHE MONTANTE AVRO' TRA X ANNI? | UCO19: INVESTENDO UN CAPITALE ANNUALE CONOSCIUTO, CON O SENZA CAPITALE INIZIALE A UN TASSO DI RIV CONOSCIUTO CHE MONTANTE AVRO' TRA X ANNI? | UDE19: INVESTENDO UN CAPITALE ANNUALE CONOSCIUTO, CON O SENZA CAPITALE INIZIALE A UN TASSO DI RIV CONOSCIUTO CHE MONTANTE AVRO' TRA X ANNI? | UDU19: INVESTENDO UN CAPITALE ANNUALE CONOSCIUTO, CON O SENZA CAPITALE INIZIALE A UN TASSO DI RIV CONOSCIUTO CHE MONTANTE AVRO' TRA X ANNI? | UEK19: INVESTENDO UN CAPITALE ANNUALE CONOSCIUTO, CON O SENZA CAPITALE INIZIALE A UN TASSO DI RIV CONOSCIUTO CHE MONTANTE AVRO' TRA X ANNI? | UFA19: INVESTENDO UN CAPITALE ANNUALE CONOSCIUTO, CON O SENZA CAPITALE INIZIALE A UN TASSO DI RIV CONOSCIUTO CHE MONTANTE AVRO' TRA X ANNI? | UFQ19: INVESTENDO UN CAPITALE ANNUALE CONOSCIUTO, CON O SENZA CAPITALE INIZIALE A UN TASSO DI RIV CONOSCIUTO CHE MONTANTE AVRO' TRA X ANNI? | UGG19: INVESTENDO UN CAPITALE ANNUALE CONOSCIUTO, CON O SENZA CAPITALE INIZIALE A UN TASSO DI RIV CONOSCIUTO CHE MONTANTE AVRO' TRA X ANNI? | UGW19: INVESTENDO UN CAPITALE ANNUALE CONOSCIUTO, CON O SENZA CAPITALE INIZIALE A UN TASSO DI RIV CONOSCIUTO CHE MONTANTE AVRO' TRA X ANNI? | UHM19: INVESTENDO UN CAPITALE ANNUALE CONOSCIUTO, CON O SENZA CAPITALE INIZIALE A UN TASSO DI RIV CONOSCIUTO CHE MONTANTE AVRO' TRA X ANNI? | UIC19: INVESTENDO UN CAPITALE ANNUALE CONOSCIUTO, CON O SENZA CAPITALE INIZIALE A UN TASSO DI RIV CONOSCIUTO CHE MONTANTE AVRO' TRA X ANNI? | UIS19: INVESTENDO UN CAPITALE ANNUALE CONOSCIUTO, CON O SENZA CAPITALE INIZIALE A UN TASSO DI RIV CONOSCIUTO CHE MONTANTE AVRO' TRA X ANNI? | UJI19: INVESTENDO UN CAPITALE ANNUALE CONOSCIUTO, CON O SENZA CAPITALE INIZIALE A UN TASSO DI RIV CONOSCIUTO CHE MONTANTE AVRO' TRA X ANNI? | UJY19: INVESTENDO UN CAPITALE ANNUALE CONOSCIUTO, CON O SENZA CAPITALE INIZIALE A UN TASSO DI RIV CONOSCIUTO CHE MONTANTE AVRO' TRA X ANNI? | UKO19: INVESTENDO UN CAPITALE ANNUALE CONOSCIUTO, CON O SENZA CAPITALE INIZIALE A UN TASSO DI RIV CONOSCIUTO CHE MONTANTE AVRO' TRA X ANNI? | ULE19: INVESTENDO UN CAPITALE ANNUALE CONOSCIUTO, CON O SENZA CAPITALE INIZIALE A UN TASSO DI RIV CONOSCIUTO CHE MONTANTE AVRO' TRA X ANNI? | ULU19: INVESTENDO UN CAPITALE ANNUALE CONOSCIUTO, CON O SENZA CAPITALE INIZIALE A UN TASSO DI RIV CONOSCIUTO CHE MONTANTE AVRO' TRA X ANNI? | UMK19: INVESTENDO UN CAPITALE ANNUALE CONOSCIUTO, CON O SENZA CAPITALE INIZIALE A UN TASSO DI RIV CONOSCIUTO CHE MONTANTE AVRO' TRA X ANNI? | UNA19: INVESTENDO UN CAPITALE ANNUALE CONOSCIUTO, CON O SENZA CAPITALE INIZIALE A UN TASSO DI RIV CONOSCIUTO CHE MONTANTE AVRO' TRA X ANNI? | UNQ19: INVESTENDO UN CAPITALE ANNUALE CONOSCIUTO, CON O SENZA CAPITALE INIZIALE A UN TASSO DI RIV CONOSCIUTO CHE MONTANTE AVRO' TRA X ANNI? | UOG19: INVESTENDO UN CAPITALE ANNUALE CONOSCIUTO, CON O SENZA CAPITALE INIZIALE A UN TASSO DI RIV CONOSCIUTO CHE MONTANTE AVRO' TRA X ANNI? | UOW19: INVESTENDO UN CAPITALE ANNUALE CONOSCIUTO, CON O SENZA CAPITALE INIZIALE A UN TASSO DI RIV CONOSCIUTO CHE MONTANTE AVRO' TRA X ANNI? | UPM19: INVESTENDO UN CAPITALE ANNUALE CONOSCIUTO, CON O SENZA CAPITALE INIZIALE A UN TASSO DI RIV CONOSCIUTO CHE MONTANTE AVRO' TRA X ANNI? | UQC19: INVESTENDO UN CAPITALE ANNUALE CONOSCIUTO, CON O SENZA CAPITALE INIZIALE A UN TASSO DI RIV CONOSCIUTO CHE MONTANTE AVRO' TRA X ANNI? | UQS19: INVESTENDO UN CAPITALE ANNUALE CONOSCIUTO, CON O SENZA CAPITALE INIZIALE A UN TASSO DI RIV CONOSCIUTO CHE MONTANTE AVRO' TRA X ANNI? | URI19: INVESTENDO UN CAPITALE ANNUALE CONOSCIUTO, CON O SENZA CAPITALE INIZIALE A UN TASSO DI RIV CONOSCIUTO CHE MONTANTE AVRO' TRA X ANNI? | URY19: INVESTENDO UN CAPITALE ANNUALE CONOSCIUTO, CON O SENZA CAPITALE INIZIALE A UN TASSO DI RIV CONOSCIUTO CHE MONTANTE AVRO' TRA X ANNI? | USO19: INVESTENDO UN CAPITALE ANNUALE CONOSCIUTO, CON O SENZA CAPITALE INIZIALE A UN TASSO DI RIV CONOSCIUTO CHE MONTANTE AVRO' TRA X ANNI? | UTE19: INVESTENDO UN CAPITALE ANNUALE CONOSCIUTO, CON O SENZA CAPITALE INIZIALE A UN TASSO DI RIV CONOSCIUTO CHE MONTANTE AVRO' TRA X ANNI? | UTU19: INVESTENDO UN CAPITALE ANNUALE CONOSCIUTO, CON O SENZA CAPITALE INIZIALE A UN TASSO DI RIV CONOSCIUTO CHE MONTANTE AVRO' TRA X ANNI? | UUK19: INVESTENDO UN CAPITALE ANNUALE CONOSCIUTO, CON O SENZA CAPITALE INIZIALE A UN TASSO DI RIV CONOSCIUTO CHE MONTANTE AVRO' TRA X ANNI? | UVA19: INVESTENDO UN CAPITALE ANNUALE CONOSCIUTO, CON O SENZA CAPITALE INIZIALE A UN TASSO DI RIV CONOSCIUTO CHE MONTANTE AVRO' TRA X ANNI? | UVQ19: INVESTENDO UN CAPITALE ANNUALE CONOSCIUTO, CON O SENZA CAPITALE INIZIALE A UN TASSO DI RIV CONOSCIUTO CHE MONTANTE AVRO' TRA X ANNI? | UWG19: INVESTENDO UN CAPITALE ANNUALE CONOSCIUTO, CON O SENZA CAPITALE INIZIALE A UN TASSO DI RIV CONOSCIUTO CHE MONTANTE AVRO' TRA X ANNI? | UWW19: INVESTENDO UN CAPITALE ANNUALE CONOSCIUTO, CON O SENZA CAPITALE INIZIALE A UN TASSO DI RIV CONOSCIUTO CHE MONTANTE AVRO' TRA X ANNI? | UXM19: INVESTENDO UN CAPITALE ANNUALE CONOSCIUTO, CON O SENZA CAPITALE INIZIALE A UN TASSO DI RIV CONOSCIUTO CHE MONTANTE AVRO' TRA X ANNI? | UYC19: INVESTENDO UN CAPITALE ANNUALE CONOSCIUTO, CON O SENZA CAPITALE INIZIALE A UN TASSO DI RIV CONOSCIUTO CHE MONTANTE AVRO' TRA X ANNI? | UYS19: INVESTENDO UN CAPITALE ANNUALE CONOSCIUTO, CON O SENZA CAPITALE INIZIALE A UN TASSO DI RIV CONOSCIUTO CHE MONTANTE AVRO' TRA X ANNI? | UZI19: INVESTENDO UN CAPITALE ANNUALE CONOSCIUTO, CON O SENZA CAPITALE INIZIALE A UN TASSO DI RIV CONOSCIUTO CHE MONTANTE AVRO' TRA X ANNI? | UZY19: INVESTENDO UN CAPITALE ANNUALE CONOSCIUTO, CON O SENZA CAPITALE INIZIALE A UN TASSO DI RIV CONOSCIUTO CHE MONTANTE AVRO' TRA X ANNI? | VAO19: INVESTENDO UN CAPITALE ANNUALE CONOSCIUTO, CON O SENZA CAPITALE INIZIALE A UN TASSO DI RIV CONOSCIUTO CHE MONTANTE AVRO' TRA X ANNI? | VBE19: INVESTENDO UN CAPITALE ANNUALE CONOSCIUTO, CON O SENZA CAPITALE INIZIALE A UN TASSO DI RIV CONOSCIUTO CHE MONTANTE AVRO' TRA X ANNI? | VBU19: INVESTENDO UN CAPITALE ANNUALE CONOSCIUTO, CON O SENZA CAPITALE INIZIALE A UN TASSO DI RIV CONOSCIUTO CHE MONTANTE AVRO' TRA X ANNI? | VCK19: INVESTENDO UN CAPITALE ANNUALE CONOSCIUTO, CON O SENZA CAPITALE INIZIALE A UN TASSO DI RIV CONOSCIUTO CHE MONTANTE AVRO' TRA X ANNI? | VDA19: INVESTENDO UN CAPITALE ANNUALE CONOSCIUTO, CON O SENZA CAPITALE INIZIALE A UN TASSO DI RIV CONOSCIUTO CHE MONTANTE AVRO' TRA X ANNI? | VDQ19: INVESTENDO UN CAPITALE ANNUALE CONOSCIUTO, CON O SENZA CAPITALE INIZIALE A UN TASSO DI RIV CONOSCIUTO CHE MONTANTE AVRO' TRA X ANNI? | VEG19: INVESTENDO UN CAPITALE ANNUALE CONOSCIUTO, CON O SENZA CAPITALE INIZIALE A UN TASSO DI RIV CONOSCIUTO CHE MONTANTE AVRO' TRA X ANNI? | VEW19: INVESTENDO UN CAPITALE ANNUALE CONOSCIUTO, CON O SENZA CAPITALE INIZIALE A UN TASSO DI RIV CONOSCIUTO CHE MONTANTE AVRO' TRA X ANNI? | VFM19: INVESTENDO UN CAPITALE ANNUALE CONOSCIUTO, CON O SENZA CAPITALE INIZIALE A UN TASSO DI RIV CONOSCIUTO CHE MONTANTE AVRO' TRA X ANNI? | VGC19: INVESTENDO UN CAPITALE ANNUALE CONOSCIUTO, CON O SENZA CAPITALE INIZIALE A UN TASSO DI RIV CONOSCIUTO CHE MONTANTE AVRO' TRA X ANNI? | VGS19: INVESTENDO UN CAPITALE ANNUALE CONOSCIUTO, CON O SENZA CAPITALE INIZIALE A UN TASSO DI RIV CONOSCIUTO CHE MONTANTE AVRO' TRA X ANNI? | VHI19: INVESTENDO UN CAPITALE ANNUALE CONOSCIUTO, CON O SENZA CAPITALE INIZIALE A UN TASSO DI RIV CONOSCIUTO CHE MONTANTE AVRO' TRA X ANNI? | VHY19: INVESTENDO UN CAPITALE ANNUALE CONOSCIUTO, CON O SENZA CAPITALE INIZIALE A UN TASSO DI RIV CONOSCIUTO CHE MONTANTE AVRO' TRA X ANNI? | VIO19: INVESTENDO UN CAPITALE ANNUALE CONOSCIUTO, CON O SENZA CAPITALE INIZIALE A UN TASSO DI RIV CONOSCIUTO CHE MONTANTE AVRO' TRA X ANNI? | VJE19: INVESTENDO UN CAPITALE ANNUALE CONOSCIUTO, CON O SENZA CAPITALE INIZIALE A UN TASSO DI RIV CONOSCIUTO CHE MONTANTE AVRO' TRA X ANNI? | VJU19: INVESTENDO UN CAPITALE ANNUALE CONOSCIUTO, CON O SENZA CAPITALE INIZIALE A UN TASSO DI RIV CONOSCIUTO CHE MONTANTE AVRO' TRA X ANNI? | VKK19: INVESTENDO UN CAPITALE ANNUALE CONOSCIUTO, CON O SENZA CAPITALE INIZIALE A UN TASSO DI RIV CONOSCIUTO CHE MONTANTE AVRO' TRA X ANNI? | VLA19: INVESTENDO UN CAPITALE ANNUALE CONOSCIUTO, CON O SENZA CAPITALE INIZIALE A UN TASSO DI RIV CONOSCIUTO CHE MONTANTE AVRO' TRA X ANNI? | VLQ19: INVESTENDO UN CAPITALE ANNUALE CONOSCIUTO, CON O SENZA CAPITALE INIZIALE A UN TASSO DI RIV CONOSCIUTO CHE MONTANTE AVRO' TRA X ANNI? | VMG19: INVESTENDO UN CAPITALE ANNUALE CONOSCIUTO, CON O SENZA CAPITALE INIZIALE A UN TASSO DI RIV CONOSCIUTO CHE MONTANTE AVRO' TRA X ANNI? | VMW19: INVESTENDO UN CAPITALE ANNUALE CONOSCIUTO, CON O SENZA CAPITALE INIZIALE A UN TASSO DI RIV CONOSCIUTO CHE MONTANTE AVRO' TRA X ANNI? | VNM19: INVESTENDO UN CAPITALE ANNUALE CONOSCIUTO, CON O SENZA CAPITALE INIZIALE A UN TASSO DI RIV CONOSCIUTO CHE MONTANTE AVRO' TRA X ANNI? | VOC19: INVESTENDO UN CAPITALE ANNUALE CONOSCIUTO, CON O SENZA CAPITALE INIZIALE A UN TASSO DI RIV CONOSCIUTO CHE MONTANTE AVRO' TRA X ANNI? | VOS19: INVESTENDO UN CAPITALE ANNUALE CONOSCIUTO, CON O SENZA CAPITALE INIZIALE A UN TASSO DI RIV CONOSCIUTO CHE MONTANTE AVRO' TRA X ANNI? | VPI19: INVESTENDO UN CAPITALE ANNUALE CONOSCIUTO, CON O SENZA CAPITALE INIZIALE A UN TASSO DI RIV CONOSCIUTO CHE MONTANTE AVRO' TRA X ANNI? | VPY19: INVESTENDO UN CAPITALE ANNUALE CONOSCIUTO, CON O SENZA CAPITALE INIZIALE A UN TASSO DI RIV CONOSCIUTO CHE MONTANTE AVRO' TRA X ANNI? | VQO19: INVESTENDO UN CAPITALE ANNUALE CONOSCIUTO, CON O SENZA CAPITALE INIZIALE A UN TASSO DI RIV CONOSCIUTO CHE MONTANTE AVRO' TRA X ANNI? | VRE19: INVESTENDO UN CAPITALE ANNUALE CONOSCIUTO, CON O SENZA CAPITALE INIZIALE A UN TASSO DI RIV CONOSCIUTO CHE MONTANTE AVRO' TRA X ANNI? | VRU19: INVESTENDO UN CAPITALE ANNUALE CONOSCIUTO, CON O SENZA CAPITALE INIZIALE A UN TASSO DI RIV CONOSCIUTO CHE MONTANTE AVRO' TRA X ANNI? | VSK19: INVESTENDO UN CAPITALE ANNUALE CONOSCIUTO, CON O SENZA CAPITALE INIZIALE A UN TASSO DI RIV CONOSCIUTO CHE MONTANTE AVRO' TRA X ANNI? | VTA19: INVESTENDO UN CAPITALE ANNUALE CONOSCIUTO, CON O SENZA CAPITALE INIZIALE A UN TASSO DI RIV CONOSCIUTO CHE MONTANTE AVRO' TRA X ANNI? | VTQ19: INVESTENDO UN CAPITALE ANNUALE CONOSCIUTO, CON O SENZA CAPITALE INIZIALE A UN TASSO DI RIV CONOSCIUTO CHE MONTANTE AVRO' TRA X ANNI? | VUG19: INVESTENDO UN CAPITALE ANNUALE CONOSCIUTO, CON O SENZA CAPITALE INIZIALE A UN TASSO DI RIV CONOSCIUTO CHE MONTANTE AVRO' TRA X ANNI? | VUW19: INVESTENDO UN CAPITALE ANNUALE CONOSCIUTO, CON O SENZA CAPITALE INIZIALE A UN TASSO DI RIV CONOSCIUTO CHE MONTANTE AVRO' TRA X ANNI? | VVM19: INVESTENDO UN CAPITALE ANNUALE CONOSCIUTO, CON O SENZA CAPITALE INIZIALE A UN TASSO DI RIV CONOSCIUTO CHE MONTANTE AVRO' TRA X ANNI? | VWC19: INVESTENDO UN CAPITALE ANNUALE CONOSCIUTO, CON O SENZA CAPITALE INIZIALE A UN TASSO DI RIV CONOSCIUTO CHE MONTANTE AVRO' TRA X ANNI? | VWS19: INVESTENDO UN CAPITALE ANNUALE CONOSCIUTO, CON O SENZA CAPITALE INIZIALE A UN TASSO DI RIV CONOSCIUTO CHE MONTANTE AVRO' TRA X ANNI? | VXI19: INVESTENDO UN CAPITALE ANNUALE CONOSCIUTO, CON O SENZA CAPITALE INIZIALE A UN TASSO DI RIV CONOSCIUTO CHE MONTANTE AVRO' TRA X ANNI? | VXY19: INVESTENDO UN CAPITALE ANNUALE CONOSCIUTO, CON O SENZA CAPITALE INIZIALE A UN TASSO DI RIV CONOSCIUTO CHE MONTANTE AVRO' TRA X ANNI? | VYO19: INVESTENDO UN CAPITALE ANNUALE CONOSCIUTO, CON O SENZA CAPITALE INIZIALE A UN TASSO DI RIV CONOSCIUTO CHE MONTANTE AVRO' TRA X ANNI? | VZE19: INVESTENDO UN CAPITALE ANNUALE CONOSCIUTO, CON O SENZA CAPITALE INIZIALE A UN TASSO DI RIV CONOSCIUTO CHE MONTANTE AVRO' TRA X ANNI? | VZU19: INVESTENDO UN CAPITALE ANNUALE CONOSCIUTO, CON O SENZA CAPITALE INIZIALE A UN TASSO DI RIV CONOSCIUTO CHE MONTANTE AVRO' TRA X ANNI? | WAK19: INVESTENDO UN CAPITALE ANNUALE CONOSCIUTO, CON O SENZA CAPITALE INIZIALE A UN TASSO DI RIV CONOSCIUTO CHE MONTANTE AVRO' TRA X ANNI? | WBA19: INVESTENDO UN CAPITALE ANNUALE CONOSCIUTO, CON O SENZA CAPITALE INIZIALE A UN TASSO DI RIV CONOSCIUTO CHE MONTANTE AVRO' TRA X ANNI? | WBQ19: INVESTENDO UN CAPITALE ANNUALE CONOSCIUTO, CON O SENZA CAPITALE INIZIALE A UN TASSO DI RIV CONOSCIUTO CHE MONTANTE AVRO' TRA X ANNI? | WCG19: INVESTENDO UN CAPITALE ANNUALE CONOSCIUTO, CON O SENZA CAPITALE INIZIALE A UN TASSO DI RIV CONOSCIUTO CHE MONTANTE AVRO' TRA X ANNI? | WCW19: INVESTENDO UN CAPITALE ANNUALE CONOSCIUTO, CON O SENZA CAPITALE INIZIALE A UN TASSO DI RIV CONOSCIUTO CHE MONTANTE AVRO' TRA X ANNI? | WDM19: INVESTENDO UN CAPITALE ANNUALE CONOSCIUTO, CON O SENZA CAPITALE INIZIALE A UN TASSO DI RIV CONOSCIUTO CHE MONTANTE AVRO' TRA X ANNI? | WEC19: INVESTENDO UN CAPITALE ANNUALE CONOSCIUTO, CON O SENZA CAPITALE INIZIALE A UN TASSO DI RIV CONOSCIUTO CHE MONTANTE AVRO' TRA X ANNI? | WES19: INVESTENDO UN CAPITALE ANNUALE CONOSCIUTO, CON O SENZA CAPITALE INIZIALE A UN TASSO DI RIV CONOSCIUTO CHE MONTANTE AVRO' TRA X ANNI? | WFI19: INVESTENDO UN CAPITALE ANNUALE CONOSCIUTO, CON O SENZA CAPITALE INIZIALE A UN TASSO DI RIV CONOSCIUTO CHE MONTANTE AVRO' TRA X ANNI? | WFY19: INVESTENDO UN CAPITALE ANNUALE CONOSCIUTO, CON O SENZA CAPITALE INIZIALE A UN TASSO DI RIV CONOSCIUTO CHE MONTANTE AVRO' TRA X ANNI? | WGO19: INVESTENDO UN CAPITALE ANNUALE CONOSCIUTO, CON O SENZA CAPITALE INIZIALE A UN TASSO DI RIV CONOSCIUTO CHE MONTANTE AVRO' TRA X ANNI? | WHE19: INVESTENDO UN CAPITALE ANNUALE CONOSCIUTO, CON O SENZA CAPITALE INIZIALE A UN TASSO DI RIV CONOSCIUTO CHE MONTANTE AVRO' TRA X ANNI? | WHU19: INVESTENDO UN CAPITALE ANNUALE CONOSCIUTO, CON O SENZA CAPITALE INIZIALE A UN TASSO DI RIV CONOSCIUTO CHE MONTANTE AVRO' TRA X ANNI? | WIK19: INVESTENDO UN CAPITALE ANNUALE CONOSCIUTO, CON O SENZA CAPITALE INIZIALE A UN TASSO DI RIV CONOSCIUTO CHE MONTANTE AVRO' TRA X ANNI? | WJA19: INVESTENDO UN CAPITALE ANNUALE CONOSCIUTO, CON O SENZA CAPITALE INIZIALE A UN TASSO DI RIV CONOSCIUTO CHE MONTANTE AVRO' TRA X ANNI? | WJQ19: INVESTENDO UN CAPITALE ANNUALE CONOSCIUTO, CON O SENZA CAPITALE INIZIALE A UN TASSO DI RIV CONOSCIUTO CHE MONTANTE AVRO' TRA X ANNI? | WKG19: INVESTENDO UN CAPITALE ANNUALE CONOSCIUTO, CON O SENZA CAPITALE INIZIALE A UN TASSO DI RIV CONOSCIUTO CHE MONTANTE AVRO' TRA X ANNI? | WKW19: INVESTENDO UN CAPITALE ANNUALE CONOSCIUTO, CON O SENZA CAPITALE INIZIALE A UN TASSO DI RIV CONOSCIUTO CHE MONTANTE AVRO' TRA X ANNI? | WLM19: INVESTENDO UN CAPITALE ANNUALE CONOSCIUTO, CON O SENZA CAPITALE INIZIALE A UN TASSO DI RIV CONOSCIUTO CHE MONTANTE AVRO' TRA X ANNI? | WMC19: INVESTENDO UN CAPITALE ANNUALE CONOSCIUTO, CON O SENZA CAPITALE INIZIALE A UN TASSO DI RIV CONOSCIUTO CHE MONTANTE AVRO' TRA X ANNI? | WMS19: INVESTENDO UN CAPITALE ANNUALE CONOSCIUTO, CON O SENZA CAPITALE INIZIALE A UN TASSO DI RIV CONOSCIUTO CHE MONTANTE AVRO' TRA X ANNI? | WNI19: INVESTENDO UN CAPITALE ANNUALE CONOSCIUTO, CON O SENZA CAPITALE INIZIALE A UN TASSO DI RIV CONOSCIUTO CHE MONTANTE AVRO' TRA X ANNI? | WNY19: INVESTENDO UN CAPITALE ANNUALE CONOSCIUTO, CON O SENZA CAPITALE INIZIALE A UN TASSO DI RIV CONOSCIUTO CHE MONTANTE AVRO' TRA X ANNI? | WOO19: INVESTENDO UN CAPITALE ANNUALE CONOSCIUTO, CON O SENZA CAPITALE INIZIALE A UN TASSO DI RIV CONOSCIUTO CHE MONTANTE AVRO' TRA X ANNI? | WPE19: INVESTENDO UN CAPITALE ANNUALE CONOSCIUTO, CON O SENZA CAPITALE INIZIALE A UN TASSO DI RIV CONOSCIUTO CHE MONTANTE AVRO' TRA X ANNI? | WPU19: INVESTENDO UN CAPITALE ANNUALE CONOSCIUTO, CON O SENZA CAPITALE INIZIALE A UN TASSO DI RIV CONOSCIUTO CHE MONTANTE AVRO' TRA X ANNI? | WQK19: INVESTENDO UN CAPITALE ANNUALE CONOSCIUTO, CON O SENZA CAPITALE INIZIALE A UN TASSO DI RIV CONOSCIUTO CHE MONTANTE AVRO' TRA X ANNI? | WRA19: INVESTENDO UN CAPITALE ANNUALE CONOSCIUTO, CON O SENZA CAPITALE INIZIALE A UN TASSO DI RIV CONOSCIUTO CHE MONTANTE AVRO' TRA X ANNI? | WRQ19: INVESTENDO UN CAPITALE ANNUALE CONOSCIUTO, CON O SENZA CAPITALE INIZIALE A UN TASSO DI RIV CONOSCIUTO CHE MONTANTE AVRO' TRA X ANNI? | WSG19: INVESTENDO UN CAPITALE ANNUALE CONOSCIUTO, CON O SENZA CAPITALE INIZIALE A UN TASSO DI RIV CONOSCIUTO CHE MONTANTE AVRO' TRA X ANNI? | WSW19: INVESTENDO UN CAPITALE ANNUALE CONOSCIUTO, CON O SENZA CAPITALE INIZIALE A UN TASSO DI RIV CONOSCIUTO CHE MONTANTE AVRO' TRA X ANNI? | WTM19: INVESTENDO UN CAPITALE ANNUALE CONOSCIUTO, CON O SENZA CAPITALE INIZIALE A UN TASSO DI RIV CONOSCIUTO CHE MONTANTE AVRO' TRA X ANNI? | WUC19: INVESTENDO UN CAPITALE ANNUALE CONOSCIUTO, CON O SENZA CAPITALE INIZIALE A UN TASSO DI RIV CONOSCIUTO CHE MONTANTE AVRO' TRA X ANNI? | WUS19: INVESTENDO UN CAPITALE ANNUALE CONOSCIUTO, CON O SENZA CAPITALE INIZIALE A UN TASSO DI RIV CONOSCIUTO CHE MONTANTE AVRO' TRA X ANNI? | WVI19: INVESTENDO UN CAPITALE ANNUALE CONOSCIUTO, CON O SENZA CAPITALE INIZIALE A UN TASSO DI RIV CONOSCIUTO CHE MONTANTE AVRO' TRA X ANNI? | WVY19: INVESTENDO UN CAPITALE ANNUALE CONOSCIUTO, CON O SENZA CAPITALE INIZIALE A UN TASSO DI RIV CONOSCIUTO CHE MONTANTE AVRO' TRA X ANNI? | WWO19: INVESTENDO UN CAPITALE ANNUALE CONOSCIUTO, CON O SENZA CAPITALE INIZIALE A UN TASSO DI RIV CONOSCIUTO CHE MONTANTE AVRO' TRA X ANNI? | WXE19: INVESTENDO UN CAPITALE ANNUALE CONOSCIUTO, CON O SENZA CAPITALE INIZIALE A UN TASSO DI RIV CONOSCIUTO CHE MONTANTE AVRO' TRA X ANNI? | WXU19: INVESTENDO UN CAPITALE ANNUALE CONOSCIUTO, CON O SENZA CAPITALE INIZIALE A UN TASSO DI RIV CONOSCIUTO CHE MONTANTE AVRO' TRA X ANNI? | WYK19: INVESTENDO UN CAPITALE ANNUALE CONOSCIUTO, CON O SENZA CAPITALE INIZIALE A UN TASSO DI RIV CONOSCIUTO CHE MONTANTE AVRO' TRA X ANNI? | WZA19: INVESTENDO UN CAPITALE ANNUALE CONOSCIUTO, CON O SENZA CAPITALE INIZIALE A UN TASSO DI RIV CONOSCIUTO CHE MONTANTE AVRO' TRA X ANNI? | WZQ19: INVESTENDO UN CAPITALE ANNUALE CONOSCIUTO, CON O SENZA CAPITALE INIZIALE A UN TASSO DI RIV CONOSCIUTO CHE MONTANTE AVRO' TRA X ANNI? | XAG19: INVESTENDO UN CAPITALE ANNUALE CONOSCIUTO, CON O SENZA CAPITALE INIZIALE A UN TASSO DI RIV CONOSCIUTO CHE MONTANTE AVRO' TRA X ANNI? | XAW19: INVESTENDO UN CAPITALE ANNUALE CONOSCIUTO, CON O SENZA CAPITALE INIZIALE A UN TASSO DI RIV CONOSCIUTO CHE MONTANTE AVRO' TRA X ANNI? | XBM19: INVESTENDO UN CAPITALE ANNUALE CONOSCIUTO, CON O SENZA CAPITALE INIZIALE A UN TASSO DI RIV CONOSCIUTO CHE MONTANTE AVRO' TRA X ANNI? | XCC19: INVESTENDO UN CAPITALE ANNUALE CONOSCIUTO, CON O SENZA CAPITALE INIZIALE A UN TASSO DI RIV CONOSCIUTO CHE MONTANTE AVRO' TRA X ANNI? | XCS19: INVESTENDO UN CAPITALE ANNUALE CONOSCIUTO, CON O SENZA CAPITALE INIZIALE A UN TASSO DI RIV CONOSCIUTO CHE MONTANTE AVRO' TRA X ANNI? | XDI19: INVESTENDO UN CAPITALE ANNUALE CONOSCIUTO, CON O SENZA CAPITALE INIZIALE A UN TASSO DI RIV CONOSCIUTO CHE MONTANTE AVRO' TRA X ANNI? | XDY19: INVESTENDO UN CAPITALE ANNUALE CONOSCIUTO, CON O SENZA CAPITALE INIZIALE A UN TASSO DI RIV CONOSCIUTO CHE MONTANTE AVRO' TRA X ANNI? | XEO19: INVESTENDO UN CAPITALE ANNUALE CONOSCIUTO, CON O SENZA CAPITALE INIZIALE A UN TASSO DI RIV CONOSCIUTO CHE MONTANTE AVRO' TRA X ANNI?
A23: Avvertenza: I risultati di calcolo sono basati su procedure che utilizzano dati stimati dall'aderente e pertanto potrebbero non trovare conferma nel corso del rapporto. Quindi la posizione
A24: individuale maturata e la prestazione pensionistica corrispondente potrebbero risultare differenti da quelle riportate nel progetto esemplificativo individuale.
H26: PROGETTO ESEMPLIFICATIVO INDIVIDUALE
H29: CALCOLO RENDITE VITALIZIE
E31: PROPRIETA' INTELLETTUALE E REALIZZAZIONE DI GIUSEPPE NICOLETTI - E' VIETATA LA RIPRODUZIONE E/O COMMERCIALIZZAZIONE ANCHE PARZIALE

Sheet TFR
E3: CONVIENE INVESTIRE IL TFR IN UN FONDO O LASCIARLO IN AZIENDA?
C6: RETRIBUZIONE ANNUALE INIZIALE | H6: 30000
C8: % INCREMENTO ANNUO RETRIBUZIONE | H8: 2 | I8: la percentuale inserita può essere modificata secondo stime individuali
K9: ANNI
C10: ANNO INIZIO INVESTIMENTO TFR NEL FONDO | H10: 2014 | K10: =+H11-H10+1 -> 21 | M10: TASSAZIONE
C11: ANNO FINE INVESTIMENTO NEL FONDO | H11: 2034 | L11: RISCATTO | O11: PENSIONAMENTO
I12: O/W RIV | J12: SOLO TFR | L12: FONDO | M12: AZIENDA | O12: FONDO | P12: AZIENDA
C13: TFR YTD NEL FONDO | H13: =VLOOKUP(H11,CALCOLI1!$H$29:$U$59,5) -> 80101.60633 | I13: =VLOOKUP(H11,CALCOLI1!$H$29:$U$59,14) -> 22805.3459 | J13: =+H13-I13 -> 57296.26043 | L13: 0.23 | M13: =+CALCOLI1!Q69/100 -> 0.2505881856 | O13: =VLOOKUP(K10,CALCOLI1!$H$72:$J$113,3)/100 -> 0.132 | P13: =+M13 -> 0.2505881856
C14: TFR YTD IN AZIENDA | H14: =VLOOKUP(H11,CALCOLI1!$H$29:$U$59,4) -> 77983.75629 | I14: =VLOOKUP(H11,CALCOLI1!$H$29:$U$59,13) -> 20687.49585 | J14: =+H14-I14 -> 57296.26043
C16: DELTA FONDO - AZIENDA | H16: =+H13-H14 -> 2117.850043 | L16: =+M13-L13 -> 0.02058818559 | O16: =+P13-O13 -> 0.1185881856
D19: <===== campi modificabili
D20: <===== risultato | I20: <===== modifica facoltativa
A22: ATTENZIONE: LE PERCENTUALI DI RIVALUTAZIONE DOPO IL 2013 SONO STIMATE CON INFLAZIONE CHE SI INCREMENTA DEL 2% ALL'ANNO E FONDO CHE SI MANTIENE STABILE AL 4% ANNUO
C23: PROPRIETA' INTELLETTUALE E REALIZZAZIONE DI GIUSEPPE NICOLETTI - E' VIETATA LA RIPRODUZIONE E/O COMMERCIALIZZAZIONE ANCHE PARZIALE

Sheet TCM
C3: TRA QUANTO TEMPO INVESTENDO UN CAPITALE NOTO A UN TASSO ANNUO DI RENDIMENTO NOTO POTRO' AVERE IL MONTANTE CHE MI SERVE?
C5: CAPITALE INVESTITO | F5: 5000 | H5: anni | I5: mesi | J5: giorni
C6: MONTANTE DESIDERATO | F6: 20000 | H6: =+CALCOLI!H8 -> 35 | I6: =+CALCOLI!I8 -> 4 | J6: =+CALCOLI!J8 -> 4
C7: TASSO ANNUO RENDIMENTO | F7: 4
C9: QUANTO CAPITALE DEVO INVESTIRE PER OTTENERE TRA X ANNI UN MONTANTE DESIDERATO? | Q9: <===== dati modificabili
C11: MONTANTE DESIDERATO | F11: 20000 | Q11: <===== dati fissi
C12: TASSO ANNUO RENDIMENTO | F12: 3
C13: PERIODO INVESTIMENTO ANNI | F13: 12 | Q13: <===== risultato
C14: CAPITALE DA INVESTIRE | F14: =+CALCOLI!M8 -> 14027.5976
Q16: <===== modifica facoltativa
C19: INVESTENDO UN CAPITALE ANNUALE CONOSCIUTO, CON O SENZA CAPITALE INIZIALE A UN TASSO DI RIV CONOSCIUTO CHE MONTANTE AVRO' TRA X ANNI?
C21: EVENTUALE CAPITALE INIZIALE | F21: 1000 | J21: =IF(F26=0,0,VLOOKUP(F26,CALCOLI1!$L$74:$U$123,5)) -> 4975.299561 | K21: MONTANTE FINALE
C22: VERSAMENTO ANNUO | F22: 300 | J22: =IF(F26=0,0,VLOOKUP(F26,CALCOLI1!$L$74:$V$123,11)) -> 975.2995609 | K22: RIVALUTAZIONE
C23: INCREM VERSAMENTO ANNUO | F23: 0 | G23: (*) | J23: =IF(F26=0,0,VLOOKUP(F26,CALCOLI1!$L$74:$W$123,12)) -> 4000 | K23: CAPITALE INVESTITO
C24: TASSO ANNUO RENDIMENTO | F24: 3.5 | J24: 0 | K24: % CARICAMENTO
C25: INCREMENTO ANNUO RIV | F25: 1 | J25: 0.4 | K25: % NON RETROC. SU RIV.
C26: ANNI INVESTIMENTO | F26: 10 | J26: (*) la percentuale inserita può essere modificata secondo stime personali
D28: PROPRIETA' INTELLETTUALE E REALIZZAZIONE DI GIUSEPPE NICOLETTI - E' VIETATA LA RIPRODUZIONE E/O COMMERCIALIZZAZIONE ANCHE PARZIALE

Sheet M&R
D4: PROGETTO ESEMPLIFICATIVO PERSONALIZZATO | Q4: =IF(O6-I6>0,O6-I6,0) -> 60 | R4: < === età
B6: SESSO | D6: F | E6: (M o F) | G6: ANNO DI NASCITA | I6: 1978 | J6: ANNO INIZIO VERSAMENTI | L6: 2007 | M6: ANNO FINE VERSAMENTI | O6: 2038 | Q6: =IF(O6-L6>0,O6-L6,0) -> 31 | R6: < === anni versamenti
B8: RETRIBUZIONE ANNUALE | D8: 30000 | G8: % INCR. RETRIB. ANNUA | I8: 2 | J8: TFR ANNUALE | L8: =+CALCOLI1!E11 -> 2222.222222 | M8: % TFR ACCANTONATO | O8: 100 | R8: <== campi modificabili
B10: CODICE AZIENDA | D10: 1 | E10: (**) | G10: ANZIANITA' DI SERVIZIO ANNI | I10: 8 | J10: CONTR VOLONTARIO INIZIO € | L10: 0 | M10: % CONTRIB. SOLO PER EX S3 | O10: 1.6 | R10: <== modifica facoltativa
B12: % RIV FONDO | D12: 4 | E12: (°) | G12: % CARICAMENTO | I12: 0.05 | J12: % NON RETROCESSA SU RIV | L12: =0.4+CALCOLI1!AT5 -> 0.55 | R12: <===== dati fissi
B14: CONTRIBUTI YTD | D14: =+CALCOLI1!E22 -> 47199.76661 | G14: TFR YTD | I14: =+CALCOLI1!E23 -> 93234.76974 | J14: TOT YTD CON RIV | L14: =+CALCOLI1!E24 -> 190802.3163 | M14: SOLO RIVALUTAZIONE | O14: =+CALCOLI1!E25 -> 50367.77993 | R14: <===== risultato
B15: ULTIMA RETRIB PERCEPITA | D15: =+CALCOLI1!U7 -> 96500.90554
B19: (**) 1=IBM/IBM SERV FIN/TOSHIBA/ACG/ SEM/Modis/HCL/DB2I; 3=ex S3
B20: (*) valore calcolato su superstite di età UGUALE a quella dell'aderente
B21: (^) tasso di sostituzione calcolato sull'ultima retribuzione lorda percepita
B22: (°) percentuale modificabile in funzione del comparto da 1% a 4%
B25: PROPRIETA' INTELLETTUALE E REALIZZAZIONE DI GIUSEPPE NICOLETTI - E' VIETATA LA RIPRODUZIONE E/O COMMERCIALIZZAZIONE ANCHE PARZIALE

Sheet CALCOLI1 (hidden)
C3: DETERMINAZIONE DELLA RENDITA IMMEDIATA, REVERSIBILE, CERTA PER 5 E 10 ANNI, CONTROASSICURATA CASO MORTE | Q3: ETA' ALLA PENSIONE | S3: =IF($E$7-$E$5>0,$E$7-$E$5,0) -> 60 | U3: =IF($E$4="M",VLOOKUP($S$3,CALCOLI1!$X$13:$Y$102,2),VLOOKUP($S$3,CALCOLI1!$AA$13:$AB$100,2)) -> 0 | AQ3: calcolo over performance per M&R
C4: SESSO | E4: =+'M&R'!D6 -> F | Q4: RENDITA IMMEDIATA | U4: RETRIBUZIONE | V4: TASSO SOST
C5: ANNO DI NASCITA | E5: =IF('M&R'!I6>0,'M&R'!I6,0) -> 1978 | H5: =TODAY() -> 2018-05-02 | I5: =YEAR(H5) -> 2018 | J5: =+I5-E5 -> 40 | K5: <=ETA' | Q5: ETA' ALLA PENS+AGE SHIFTING | S5: =IF($E$7-$E$5>0,$E$7-$E$5+U3,0) -> 60 | Z5: RENDITA | AA5: VALORE | AB5: TASSO SOST.(^) | AQ5: =+'M&R'!D12 -> 4 | AR5: =IF(AQ5>2.5,AQ5-2.5,0) -> 1.5 | AS5: =+AR5*10 -> 15 | AT5: =+AS5*0.01 -> 0.15
C6: ANNO INIZIO VERSAMENTI | E6: =IF('M&R'!L6>0,'M&R'!L6,0) -> 2007 | Q6: PENSIONE COEFF | T6: =IF($E$4="M",VLOOKUP($S$5,CALCOLI!$F$16:$H$36,2),VLOOKUP($S$5,CALCOLI!$F$16:$H$36,3)) -> 0.0327 | Z6: ORDINARIA | AA6: =+T7 -> 6239.235742 | AB6: =+V7 -> 0.06465468596
C7: ANNO FINE VERSAMENTI | E7: =IF('M&R'!O6>0,'M&R'!O6,0) -> 2038 | H7: =+E7-E6 -> 31 | Q7: VALORE PENSIONE ANNUA | T7: =+E24*T6 -> 6239.235742 | U7: =IF($S$5>0,VLOOKUP($S$5,CALCOLI!$A$41:$J$110,10),0) -> 96500.90554 | V7: =+T7/U7 -> 0.06465468596 | Y7: =+AA6*73.53% -> 4587.710041 | Z7: REVERSIBILE | AA7: =+Y7 -> 4587.710041 | AB7: =+V11 -> 0.04754059058
C8: ANZIANITA' DI SERVIZIO | E8: =+'M&R'!I10 -> 8 | H8: % INCR RETR ANNUALE | L8: % RIV FONDO | N8: % CARIC | O8: % SU RIV | Q8: RENDITA REVERSIBILE | Z8: AL SUPERSTITE * | AA8: =+U11 -> 2752.626025 | AB8: =+W11 -> 0.02852435435
C9: RETRIBUZIONE ANNUALE | E9: =+'M&R'!D8 -> 30000 | H9: =+'M&R'!I8 -> 2 | I9: =IF(E9>46031,46031,E9) -> 30000 | J9: =IF(I9<46031,0,E9-I9) -> 0 | L9: =+'M&R'!D12 -> 4 | N9: =+'M&R'!I12 -> 0.05 | O9: =+'M&R'!L12+M12 -> 0.7 | Q9: ETA' ALLA PENS+AGE SHIFTING | S9: =+S5 -> 60 | U9: AL SUPERSTITE | Y9: =+T15*99.29% -> 6189.25374 | Z9: CERTA 5 ANNI | AA9: =+Y9 -> 6189.25374 | AB9: =+V15 -> 0.06413674261
C10: % INCREMENTO RETRIB | I10: 2 | J10: 7 | Q10: PENSIONE COEFF | T10: =IF($E$4="M",VLOOKUP($S$5,CALCOLI!$Z$5:$AB$25,2),VLOOKUP($S$5,CALCOLI!$Z$5:AJ$25,3)) -> 0.02939 | Y10: =+T19*97.11% -> 6031.12861 | Z10: CERTA 10 ANNI | AA10: =+Y10 -> 6031.12861 | AB10: =+V19 -> 0.0624981556
C11: TFR ANNUALE | E11: =+E9/13.5 -> 2222.222222 | I11: =+I9*I10% -> 600 | J11: =+J9*J10% -> 0 | K11: =+I11+J11 -> 600 | L11: =+L9-2.5 -> 1.5 | M11: =IF(L11>0,L11,0) -> 1.5 | Q11: VALORE PENSIONE ANNUA | T11: =+E24*T10 -> 5607.680075 | U11: =+Y7*60% -> 2752.626025 | V11: =+Y7/U7 -> 0.04754059058 | W11: =+U11/U7 -> 0.02852435435 | Y11: =+T23*85.56% -> 5015.054187 | Z11: CONTROASSICURATA | AA11: =+Y11 -> 5015.054187 | AB11: =+V23 -> 0.05196898577
C12: % TFR ACCANTONATO | E12: =+'M&R'!O8 -> 100 | K12: =+K11/E9% -> 2 | L12: over perf===> | M12: =+M11*10*0.01 -> 0.15 | O12: CTR DIR | P12: CTR AZ | Q12: RENDITA CERTA 5 ANNI | X12: maschi | AA12: femmine
C13: TFR ACCANTONATO | E13: =+E11*E12% -> 2222.222222 | Q13: ETA' ALLA PENS+AGE SHIFTING | S13: =+S9 -> 60 | X13: 0 | Y13: -2 | AA13: 0 | AB13: -2
C14: % CONTR DIP AL FONDO | E14: =+O19 -> 3.25 | I14: 0 | K14: 63000 | L14: =+K14-I14 -> 63000 | M14: =IF(E9>L14,L14,E9) -> 30000 | N14: =+E9-M14 -> 0 | O14: =+M14*3.25% -> 975 | P14: =+M14*2.89% -> 867 | Q14: PENSIONE COEFF | T14: =IF($E$4="M",VLOOKUP($S$5,CALCOLI!$J$16:$L$36,2),VLOOKUP($S$5,CALCOLI!$J$16:$L$36,3)) -> 0.03267 | X14: =1+X13 -> 1 | Y14: -2 | AA14: =1+AA13 -> 1 | AB14: -2
C15: %CONTR AZ AL FONDO | E15: =+P19 -> 2.89 | I15: 63000.01 | K15: 76411.46 | L15: =+K15-I15 -> 13411.45 | M15: =IF(N14>=L15,L15,N14) -> 0 | N15: =+N14-M15 -> 0 | O15: =+M15*5.95% -> 0 | P15: =+M15*4.46% -> 0 | Q15: VALORE PENSIONE ANNUA | T15: =+E24*T14 -> 6233.511673 | V15: =+Y9/U7 -> 0.06413674261 | X15: =1+X14 -> 2 | Y15: -2 | AA15: =1+AA14 -> 2 | AB15: -2
C16: CONTRIBUTO DIPENDENTE | E16: =+O18 -> 975 | I16: 76411.47 | K16: 87458.9 | L16: 11047.43 | M16: =IF(N15>=L16,L16,N15) -> 0 | N16: =+N15-M16 -> 0 | O16: =+M16*6.7% -> 0 | P16: =+M16*5.03% -> 0 | Q16: RENDITA CERTA 10 ANNI | X16: 3 | Y16: -2 | AA16: 3 | AB16: -2
C17: CONTRIBUTO AZIENDA | E17: =+P18 -> 867 | I17: 87458.91 | K17: 999999 | L17: 912540.09 | M17: =+N16 -> 0 | O17: =+M17*7.3% -> 0 | P17: =+M17*5.48% -> 0 | Q17: ETA' ALLA PENS+AGE SHIFTING | S17: =+S13 -> 60 | X17: 4 | Y17: -2 | AA17: 4 | AB17: -2
C18: IMPORTO CONTR VOL | O18: =SUM(O14:O17) -> 975 | P18: =SUM(P14:P17) -> 867 | Q18: PENSIONE COEFF | T18: =IF($E$4="M",VLOOKUP($S$5,CALCOLI!$N$16:$P$36,2),VLOOKUP($S$5,CALCOLI!$N$16:$P$36,3)) -> 0.03255 | X18: 5 | Y18: -2 | AA18: 5 | AB18: -2
C19: TOTALE | E19: =+E13+E16+E17+E18 -> 4064.222222 | L19: ALIQUOTA MEDIA IBM TOSHIBA | O19: =+O18/E9% -> 3.25 | P19: =+P18/E9% -> 2.89 | Q19: VALORE PENSIONE ANNUA | T19: =+E24*T18 -> 6210.615395 | V19: =+Y10/U7 -> 0.0624981556 | X19: 6 | Y19: -2 | AA19: 6 | AB19: -2
C20: VERSAMENTO INIZIALE | E20: =+'M&R'!L10*99% -> 0 | Q20: RENDITA CONTRASSICURATA | X20: 7 | Y20: -2 | AA20: 7 | AB20: -2
Q21: ETA' ALLA PENS+AGE SHIFTING | S21: =+S17 -> 60 | X21: 8 | Y21: -2 | AA21: 8 | AB21: -2
C22: VERSAMENTI YTD | E22: =IF(H7>0,VLOOKUP(H7,CALCOLI!$A$41:$I$110,9),0) -> 47199.76661 | Q22: PENSIONE COEFF | T22: =IF($E$4="M",VLOOKUP($S$5,CALCOLI!$R$16:$T$36,2),VLOOKUP($S$5,CALCOLI!$R$16:$T$36,3)) -> 0.03072 | X22: 9 | Y22: -2 | AA22: 9 | AB22: -2
C23: TFR YTD | E23: =IF(H7>0,VLOOKUP(H7,CALCOLI!$A$41:$H$110,6),0) -> 93234.76974 | Q23: VALORE PENSIONE ANNUA | T23: =+E24*T22 -> 5861.447156 | V23: =+Y11/U7 -> 0.05196898577 | X23: 10 | Y23: -2 | AA23: 10 | AB23: -2
C24: TOT YTD CON RIV | E24: =IF(H7>0,VLOOKUP(H7,CALCOLI!$A$41:$H$110,8),0) -> 190802.3163 | X24: 11 | Y24: -2 | AA24: 11 | AB24: -2
C25: SOLO RIV | E25: =+E24-E23-E22 -> 50367.77993 | L25: =+TFR!H8+100 -> 102 | X25: 12 | Y25: -2 | AA25: 12 | AB25: -2
I26: =+TFR!H6 -> 30000 | X26: 13 | Y26: -2 | AA26: 13 | AB26: -2
C27: RETRIBUZIONE | D27: IN | E27: ANNI | H27: ANNI | I27: RETR ANNUALE | J27: TFR | K27: TFRYTD ISTAT | L27: TFRYTD FONDO | M27: CAP+RIV | N27: RIV ISTAT | O27: RIV FONDO | Q27: RIV ISTAT | R27: RIV TFR | T27: ytd riv istat | U27: ytd riv fondo | X27: 14 | Y27: -2 | AA27: 14 | AB27: -2
C28: =IF(D28<>0,0,$I$26) -> 0 | D28: =+TFR!$H$10-E28 -> 7 | E28: 2007 | I28: =+C28 -> 0 | J28: =+I28/13.5 -> 0 | K28: =+J28 -> 0 | X28: 15 | Y28: -2 | AA28: 15 | AB28: -2
C29: =IF(D29<>0,0,$I$26) -> 0 | D29: =+TFR!$H$10-E29 -> 6 | E29: 2008 | H29: 2008 | I29: =IF(I28=0,C29,+I28*$L$25/100) -> 0 | J29: =+I29/13.5 -> 0 | K29: =+J29+K28+Q29 -> 0 | L29: =+K28+J29+R29 -> 0 | N29: 3.03 | O29: 4.36 | Q29: =+K28*N29% -> 0 | R29: =+K28*O29% -> 0 | T29: =+Q29 -> 0 | U29: =+R29 -> 0 | X29: 16 | Y29: -2 | AA29: 16 | AB29: -2
C30: =IF(D30<>0,0,$I$26) -> 0 | D30: =+TFR!$H$10-E30 -> 5 | E30: 2009 | H30: 2009 | I30: =IF(I29=0,C30,+I29*$L$25/100) -> 0 | J30: 0 | K30: 0 | L30: =+L29+J30+R30 -> 0 | N30: 2.22 | O30: 4.24 | Q30: 0 | R30: =+L29*O30% -> 0 | T30: =+Q30+T29 -> 0 | U30: =+R30+U29 -> 0 | X30: 17 | Y30: -2 | AA30: 17 | AB30: -2
C31: =IF(D31<>0,0,$I$26) -> 0 | D31: =+TFR!$H$10-E31 -> 4 | E31: 2010 | H31: 2010 | I31: =IF(I30=0,C31,+I30*$L$25/100) -> 0 | J31: 0 | K31: 0 | L31: =+L30+J31+R31 -> 0 | N31: 2.93 | O31: 3.8 | Q31: 0 | R31: =+L30*O31% -> 0 | T31: =+Q31+T30 -> 0 | U31: =+R31+U30 -> 0 | X31: 18 | Y31: -2 | AA31: 18 | AB31: -2
C32: 0 | D32: =+TFR!$H$10-E32 -> 3 | E32: 2011 | H32: 2011 | I32: 0 | J32: 0 | K32: 0 | L32: =+L31+J32+R32 -> 0 | N32: 3.88 | O32: 4.01 | Q32: 0 | R32: =+L31*O32% -> 0 | T32: 0 | U32: 0 | X32: 19 | Y32: -2 | AA32: 19 | AB32: -2
C33: 0 | D33: =+TFR!$H$10-E33 -> 2 | E33: 2012 | H33: 2012 | I33: 0 | J33: 0 | K33: 0 | L33: =+L32+J33+R33 -> 0 | N33: 3.3 | O33: 3.83 | Q33: 0 | R33: =+L32*O33% -> 0 | T33: 0 | U33: 0 | X33: 20 | Y33: -2 | AA33: 20 | AB33: -2
C34: 0 | D34: =+TFR!$H$10-E34 -> 1 | E34: 2013 | H34: 2013 | I34: 0 | J34: 0 | K34: 0 | L34: =+L33+J34+R34 -> 0 | N34: 1.92 | O34: 3.91 | Q34: 0 | R34: =+L33*O34% -> 0 | T34: 0 | U34: 0 | X34: 21 | Y34: -2 | AA34: 21 | AB34: -2
C35: 30000 | D35: =+TFR!$H$10-E35 -> 0 | E35: 2014 | H35: 2014 | I35: 30000 | J35: 2222.222222 | K35: =+J35+K34+Q35 -> 2222.222222 | L35: =+L34+J35+R35 -> 2222.222222 | N35: =0.21+1.5 -> 1.71 | O35: 3.9 | Q35: =+K34*N35% -> 0 | R35: =+L34*O35% -> 0 | T35: 0 | U35: 0 | X35: 22 | Y35: -2 | AA35: 22 | AB35: -2
C36: 0 | D36: =+TFR!$H$10-E36 -> -1 | E36: =+E35+1 -> 2015 | H36: =+H35+1 -> 2015 | I36: 30600 | J36: 2266.666667 | K36: =+J36+K35+Q36 -> 4533.333333 | L36: 4577.777778 | N36: 2 | O36: 4 | Q36: 44.44444444 | R36: 88.88888889 | T36: 44.44444444 | U36: 88.88888889 | X36: 23 | Y36: -2 | AA36: 23 | AB36: -2
C37: 0 | D37: =+TFR!$H$10-E37 -> -2 | E37: =+E36+1 -> 2016 | H37: =+H36+1 -> 2016 | I37: 31212 | J37: 2312 | K37: 6954.133333 | L37: 7033.062222 | N37: 2.4 | O37: 3.13 | Q37: 108.8 | R37: 143.2844444 | T37: 153.2444444 | U37: 232.1733333 | X37: 24 | Y37: -2 | AA37: 24 | AB37: -2
C38: 0 | D38: =+TFR!$H$10-E38 -> -3 | E38: 2017 | H38: 2017 | I38: 31836.24 | J38: 2358.24 | K38: 9507.089067 | L38: 9609.327151 | N38: 2.8 | O38: 3.1 | Q38: 194.7157333 | R38: 218.0249289 | T38: 347.9601778 | U38: 450.1982622 | X38: 25 | Y38: -2 | AA38: 25 | AB38: -2
C39: 0 | D39: =+TFR!$H$10-E39 -> -4 | E39: 2018 | H39: 2018 | I39: 32472.9648 | J39: 2405.4048 | K39: 12216.72072 | L39: 12346.25374 | N39: 3.2 | O39: =4-0.55 -> 3.45 | Q39: 304.2268501 | R39: 331.5217867 | T39: 652.1870279 | U39: 781.7200489 | X39: 26 | Y39: -2 | AA39: 26 | AB39: -2
C40: 0 | D40: =+TFR!$H$10-E40 -> -5 | E40: 2019 | H40: 2019 | I40: 33122.4241 | J40: 2453.512896 | K40: 15061.16868 | L40: 15225.71239 | N40: 3.2 | O40: =4-0.55 -> 3.45 | Q40: 390.9350629 | R40: 425.945754 | T40: 1043.122091 | U40: 1207.665803 | X40: 27 | Y40: -2 | AA40: 27 | AB40: -2
C41: 0 | D41: =+TFR!$H$10-E41 -> -6 | E41: 2020 | H41: 2020 | I41: 33784.87258 | J41: 2502.583154 | K41: 18045.70923 | L41: 18253.58262 | N41: 3.2 | O41: 3.45 | Q41: 481.9573976 | R41: 525.2870774 | T41: 1525.079488 | U41: 1732.95288 | X41: 28 | Y41: -2 | AA41: 28 | AB41: -2
C42: 0 | D42: =+TFR!$H$10-E42 -> -7 | E42: 2021 | H42: 2021 | I42: 34460.57003 | J42: 2552.634817 | K42: 21175.80674 | L42: 21435.96604 | N42: 3.2 | O42: 3.45 | Q42: 577.4626953 | R42: 629.7486004 | T42: 2102.542184 | U42: 2362.701481 | X42: 29 | Y42: -2 | AA42: 29 | AB42: -2
C43: 0 | D43: =+TFR!$H$10-E43 -> -8 | E43: 2022 | H43: 2022 | I43: 35149.78143 | J43: 2603.687513 | K43: 24457.12007 | L43: 24779.19438 | N43: 3.2 | O43: 3.45 | Q43: 677.6258157 | R43: 739.5408283 | T43: 2780.167999 | U43: 3102.242309 | X43: 30 | Y43: -2 | AA43: 30 | AB43: -2
C44: 0 | D44: =+TFR!$H$10-E44 -> -9 | E44: 2023 | H44: 2023 | I44: 35852.77706 | J44: 2655.761264 | K44: 27895.50917 | L44: 28289.83785 | N44: 3.2 | O44: 3.45 | Q44: 782.6278422 | R44: 854.882206 | T44: 3562.795842 | U44: 3957.124515 | X44: 31 | Y44: -2 | AA44: 31 | AB44: -2
C45: 0 | D45: =+TFR!$H$10-E45 -> -10 | E45: 2024 | H45: 2024 | I45: 36569.8326 | J45: 2708.876489 | K45: 31497.04196 | L45: 31974.71374 | N45: 3.2 | O45: 3.45 | Q45: 892.6562936 | R45: 975.9994057 | T45: 4455.452135 | U45: 4933.123921 | X45: 32 | Y45: -2 | AA45: 32 | AB45: -2
C46: 0 | D46: =+TFR!$H$10-E46 -> -11 | E46: 2025 | H46: 2025 | I46: 37301.22925 | J46: 2763.054019 | K46: 35268.00132 | L46: 35840.89539 | N46: 3.2 | O46: 3.45 | Q46: 1007.905343 | R46: 1103.127624 | T46: 5463.357478 | U46: 6036.251545 | X46: 33 | Y46: -2 | AA46: 33 | AB46: -2
C47: 0 | D47: =+TFR!$H$10-E47 -> -12 | E47: 2026 | H47: 2026 | I47: 38047.25384 | J47: 2818.315099 | K47: 39214.89246 | L47: 39895.72137 | N47: 3.2 | O47: 3.45 | Q47: 1128.576042 | R47: 1236.510891 | T47: 6591.93352 | U47: 7272.762436 | X47: 34 | Y47: -2 | AA47: 34 | AB47: -2
C48: 0 | D48: =+TFR!$H$10-E48 -> -13 | E48: 2027 | H48: 2027 | I48: 38808.19891 | J48: 2874.681401 | K48: 43344.45042 | L48: 44146.80516 | N48: 3.2 | O48: 3.45 | Q48: 1254.876559 | R48: 1376.402387 | T48: 7846.810079 | U48: 8649.164823 | X48: 35 | Y48: -2 | AA48: 35 | AB48: -2
C49: 0 | D49: =+TFR!$H$10-E49 -> -14 | E49: 2028 | H49: 2028 | I49: 39584.36289 | J49: 2932.175029 | K49: 47663.64786 | L49: 48602.04497 | N49: 3.2 | O49: 3.45 | Q49: 1387.022413 | R49: 1523.064778 | T49: 9233.832492 | U49: 10172.2296 | X49: 36 | Y49: -2 | AA49: 36 | AB49: -2
C50: 0 | D50: =+TFR!$H$10-E50 -> -15 | E50: 2029 | H50: 2029 | I50: 40376.05015 | J50: 2990.81853 | K50: 52179.70312 | L50: 53269.63405 | N50: 3.2 | O50: 3.45 | Q50: 1525.236732 | R50: 1676.770551 | T50: 10759.06922 | U50: 11849.00015 | X50: 37 | Y50: -2 | AA50: 37 | AB50: -2
C51: 0 | D51: =+TFR!$H$10-E51 -> -16 | E51: 2030 | H51: 2030 | I51: 41183.57115 | J51: 3050.6349 | K51: 56900.08852 | L51: 58158.07133 | N51: 3.2 | O51: 3.45 | Q51: 1669.7505 | R51: 1837.802375 | T51: 12428.81972 | U51: 13686.80253 | X51: 38 | Y51: -2 | AA51: 38 | AB51: -2
C52: 0 | D52: =+TFR!$H$10-E52 -> -17 | E52: 2031 | H52: 2031 | I52: 42007.24258 | J52: 3111.647598 | K52: 61832.53895 | L52: 63276.17239 | N52: 3.2 | O52: 3.45 | Q52: 1820.802833 | R52: 2006.453461 | T52: 14249.62256 | U52: 15693.25599 | X52: 39 | Y52: -2 | AA52: 39 | AB52: -2
C53: 0 | D53: =+TFR!$H$10-E53 -> -18 | E53: 2032 | H53: 2032 | I53: 42847.38743 | J53: 3173.88055 | K53: 66985.06075 | L53: 68633.08088 | N53: 3.2 | O53: 3.45 | Q53: 1978.641247 | R53: 2183.027947 | T53: 16228.2638 | U53: 17876.28394 | X53: 40 | Y53: -2 | AA53: 40 | AB53: -2
C54: 0 | D54: =+TFR!$H$10-E54 -> -19 | E54: 2033 | H54: 2033 | I54: 43704.33518 | J54: 3237.358161 | K54: 72365.94086 | L54: 74238.28033 | N54: 3.2 | O54: 3.45 | Q54: 2143.521944 | R54: 2367.84129 | T54: 18371.78575 | U54: 20244.12523 | X54: 41 | Y54: -2 | AA54: 41 | AB54: -2
C55: 0 | D55: =+TFR!$H$10-E55 -> -20 | E55: 2034 | H55: 2034 | I55: 44578.42188 | J55: 3302.105324 | K55: 77983.75629 | L55: 80101.60633 | N55: 3.2 | O55: 3.45 | Q55: 2315.710107 | R55: 2561.220672 | T55: 20687.49585 | U55: 22805.3459 | X55: 42 | Y55: -2 | AA55: 42 | AB55: -2
C56: 0 | D56: =+TFR!$H$10-E56 -> -21 | E56: 2035 | H56: 2035 | I56: 45469.99032 | J56: 3368.147431 | K56: 83847.38392 | L56: 86233.25918 | N56: 3.2 | O56: 3.45 | Q56: 2495.480201 | R56: 2763.505418 | T56: 23182.97606 | U56: 25568.85132 | X56: 43 | Y56: -2 | AA56: 43 | AB56: -2
C57: 0 | D57: =+TFR!$H$10-E57 -> -22 | E57: 2036 | H57: 2036 | I57: 46379.39012 | J57: 3435.51038 | K57: 89966.01058 | L57: 92643.817 | N57: 3.2 | O57: 3.45 | Q57: 2683.116285 | R57: 2975.047442 | T57: 25866.09234 | U57: 28543.89876 | X57: 44 | Y57: -2 | AA57: 44 | AB57: -2
C58: 0 | D58: =+TFR!$H$10-E58 -> -23 | E58: 2037 | H58: 2037 | I58: 47306.97793 | J58: 3504.220587 | K58: 96349.14351 | L58: 99344.24927 | N58: 3.2 | O58: 3.45 | Q58: 2878.912339 | R58: 3196.211687 | T58: 28745.00468 | U58: 31740.11044 | X58: 45 | Y58: -2 | AA58: 45 | AB58: -2
C59: 0 | D59: =+TFR!$H$10-E59 -> -24 | E59: 2038 | H59: 2038 | I59: 48253.11748 | J59: 3574.304999 | K59: 103006.6211 | L59: 106345.9309 | N59: 3.2 | O59: 3.45 | Q59: 3083.172592 | R59: 3427.3766 | T59: 31828.17727 | U59: 35167.48704 | X59: 46 | Y59: -2 | AA59: 46 | AB59: -1
X60: 47 | Y60: -2 | AA60: 47 | AB60: -1
M61: ANNI | N61: TFR | O61: RR | X61: 48 | Y61: -1 | AA61: 48 | AB61: -1
H62: SCAGLIONI | K62: ALIQUOTE | L62: RESIDUI | Q62: IMPOSTE | X62: 49 | Y62: -1 | AA62: 49 | AB62: -1
H63: 0 | I63: 26000 | J63: 26000 | K63: 23 | L63: =IF(O63>I63,I63,O63) -> 26000 | M63: =+TFR!K10 -> 21 | N63: =+TFR!J13 -> 57296.26043 | O63: =+N63*144/(M63*12) -> 32740.72025 | Q63: =+L63*K63% -> 5980 | X63: 50 | Y63: -1 | AA63: 50 | AB63: -1
H64: 26000.01 | I64: =+J64-H64 -> 28999.99 | J64: 55000 | K64: 33 | L64: =IF(O64>I64,I64,O64) -> 6740.720247 | O64: =IF(O63>L63,O63-L63,0) -> 6740.720247 | Q64: =+L64*K64% -> 2224.437682 | X64: 51 | Y64: -1 | AA64: 51 | AB64: -1
H65: 55000.01 | I65: =+J65-H65 -> 44999.99 | J65: 100000 | K65: 39 | L65: =IF(O65>I65,I65,O65) -> 0 | O65: =IF(O64>L64,O64-L64,0) -> 0 | Q65: =+L65*K65% -> 0 | X65: 52 | Y65: -1 | AA65: 52 | AB65: -1
H66: 100000.01 | I66: =+J66-H66 -> 899998.99 | J66: 999999 | K66: 43 | L66: =IF(O66>I66,I66,O66) -> 0 | O66: =IF(O65>L65,O65-L65,0) -> 0 | Q66: =+L66*K66% -> 0 | X66: 53 | Y66: -1 | AA66: 53 | AB66: -1
Q67: =SUM(Q63:Q66) -> 8204.437682 | X67: 54 | Y67: -1 | AA67: 54 | AB67: -1
X68: 55 | Y68: -1 | AA68: 55 | AB68: -1
O69: % MEDIA | Q69: =+Q67/O63*100 -> 25.05881856 | X69: 56 | Y69: -1 | AA69: 56 | AB69: 0
I70: TASSAZIONE FONDO PER PENSIONAMENTO | X70: 57 | Y70: -1 | AA70: 57 | AB70: 0
X71: 58 | Y71: 0 | AA71: 58 | AB71: 0
H72: 1 | J72: 15 | X72: 59 | Y72: 0 | AA72: 59 | AB72: 0
H73: =1+H72 -> 2 | J73: 15 | L73: ANNI | M73: EVENTUALE CAPITALE INIZIALE | N73: VERSAMENTO ANNUALE | O73: INCREMENTO ANNUALE DEL VERSAMENTO | P73: MONTANTE ANNUALE | Q73: RIVALUTAZIONE ANNUALE | R73: EVENTUALE INCREMENTO RIVALUTAZIONE ANNUALE | T73: VERSAMENTO INCREMENTATO | U73: RIVALUTAZIONE | X73: 60 | Y73: 0 | AA73: 60 | AB73: 0
H74: =1+H73 -> 3 | J74: 15 | L74: 1 | M74: =+TCM!F21 -> 1000 | N74: =+TCM!F22 -> 300 | O74: =+TCM!F23/100 -> 0 | P74: =((+M74+N74)+U74) -> 1339.897 | Q74: =+TCM!F24/100-TCM!J25/100 -> 0.031 | R74: =+TCM!F25/100 -> 0.01 | T74: =N74+N74*O74 -> 300 | U74: =(N74+M74)*99%*Q74 -> 39.897 | W74: =+M74+N74 -> 1300 | X74: 61 | Y74: 0 | AA74: 61 | AB74: 0
H75: 4 | J75: 15 | L75: =+L74+1 -> 2 | N75: =+T74 -> 300 | P75: =+P74+U75+N75 -> 1691.242175 | Q75: =Q74+Q74*$R$74 -> 0.03131 | T75: =N75+N75*$O$74 -> 300 | U75: =(N75+M75+P74)*Q75 -> 51.34517507 | V75: =+U75+U74 -> 91.24217507 | W75: =+M75+N75+W74 -> 1600 | X75: 62 | Y75: 0 | AA75: 62 | AB75: 0
H76: 5 | J76: 15 | L76: =+L75+1 -> 3 | N76: =+T75 -> 300 | P76: =+P75+U76+N76 -> 2054.211425 | Q76: =Q75+Q75*$R$74 -> 0.0316231 | T76: =N76+N76*$O$74 -> 300 | U76: =(N76+M76+P75)*Q76 -> 62.96925043 | V76: =+U76+V75 -> 154.2114255 | W76: =+M76+N76+W75 -> 1900 | X76: 63 | Y76: 0 | AA76: 63 | AB76: 0
H77: 6 | J77: 15 | L77: 4 | N77: 300 | P77: 2429.403363 | Q77: 0.031939331 | T77: 300 | U77: 75.19193796 | V77: =+U77+V76 -> 229.4033635 | W77: 2200 | X77: 64 | Y77: 0 | AA77: 64 | AB77: 0
H78: 7 | J78: 15 | L78: 5 | N78: 300 | P78: 2817.450434 | Q78: 0.03225872431 | T78: 300 | U78: =N78*Q78+M78*Q78+P77*Q78 -> 88.04707063 | V78: 317.4504341 | W78: 2500 | X78: 65 | Y78: 0 | AA78: 65 | AB78: 0
H79: 8 | J79: 15 | L79: 6 | N79: 300 | P79: 3219.021058 | Q79: 0.03258131155 | T79: 300 | U79: 101.5706238 | V79: 419.0210579 | W79: 2800 | X79: =1+X78 -> 66 | Y79: 0 | AA79: =1+AA78 -> 66 | AB79: 0
H80: 9 | J80: 15 | L80: 7 | N80: 300 | P80: 3634.821923 | Q80: 0.03290712467 | T80: 300 | U80: 115.8008647 | V80: 534.8219226 | W80: 3100 | X80: 67 | Y80: 0 | AA80: 67 | AB80: 0
H81: 10 | J81: 15 | L81: 8 | N81: 300 | P81: 4065.600435 | Q81: 0.03323619592 | T81: 300 | U81: 130.7785123 | V81: 665.6004349 | W81: 3400 | X81: 68 | Y81: 0 | AA81: 68 | AB81: 0
H82: 11 | J82: 15 | L82: 9 | N82: 300 | P82: 4512.147346 | Q82: 0.03356855787 | T82: 300 | U82: 146.5469109 | V82: 812.1473458 | W82: 3700 | X82: 69 | Y82: 0 | AA82: 69 | AB82: 1
H83: 12 | J83: 15 | L83: 10 | N83: 300 | P83: 4975.299561 | Q83: 0.03390424345 | T83: 300 | U83: 163.1522151 | V83: 975.2995609 | W83: 4000 | X83: 70 | Y83: 0 | AA83: 70 | AB83: 1
H84: 13 | J84: 15 | L84: 11 | N84: 300 | P84: 5455.943152 | Q84: 0.03424328589 | T84: 300 | U84: 180.643591 | V84: 1155.943152 | W84: 4300 | X84: 71 | Y84: 1 | AA84: 71 | AB84: 1
H85: 14 | J85: 15 | L85: 12 | N85: 300 | P85: 5955.016583 | Q85: 0.03458571875 | T85: 300 | U85: 199.073431 | V85: 1355.016583 | W85: 4600 | X85: 72 | Y85: 1 | AA85: 72 | AB85: 1
H86: 15 | J86: 15 | L86: 13 | N86: 300 | P86: 6473.51417 | Q86: 0.03493157593 | T86: 300 | U86: 218.4975867 | V86: 1573.51417 | W86: 4900 | X86: 73 | Y86: 1 | AA86: 73 | AB86: 1
H87: 16 | J87: =+J86-0.3 -> 14.7 | L87: 14 | N87: 300 | P87: 7012.489789 | Q87: 0.03528089169 | T87: 300 | U87: 238.9756198 | V87: 1812.489789 | W87: 5200 | X87: 74 | Y87: 1 | AA87: 74 | AB87: 1
H88: 17 | J88: =+J87-0.3 -> 14.4 | L88: 15 | N88: 300 | P88: 7573.060861 | Q88: 0.03563370061 | T88: 300 | U88: 260.5710719 | V88: 2073.060861 | W88: 5500 | X88: 75 | Y88: 1 | AA88: 75 | AB88: 1
H89: 18 | J89: 14.1 | L89: 16 | N89: 300 | P89: 8156.412618 | Q89: 0.03599003762 | T89: 300 | U89: 283.3517566 | V89: 2356.412618 | W89: 5800 | X89: 76 | Y89: 1 | AA89: 76 | AB89: 1
H90: 19 | J90: 13.8 | L90: 17 | N90: 300 | P90: 8763.802692 | Q90: 0.03634993799 | T90: 300 | U90: 307.3900743 | V90: 2663.802692 | W90: 6100 | X90: 77 | Y90: 1 | AA90: 77 | AB90: 1
H91: 20 | J91: 13.5 | L91: 18 | N91: 300 | P91: 9396.566045 | Q91: 0.03671343737 | T91: 300 | U91: 332.7633525 | V91: 2996.566045 | W91: 6400 | X91: 78 | Y91: 1 | AA91: 78 | AB91: 2
H92: 21 | J92: 13.2 | L92: 19 | N92: 300 | P92: 10056.12026 | Q92: 0.03708057175 | T92: 300 | U92: 359.5542129 | V92: 3356.120258 | W92: 6700 | X92: 79 | Y92: 1 | AA92: 79 | AB92: 2
H93: 22 | J93: 12.9 | L93: 20 | N93: 300 | P93: 10743.97123 | Q93: 0.03745137746 | T93: 300 | U93: 387.8509688 | V93: 3743.971226 | W93: 7000 | X93: 80 | Y93: 2 | AA93: 80 | AB93: 2
H94: 23 | J94: 12.6 | L94: 21 | N94: 300 | P94: 11461.71928 | Q94: 0.03782589124 | T94: 300 | U94: 417.7480544 | V94: 4161.719281 | W94: 7300 | X94: 81 | Y94: 2 | AA94: 81 | AB94: 2
H95: 24 | J95: 12.3 | L95: 22 | N95: 300 | P95: 12211.06577 | Q95: 0.03820415015 | T95: 300 | U95: 449.3464894 | V95: 4611.06577 | W95: 7600 | X95: 82 | Y95: 2 | AA95: 82 | AB95: 2
H96: 25 | J96: 12 | L96: 23 | N96: 300 | P96: 12993.82015 | Q96: 0.03858619165 | T96: 300 | U96: 482.7543816 | V96: 5093.820152 | W96: 7900 | X96: 83 | Y96: 2 | AA96: 83 | AB96: 2
H97: 26 | J97: 11.7 | L97: 24 | N97: 300 | P97: 13811.90762 | Q97: 0.03897205357 | T97: 300 | U97: 518.0874711 | V97: 5611.907623 | W97: 8200 | X97: 84 | Y97: 2 | AA97: 84 | AB97: 2
H98: 27 | J98: 11.4 | L98: 25 | N98: 300 | P98: 14667.37734 | Q98: 0.0393617741 | T98: 300 | U98: 555.46972 | V98: 6167.377343 | W98: 8500 | X98: 85 | Y98: 2 | AA98: 85 | AB98: 2
H99: 28 | J99: 11.1 | L99: 26 | N99: 300 | P99: 15562.41129 | Q99: 0.03975539185 | T99: 300 | U99: 595.0339512 | V99: 6762.411294 | W99: 8800 | X99: 86 | Y99: 2 | AA99: 86 | AB99: 2
H100: 29 | J100: 10.8 | L100: 27 | N100: 300 | P100: 16499.33383 | Q100: 0.04015294576 | T100: 300 | U100: 636.9225404 | V100: 7399.333835 | W100: 9100 | X100: 87 | Y100: 2 | AA100: 87 | AB100: 2
H101: 30 | J101: 10.5 | L101: 28 | N101: 300 | P101: 17480.622 | Q101: 0.04055447522 | T101: 300 | U101: 681.2881677 | V101: 8080.622002 | W101: 9400 | X101: 88 | Y101: 2
H102: 31 | J102: 10.2 | L102: 29 | N102: 300 | P102: 18508.91663 | Q102: 0.04096001997 | T102: 300 | U102: 728.2946324 | V102: 8808.916635 | W102: 9700 | X102: 89 | Y102: 2
H103: 32 | J103: 9.9 | L103: 30 | N103: 300 | P103: 19587.03437 | Q103: 0.04136962017 | T103: 300 | U103: 778.1177371 | V103: 9587.034372 | W103: 10000
H104: 33 | J104: 9.6 | L104: 31 | N104: 300 | P104: 20717.98062 | Q104: 0.04178331638 | T104: 300 | U104: 830.9462489 | V104: 10417.98062 | W104: 10300
H105: 34 | J105: 9.3 | L105: 32 | N105: 300 | P105: 21904.96356 | Q105: 0.04220114954 | T105: 300 | U105: 886.9829432 | V105: 11304.96356 | W105: 10600
H106: 35 | J106: 9 | L106: 33 | N106: 300 | P106: 23151.4093 | Q106: 0.04262316103 | T106: 300 | U106: 946.4457377 | V106: 12251.4093 | W106: 10900
H107: 36 | J107: 9 | L107: 34 | N107: 300 | P107: 24460.97823 | Q107: 0.04304939264 | T107: 300 | U107: 1009.568927 | V107: 13260.97823 | W107: 11200
H108: 37 | J108: 9 | L108: 35 | N108: 300 | P108: 25837.58275 | Q108: 0.04347988657 | T108: 300 | U108: 1076.604525 | V108: 14337.58275 | W108: 11500
H109: 38 | J109: 9 | L109: 36 | N109: 300 | P109: 27285.40648 | Q109: 0.04391468544 | T109: 300 | U109: 1147.823725 | V109: 15485.40648 | W109: 11800
H110: 39 | J110: 9 | L110: 37 | N110: 300 | P110: 28808.92497 | Q110: 0.04435383229 | T110: 300 | U110: 1223.518493 | V110: 16708.92497 | W110: 12100
H111: 40 | J111: 9 | L111: 38 | N111: 300 | P111: 30412.92827 | Q111: 0.04479737061 | T111: 300 | U111: 1304.0033 | V111: 18012.92827 | W111: 12400
H112: 41 | J112: 9 | L112: 39 | N112: 300 | P112: 32102.54529 | Q112: 0.04524534432 | T112: 300 | U112: 1389.617015 | V112: 19402.54529 | W112: 12700
H113: 42 | J113: 9 | L113: 40 | N113: 300 | P113: 33883.27025 | Q113: 0.04569779776 | T113: 300 | U113: 1480.724961 | V113: 20883.27025 | W113: 13000
L114: 41 | N114: 300 | P114: 35760.99142 | Q114: 0.04615477574 | T114: 300 | U114: 1577.721172 | V114: 22460.99142 | W114: 13300
L115: 42 | N115: 300 | P115: 37742.02226 | Q115: 0.0466163235 | T115: 300 | U115: 1681.030842 | V115: 24142.02226 | W115: 13600
L116: 43 | N116: 300 | P116: 39833.13527 | Q116: 0.04708248673 | T116: 300 | U116: 1791.113008 | V116: 25933.13527 | W116: 13900
L117: 44 | N117: 300 | P117: 42041.59876 | Q117: 0.0475533116 | T117: 300 | U117: 1908.463487 | V117: 27841.59876 | W117: 14200
L118: 45 | N118: 300 | P118: 44375.21683 | Q118: 0.04802884472 | T118: 300 | U118: 2033.618072 | V118: 29875.21683 | W118: 14500
L119: 46 | N119: 300 | P119: 46842.37287 | Q119: 0.04850913316 | T119: 300 | U119: 2167.156042 | V119: 32042.37287 | W119: 14800
L120: 47 | N120: 300 | P120: 49452.07687 | Q120: 0.0489942245 | T120: 300 | U120: 2309.704 | V120: 34352.07687 | W120: 15100
L121: 48 | N121: 300 | P121: 52214.01694 | Q121: 0.04948416674 | T121: 300 | U121: 2461.940068 | V121: 36814.01694 | W121: 15400
L122: 49 | N122: 300 | P122: 55138.61543 | Q122: 0.04997900841 | T122: 300 | U122: 2624.598494 | V122: 39438.61543 | W122: 15700
L123: 50 | N123: 300 | P123: 58237.09013 | Q123: 0.05047879849 | T123: 300 | U123: 2798.474697 | V123: 42237.09013 | W123: 16000

Sheet CALCOLI (hidden)
Y2: RENDITA REVERSIBILE SU ASSICURATO DI PARI ETA' E SESSO DIVERSO
Z3: Età | AA3: Maschi | AB3: Femmine
C4: capitale iniziale | E4: =+TCM!F5 -> 5000 | G4: =+F8*F9 -> 0.01025509211 | K4: capitale iniziale | M4: =+M8 -> 14027.5976
C5: montante desiderato | E5: =+TCM!F6 -> 20000 | I5: =+G8-H8 -> 0.3459753703 | J5: =+I6-I8 -> 0.1517044431 | K5: montante desiderato | M5: =+TCM!F11 -> 20000 | Z5: 50 | AA5: 0.02274 | AB5: 0.02274
C6: % per int composto annuo | E6: =+TCM!F7 -> 4 | I6: =+I5*12 -> 4.151704443 | J6: =+J5*30 -> 4.551133293 | K6: interesse composto annuo | M6: =+TCM!F12 -> 3 | Z6: =1+Z5 -> 51 | AA6: 0.02327 | AB6: 0.02327
F7: log | G7: periodo | H7: anni | I7: mesi | J7: giorni | K7: anni da oggi | M7: =+TCM!F13 -> 12 | Z7: =1+Z6 -> 52 | AA7: 0.02383 | AB7: 0.02383
C8: numeratore | E8: =IF(E5=0,0,E5/E4) -> 4 | F8: =IF(E8=0,0,+LOG(E8)) -> 0.6020599913 | G8: =IF(G4=0,0,+F8/F9) -> 35.34597537 | H8: =INT(G8) -> 35 | I8: =INT(I6) -> 4 | J8: =INT(J6) -> 4 | M8: =+M5*(1+M6/100)^-M7 -> 14027.5976 | Z8: 53 | AA8: 0.02441 | AB8: 0.02441
C9: denominatore | E9: =1+E6/100 -> 1.04 | F9: =+LOG(E9) -> 0.0170333393 | Z9: 54 | AA9: 0.02501 | AB9: 0.02501
Z10: 55 | AA10: 0.02565 | AB10: 0.02565
Z11: 56 | AA11: 0.02632 | AB11: 0.02632
E12: RENDITA VITALIZIA IMMEDIATA A PREMIO UNICO | J12: RENDITA VITALIZIA CERTA 5 ANNI | N12: RENDITA VITALIZIA CERTA 10 ANNI | R12: RENDITA CONTROASSICURATA | V12: RENDITA CON RADDOPPIO TLC | Z12: 57 | AA12: 0.02703 | AB12: 0.02703
Z13: 58 | AA13: 0.02778 | AB13: 0.02778
F14: Età | G14: Maschi | H14: Femmine | J14: Età | K14: Maschi | L14: Femmine | N14: Età | O14: Maschi | P14: Femmine | R14: Età | S14: Maschi | T14: Femmine | V14: Età | W14: Maschi | X14: Femmine | Z14: 59 | AA14: 0.02856 | AB14: 0.02856
Z15: 60 | AA15: 0.02939 | AB15: 0.02939
F16: 50 | G16: 0.02761 | H16: 0.02487 | J16: 50 | K16: 0.02759 | L16: 0.02486 | N16: 50 | O16: 0.02754 | P16: 0.02483 | R16: 50 | S16: 0.0268 | T16: 0.02524 | V16: 50 | W16: 0.02628 | X16: 0.02317 | Z16: 61 | AA16: 0.03027 | AB16: 0.03027
F17: =1+F16 -> 51 | G17: 0.02836 | H17: 0.02549 | J17: =1+J16 -> 51 | K17: 0.02385 | L17: 0.02547 | N17: =1+N16 -> 51 | O17: 0.02829 | P17: 0.02544 | R17: =1+R16 -> 51 | S17: 0.02731 | T17: 0.02571 | V17: =1+V16 -> 51 | W17: 0.02697 | X17: 0.02371 | Z17: 62 | AA17: 0.0312 | AB17: 0.0312
F18: =1+F17 -> 52 | G18: 0.02916 | H18: 0.02613 | J18: =1+J17 -> 52 | K18: 0.02914 | L18: 0.02612 | N18: =1+N17 -> 52 | O18: 0.02907 | P18: 0.02608 | R18: =1+R17 -> 52 | S18: 0.02783 | T18: 0.02618 | V18: =1+V17 -> 52 | W18: 0.02769 | X18: 0.02426 | Z18: 63 | AA18: 0.03218 | AB18: 0.03218
F19: 53 | G19: 0.03 | H19: 0.02681 | J19: 53 | K19: 0.02998 | L19: 0.02679 | N19: 53 | O19: 0.0299 | P19: 0.02675 | R19: 53 | S19: 0.02837 | T19: 0.02667 | V19: 53 | W19: 0.02845 | X19: 0.02485 | Z19: 64 | AA19: 0.03323 | AB19: 0.03323
F20: 54 | G20: 0.03089 | H20: 0.02752 | J20: 54 | K20: 0.03086 | L20: 0.0275 | N20: 54 | O20: 0.03077 | P20: 0.02746 | R20: 54 | S20: 0.02893 | T20: 0.02719 | V20: 54 | W20: 0.02924 | X20: 0.02546 | Z20: 65 | AA20: 0.03434 | AB20: 0.03434
F21: 55 | G21: 0.03183 | H21: 0.02827 | J21: 55 | K21: 0.0318 | L21: 0.02825 | N21: 55 | O21: 0.03168 | P21: 0.0282 | R21: 55 | S21: 0.02953 | T21: 0.02772 | V21: 55 | W21: 0.03008 | X21: 0.0261 | Z21: 66 | AA21: 0.03552 | AB21: 0.03552
F22: 56 | G22: 0.03282 | H22: 0.02906 | J22: 56 | K22: 0.03278 | L22: 0.02904 | N22: 56 | O22: 0.03264 | P22: 0.02898 | R22: 56 | S22: 0.03013 | T22: 0.02827 | V22: 56 | W22: 0.03097 | X22: 0.02677 | Z22: 67 | AA22: 0.03677 | AB22: 0.03677
F23: 57 | G23: 0.03387 | H23: 0.02989 | J23: 57 | K23: 0.03382 | L23: 0.02987 | N23: 57 | O23: 0.03366 | P23: 0.0298 | R23: 57 | S23: 0.03077 | T23: 0.02885 | V23: 57 | W23: 0.0319 | X23: 0.02748 | Z23: 68 | AA23: 0.03812 | AB23: 0.03812 | AD23: =+CALCOLI1!E8 -> 8 | AE23: <=ANZIANITA' DI SERVIZIO
F24: 58 | G24: 0.03498 | H24: 0.03077 | J24: 58 | K24: 0.03493 | L24: 0.03075 | N24: 58 | O24: 0.03473 | P24: 0.03066 | R24: 58 | S24: 0.03143 | T24: 0.02945 | V24: 58 | W24: 0.03289 | X24: 0.02823 | Z24: 69 | AA24: 0.03955 | AB24: 0.03955 | AD24: =+CALCOLI1!J5 -> 40 | AE24: <=60 ANNI DI ETA'
F25: 59 | G25: 0.03617 | H25: 0.03171 | J25: 59 | K25: 0.0361 | L25: 0.03168 | N25: 59 | O25: 0.03587 | P25: 0.03158 | R25: 59 | S25: 0.03212 | T25: 0.03007 | V25: 59 | W25: 0.03394 | X25: 0.02901 | Z25: 70 | AA25: 0.04109 | AB25: 0.04109 | AM25: =+'M&R'!O10 -> 1.6
F26: 60 | G26: 0.03743 | H26: 0.0327 | J26: 60 | K26: 0.03735 | L26: 0.03267 | N26: 60 | O26: 0.03707 | P26: 0.03255 | R26: 60 | S26: 0.03283 | T26: 0.03072 | V26: 60 | W26: 0.03505 | X26: 0.02984 | AH26: k314 | AI26: GEST LABS | AJ26: SIPRO | AM26: EX S3
F27: 61 | G27: 0.03877 | H27: 0.03375 | J27: 61 | K27: 0.03868 | L27: 0.03371 | N27: 61 | O27: 0.03833 | P27: 0.03357 | R27: 61 | S27: 0.03359 | T27: 0.03141 | V27: 61 | W27: 0.03623 | X27: 0.03072 | AC27: IBM | AD27: toshiba | AE27: LENOVO | AI27: dip | AJ27: az | AM27: DIP | AN27: AZ
F28: 62 | G28: 0.04019 | H28: 0.03487 | J28: 62 | K28: 0.04008 | L28: 0.03482 | N28: 62 | O28: 0.03966 | P28: 0.03465 | R28: 62 | S28: 0.03437 | T28: 0.03212 | V28: 62 | W28: 0.03748 | X28: 0.03165 | AC28: SERV FIN | AD28: ACG | AE28: SEM | AM28: 1.2 | AN28: 2
F29: 63 | G29: 0.04171 | H29: 0.03605 | J29: 63 | K29: 0.04157 | L29: 0.036 | N29: 63 | O29: 0.04107 | P29: 0.0358 | R29: 63 | S29: 0.03519 | T29: 0.03285 | V29: 63 | W29: 0.0388 | X29: 0.03263 | AB29: 0 | AC29: 46031 | AD29: 2 | AE29: =IF(AD24>=60,0,1.5) -> 1.5 | AG29: 0 | AH29: 46031 | AI29: 2 | AJ29: =IF($AD$24>=60,0,1.2) -> 1.2 | AM29: 1.4 | AN29: 2
F30: 64 | G30: 0.04332 | H30: 0.03732 | J30: 64 | K30: 0.04316 | L30: 0.03725 | N30: 64 | O30: 0.04255 | P30: 0.03701 | R30: 64 | S30: 0.03605 | T30: 0.03363 | V30: 64 | W30: 0.0402 | X30: 0.03366 | AA30: =+AC30-AB30 -> 1953968.99 | AB30: 46031.01 | AC30: 2000000 | AD30: 7 | AE30: =IF(AD24>=60,0,4) -> 4 | AF30: =+AH30-AG30 -> 1953968.99 | AG30: 46031.01 | AH30: 2000000 | AI30: 7 | AJ30: =IF($AD$24>=60,0,1.2) -> 1.2 | AM30: 1.6 | AN30: 2
F31: 65 | G31: 0.04505 | H31: 0.03866 | J31: 65 | K31: 0.04485 | L31: 0.03858 | N31: 65 | O31: 0.04412 | P31: 0.0383 | R31: 65 | S31: 0.03695 | T31: 0.03444 | V31: 65 | W31: 0.04168 | X31: 0.03476 | AD31: <10 ANNI ANZ
F32: 66 | G32: 0.0469 | H32: 0.04009 | J32: 66 | K32: 0.04666 | L32: 0.04 | N32: 66 | O32: 0.04577 | P32: 0.03966 | R32: 66 | S32: 0.03788 | T32: 0.03528 | V32: 66 | W32: 0.04327 | X32: 0.03592 | AB32: 0 | AC32: 46031 | AD32: 2 | AE32: =IF(AD24>=60,0,1.6) -> 1.6 | AH32: <10 ANNI ANZ
F33: 67 | G33: 0.04887 | H33: 0.04163 | J33: 67 | K33: 0.04858 | L33: 0.04152 | N33: 67 | O33: 0.04752 | P33: 0.04111 | R33: 67 | S33: 0.03888 | T33: 0.03618 | V33: 67 | W33: 0.04495 | X33: 0.03716 | AA33: =+AC33-AB33 -> 1953968.99 | AB33: 46031.01 | AC33: 2000000 | AD33: 7 | AE33: =IF(AD24>=60,0,1.6) -> 1.6 | AG33: 0 | AH33: 46031 | AI33: 2 | AJ33: =IF($AD$24>=60,0,1.4) -> 1.4
F34: 68 | G34: 0.05099 | H34: 0.04327 | J34: 68 | K34: 0.05063 | L34: 0.04314 | N34: 68 | O34: 0.04936 | P34: 0.04266 | R34: 68 | S34: 0.03991 | T34: 0.03713 | V34: 68 | W34: 0.04674 | X34: 0.03848 | AF34: =+AH34-AG34 -> 1953968.99 | AG34: 46031.01 | AH34: 2000000 | AI34: 7 | AJ34: =IF($AD$24>=60,0,1.4) -> 1.4
B35: =+'M&R'!D10 -> 1 | C35: CODICE AZIENDA | F35: 69 | G35: 0.05326 | H35: 0.04504 | J35: 69 | K35: 0.05282 | L35: 0.04488 | N35: 69 | O35: 0.05129 | P35: 0.0443 | R35: 69 | S35: 0.04099 | T35: 0.03809 | V35: 69 | W35: 0.04865 | X35: 0.03988
F36: 70 | G36: 0.0557 | H36: 0.04694 | J36: 70 | K36: 0.05517 | L36: 0.04674 | N36: 70 | O36: 0.05331 | P36: 0.04604 | R36: 70 | S36: 0.04215 | T36: 0.03912 | V36: 70 | W36: 0.0507 | X36: 0.04138
AL37: IBM/TOSHIBA/ACG/LENOVO/ISF/SEM
B38: =+CALCOLI1!H7 -> 31 | C38: NETTO CARICAMENTO | AP38: k314/GEST LABS/SIPRO | AT38: K314/GEST LABS/SIPRO | AX38: EX S3 | AY38: EX S3 | AZ38: EX S3 | BA38: EX S3 | BB38: EX S3 | BC38: EX S3 | BD38: EX S3
B39: CONTR IN | C39: VERS DIP | D39: VERS AZ | E39: VERS VOL | F39: TFR | G39: TOTALE C | H39: TOT VER+TFR+RIV | J39: RETRIB | K39: =+CALCOLI1!H8 -> % INCR RETR ANNUALE | M39: RIV YTD | N39: =+CALCOLI1!L8 -> % RIV FONDO | O39: RIV FONDO | P39: % DIP | Q39: % AZ | R39: % TFR | S39: TFR | U39: VERS DIP | V39: VERS AZ | W39: TFR | X39: VER VOL | Y39: TOTALE C | Z39: TOT VER+TFR | AL39: contr diP | AM39: contr az | AN39: totale | AT39: contr dip | AU39: contr az | AV39: totale | BB39: contr dip | BC39: contr az | BD39: totale
N40: NETTO 0,5%
A41: 1 | B41: =+CALCOLI1!E20 -> 0 | C41: =IF($B$35=1,AL41*99%,IF($B$35=2,AT41*99%,BB41*99%)) -> 594 | D41: =IF($B$35=1,AM41*99%,IF($B$35=2,AU41*99%,BC41*99%)) -> 475.2 | E41: =+CALCOLI1!E18 -> 0 | F41: =+CALCOLI1!E13*99% -> 2200 | G41: =+B41+C41+D41 -> 1069.2 | H41: =+G41+F41+O41 -> 3383.622 | I41: =+G41 -> 1069.2 | J41: =+CALCOLI1!E9 -> 30000 | K41: =+CALCOLI1!H9+100 -> 102 | M41: =+O41 -> 114.422 | N41: =+CALCOLI1!L9-0.5 -> 3.5 | O41: =+(G41+F41)*$N$41/100 -> 114.422 | P41: =+CALCOLI1!E14 -> 3.25 | Q41: =+CALCOLI1!E15 -> 2.89 | R41: =+CALCOLI1!E12 -> 100 | S41: =+J41/13.5 -> 2222.222222 | AB41: =+J41 -> 30000 | AC41: =IF(AB41>=$AC$29,$AC$29,AB41) -> 30000 | AD41: =+AB41-AC41 -> 0 | AE41: =IF(AD41>=$AA$30,$AA$30,AD41) -> 0 | AF41: =+AD41-AE41 -> 0 | AG41: =IF(AF41>=$AA$31,$AA$31,AF41) -> 0 | AH41: =+AF41-AG41 -> 0 | AI41: =IF(AH41>=$AA$32,$AA$32,AH41) -> 0 | AJ41: =IF(AH41>=$AA$33,$AA$33,AH41) -> 0 | AL41: =+((AC41*$AD$29)+(AE41*$AD$30))/100 -> 600 | AM41: =IF($AD$23>=10,((AC41*$AE$29)+(AE41*$AE$30)),(AC41*$AE$32)+(AE41*$AE$33))/100 -> 480 | AN41: =+AL41+AM41 -> 1080 | AP41: =+AB41 -> 30000 | AQ41: =IF(AP41>=$AH$29,$AH$29,AP41) -> 30000 | AR41: =+AP41-AQ41 -> 0 | AT41: =+AQ41*$AI$29%+AR41*$AI$30% -> 600 | AU41: =IF($AD$23>=10,(AQ41*$AJ$29/100)+(AR41*$AJ$30/100),(AQ41*$AJ33/100+AR41*$AJ$34/100)) -> 420 | AV41: =+AT41+AU41 -> 1020 | AX41: =+J41 -> 30000 | BB41: =+AX41*$AM$25% -> 480 | BC41: =+AX41*$AM$25% -> 480 | BD41: =+BB41+BC41 -> 960
A42: =1+A41 -> 2 | C42: =IF($B$35=1,AL42*99%,IF($B$35=2,AT42*99%,BB42*99%)) -> 605.88 | D42: =IF($B$35=1,AM42*99%,IF($B$35=2,AU42*99%,BC42*99%)) -> 484.704 | E42: =+E41+X42 -> 0 | F42: =+F41+W42 -> 4444 | G42: =+B42+C42+D42 -> 1090.584 | H42: =+I42+F42+M42 -> 6915.92121 | I42: =+I41+G42 -> 2159.784 | J42: =+J41*$K$41/100 -> 30600 | M42: =+M41+O42 -> 312.13721 | O42: =+(G42+F42+O41)*$N$41/100 -> 197.71521 | S42: =+J42/13.5 -> 2266.666667 | U42: =+J42*$P$41/100*99% -> 984.555 | V42: =+J42*$Q$41*99%/100 -> 875.4966 | W42: =+J42/13.5*$R$41/100*99% -> 2244 | Y42: =+U42+V42+X42 -> 1860.0516 | Z42: =+Y42+W42 -> 4104.0516 | AB42: =+J42 -> 30600 | AC42: =IF(AB42>=$AC$29,$AC$29,AB42) -> 30600 | AD42: =+AB42-AC42 -> 0 | AE42: =IF(AD42>=$AA$30,$AA$30,AD42) -> 0 | AF42: =+AD42-AE42 -> 0 | AG42: =IF(AF42>=$AA$31,$AA$31,AF42) -> 0 | AH42: =+AF42-AG42 -> 0 | AI42: =IF(AH42>=$AA$32,$AA$32,AH42) -> 0 | AJ42: =IF(AH42>=$AA$33,$AA$33,AH42) -> 0 | AL42: =+((AC42*$AD$29)+(AE42*$AD$30))/100 -> 612 | AM42: =IF($AD$23>=10,((AC42*$AE$29)+(AE42*$AE$30)),(AC42*$AE$32)+(AE42*$AE$33))/100 -> 489.6 | AN42: =+AL42+AM42 -> 1101.6 | AP42: =+AB42 -> 30600 | AQ42: =IF(AP42>=$AH$29,$AH$29,AP42) -> 30600 | AR42: =+AP42-AQ42 -> 0 | AT42: =+AQ42*$AI$29%+AR42*$AI$30% -> 612 | AU42: =IF($AD$23>=10,(AQ42*$AJ$29/100)+(AR42*$AJ$30/100),(AQ42*$AJ34/100+AR42*$AJ$34/100)) -> 428.4 | AV42: =+AT42+AU42 -> 1040.4 | AX42: =+J42 -> 30600 | BB42: =+AX42*$AM$25% -> 489.6 | BC42: =+AX42*$AM$25% -> 489.6 | BD42: =+BB42+BC42 -> 979.2
A43: =1+A42 -> 3 | C43: 617.9976 | D43: 494.39808 | E43: =+E42+X43 -> 0 | F43: =+F42+W43 -> 6732.88 | G43: 1112.39568 | H43: =+I43+F43+M43 -> 10598.70157 | I43: =+I42+G43 -> 3272.17968 | J43: =+J42*$K$41/100 -> 31212 | M43: =+M42+O43 -> 593.6418911 | O43: =+(G43+F43+O42)*$N$41/100 -> 281.5046812 | S43: 2312 | U43: =+J43*$P$41/100*99% -> 1004.2461 | V43: =+J43*$Q$41*99%/100 -> 893.006532 | W43: =+J43/13.5*$R$41/100*99% -> 2288.88 | Y43: =+U43+V43+X43 -> 1897.252632 | Z43: =+Y43+W43 -> 4186.132632 | AB43: 31212 | AC43: 31212 | AD43: 0 | AE43: 0 | AF43: 0 | AG43: 0 | AH43: 0 | AI43: 0 | AJ43: 0 | AL43: 624.24 | AM43: 499.392 | AN43: 1123.632 | AP43: 31212 | AQ43: 31212 | AR43: 0 | AT43: 624.24 | AU43: 0 | AV43: 624.24 | AX43: 31212 | BB43: 499.392 | BC43: 499.392 | BD43: 998.784
A44: 4 | C44: 630.357552 | D44: 504.2860416 | E44: 0 | F44: 9067.5376 | G44: 1134.643594 | H44: 14434.93177 | I44: 4406.823274 | J44: 31836.24 | M44: 960.5708968 | O44: 366.9290056 | S44: 2358.24 | U44: 1024.331022 | V44: 910.8666626 | W44: 2334.6576 | Y44: 1935.197685 | Z44: 4269.855285 | AB44: 31836.24 | AC44: 31836.24 | AD44: 0 | AE44: 0 | AF44: 0 | AG44: 0 | AH44: 0 | AI44: 0 | AJ44: 0 | AL44: 636.7248 | AM44: 509.37984 | AN44: 1146.10464 | AP44: 31836.24 | AQ44: 31836.24 | AR44: 0 | AT44: 636.7248 | AU44: 0 | AV44: 636.7248 | AX44: 31836.24 | BB44: 509.37984 | BC44: 509.37984 | BD44: 1018.75968
A45: 5 | C45: 642.964703 | D45: 514.3717624 | E45: 0 | F45: 11448.88835 | G45: 1157.336465 | H45: 18427.67937 | I45: 5564.159739 | J45: 32472.9648 | M45: 1414.631281 | O45: 454.0603838 | S45: 2405.4048 | U45: 1044.817642 | V45: 929.0839959 | W45: 2381.350752 | Y45: 1973.901638 | Z45: 4355.25239 | AB45: 32472.9648 | AC45: 32472.9648 | AD45: 0 | AE45: 0 | AF45: 0 | AG45: 0 | AH45: 0 | AI45: 0 | AJ45: 0 | AL45: 649.459296 | AM45: 519.5674368 | AN45: 1169.026733 | AP45: 32472.9648 | AQ45: 32472.9648 | AR45: 0 | AT45: 649.459296 | AU45: 0 | AV45: 649.459296 | AX45: 32472.9648 | BB45: 519.5674368 | BC45: 519.5674368 | BD45: 1039.134874
A46: 6 | C46: 655.8239971 | D46: 524.6591977 | E46: 0 | F46: 13877.86612 | G46: 1180.483195 | H46: 22580.07467 | I46: 6744.642934 | J46: 33122.4241 | M46: 1957.56562 | O46: 542.9343394 | S46: 2453.512896 | U46: 1065.713995 | V46: 947.6656758 | W46: 2428.977767 | Y46: 2013.379671 | Z46: 4442.357438 | AB46: 33122.4241 | AC46: 33122.4241 | AD46: 0 | AE46: 0 | AF46: 0 | AG46: 0 | AH46: 0 | AI46: 0 | AJ46: 0 | AL46: 662.4484819 | AM46: 529.9587855 | AN46: 1192.407267 | AP46: 33122.4241 | AQ46: 33122.4241 | AR46: 0 | AT46: 662.4484819 | AU46: 0 | AV46: 662.4484819 | AX46: 33122.4241 | BB46: 529.9587855 | BC46: 529.9587855 | BD46: 1059.917571
A47: 7 | C47: 668.940477 | D47: 535.1523816 | E47: 0 | F47: 16355.42344 | G47: 1204.092859 | H47: 26895.31063 | I47: 7948.735793 | J47: 33784.87258 | M47: 2591.151392 | O47: 633.5857724 | S47: 2502.583154 | U47: 1087.028275 | V47: 966.6189893 | W47: 2477.557322 | Y47: 2053.647265 | Z47: 4531.204587 | AB47: 33784.87258 | AC47: 33784.87258 | AD47: 0 | AE47: 0 | AF47: 0 | AG47: 0 | AH47: 0 | AI47: 0 | AJ47: 0 | AL47: 675.6974516 | AM47: 540.5579612 | AN47: 1216.255413 | AP47: 33784.87258 | AQ47: 33784.87258 | AR47: 0 | AT47: 675.6974516 | AU47: 0 | AV47: 675.6974516 | AX47: 33784.87258 | BB47: 540.5579612 | BC47: 540.5579612 | BD47: 1081.115922
A48: 8 | C48: 682.3192866 | D48: 545.8554293 | E48: 0 | F48: 18882.53191 | G48: 1228.174716 | H48: 31376.64404 | I48: 9176.910508 | J48: 34460.57003 | M48: 3317.201626 | O48: 726.0502339 | S48: 2552.634817 | U48: 1108.768841 | V48: 985.9513691 | W48: 2527.108469 | Y48: 2094.72021 | Z48: 4621.828679 | AB48: 34460.57003 | AC48: 34460.57003 | AD48: 0 | AE48: 0 | AF48: 0 | AG48: 0 | AH48: 0 | AI48: 0 | AJ48: 0 | AL48: 689.2114006 | AM48: 551.3691205 | AN48: 1240.580521 | AP48: 34460.57003 | AQ48: 34460.57003 | AR48: 0 | AT48: 689.2114006 | AU48: 0 | AV48: 689.2114006 | AX48: 34460.57003 | BB48: 551.3691205 | BC48: 551.3691205 | BD48: 1102.738241
A49: 9 | C49: 695.9656723 | D49: 556.7725379 | E49: 0 | F49: 21460.18255 | G49: 1252.73821 | H49: 36027.39688 | I49: 10429.64872 | J49: 35149.78143 | M49: 4137.565611 | O49: 820.3639847 | S49: 2603.687513 | U49: 1130.944218 | V49: 1005.670396 | W49: 2577.650638 | Y49: 2136.614614 | Z49: 4714.265252 | AB49: 35149.78143 | AC49: 35149.78143 | AD49: 0 | AE49: 0 | AF49: 0 | AG49: 0 | AH49: 0 | AI49: 0 | AJ49: 0 | AL49: 702.9956286 | AM49: 562.3965029 | AN49: 1265.392131 | AP49: 35149.78143 | AQ49: 35149.78143 | AR49: 0 | AT49: 702.9956286 | AU49: 0 | AV49: 702.9956286 | AX49: 35149.78143 | BB49: 562.3965029 | BC49: 562.3965029 | BD49: 1124.793006
A50: 10 | C50: 709.8849858 | D50: 567.9079886 | E50: 0 | F50: 24089.3862 | G50: 1277.792974 | H50: 40850.95751 | I50: 11707.44169 | J50: 35852.77706 | M50: 5054.129622 | O50: 916.5640105 | S50: 2655.761264 | U50: 1153.563102 | V50: 1025.783804 | W50: 2629.203651 | Y50: 2179.346906 | Z50: 4808.550557 | AB50: 35852.77706 | AC50: 35852.77706 | AD50: 0 | AE50: 0 | AF50: 0 | AG50: 0 | AH50: 0 | AI50: 0 | AJ50: 0 | AL50: 717.0555412 | AM50: 573.6444329 | AN50: 1290.699974 | AP50: 35852.77706 | AQ50: 35852.77706 | AR50: 0 | AT50: 717.0555412 | AU50: 0 | AV50: 717.0555412 | AX50: 35852.77706 | BB50: 573.6444329 | BC50: 573.6444329 | BD50: 1147.288866
A51: 11 | C51: 724.0826855 | D51: 579.2661484 | E51: 0 | F51: 26771.17392 | G51: 1303.348834 | H51: 45850.78211 | I51: 13010.79053 | J51: 36569.8326 | M51: 6068.817658 | O51: 1014.688037 | S51: 2708.876489 | U51: 1176.634364 | V51: 1046.299481 | W51: 2681.787724 | Y51: 2222.933844 | Z51: 4904.721568 | AB51: 36569.8326 | AC51: 36569.8326 | AD51: 0 | AE51: 0 | AF51: 0 | AG51: 0 | AH51: 0 | AI51: 0 | AJ51: 0 | AL51: 731.396652 | AM51: 585.1173216 | AN51: 1316.513974 | AP51: 36569.8326 | AQ51: 36569.8326 | AR51: 0 | AT51: 731.396652 | AU51: 0 | AV51: 731.396652 | AX51: 36569.8326 | BB51: 585.1173216 | BC51: 585.1173216 | BD51: 1170.234643
A52: 12 | C52: 738.5643392 | D52: 590.8514713 | E52: 0 | F52: 29506.5974 | G52: 1329.415811 | H52: 51030.39594 | I52: 14340.20634 | J52: 37301.22925 | M52: 7183.592202 | O52: 1114.774544 | S52: 2763.054019 | U52: 1200.167051 | V52: 1067.22547 | W52: 2735.423478 | Y52: 2267.392521 | Z52: 5002.816 | AB52: 37301.22925 | AC52: 37301.22925 | AD52: 0 | AE52: 0 | AF52: 0 | AG52: 0 | AH52: 0 | AI52: 0 | AJ52: 0 | AL52: 746.024585 | AM52: 596.819668 | AN52: 1342.844253 | AP52: 37301.22925 | AQ52: 37301.22925 | AR52: 0 | AT52: 746.024585 | AU52: 0 | AV52: 746.024585 | AX52: 37301.22925 | BB52: 596.819668 | BC52: 596.819668 | BD52: 1193.639336
A53: 13 | C53: 753.335626 | D53: 602.6685008 | E53: 0 | F53: 32296.72935 | G53: 1356.004127 | H53: 56393.3948 | I53: 15696.21046 | J53: 38047.25384 | M53: 8400.454983 | O53: 1216.862781 | S53: 2818.315099 | U53: 1224.170392 | V53: 1088.56998 | W53: 2790.131948 | Y53: 2312.740372 | Z53: 5102.87232 | AB53: 38047.25384 | AC53: 38047.25384 | AD53: 0 | AE53: 0 | AF53: 0 | AG53: 0 | AH53: 0 | AI53: 0 | AJ53: 0 | AL53: 760.9450767 | AM53: 608.7560614 | AN53: 1369.701138 | AP53: 38047.25384 | AQ53: 38047.25384 | AR53: 0 | AT53: 760.9450767 | AU53: 0 | AV53: 760.9450767 | AX53: 38047.25384 | BB53: 608.7560614 | BC53: 608.7560614 | BD53: 1217.512123
A54: 14 | C54: 768.4023385 | D54: 614.7218708 | E54: 0 | F54: 35142.66394 | G54: 1383.124209 | H54: 61943.44638 | I54: 17079.33467 | J54: 38808.19891 | M54: 9721.447765 | O54: 1320.992782 | S54: 2874.681401 | U54: 1248.6538 | V54: 1110.341379 | W54: 2845.934587 | Y54: 2358.995179 | Z54: 5204.929766 | AB54: 38808.19891 | AC54: 38808.19891 | AD54: 0 | AE54: 0 | AF54: 0 | AG54: 0 | AH54: 0 | AI54: 0 | AJ54: 0 | AL54: 776.1639783 | AM54: 620.9311826 | AN54: 1397.095161 | AP54: 38808.19891 | AQ54: 38808.19891 | AR54: 0 | AT54: 776.1639783 | AU54: 0 | AV54: 776.1639783 | AX54: 38808.19891 | BB54: 620.9311826 | BC54: 620.9311826 | BD54: 1241.862365
A55: 15 | C55: 783.7703853 | D55: 627.0163082 | E55: 0 | F55: 38045.51722 | G55: 1410.786693 | H55: 67684.29173 | I55: 18490.12137 | J55: 39584.36289 | M55: 11148.65315 | O55: 1427.205384 | S55: 2932.175029 | U55: 1273.626876 | V55: 1132.548207 | W55: 2902.853279 | Y55: 2406.175083 | Z55: 5309.028361 | AB55: 39584.36289 | AC55: 39584.36289 | AD55: 0 | AE55: 0 | AF55: 0 | AG55: 0 | AH55: 0 | AI55: 0 | AJ55: 0 | AL55: 791.6872578 | AM55: 633.3498063 | AN55: 1425.037064 | AP55: 39584.36289 | AQ55: 39584.36289 | AR55: 0 | AT55: 791.6872578 | AU55: 0 | AV55: 791.6872578 | AX55: 39584.36289 | BB55: 633.3498063 | BC55: 633.3498063 | BD55: 1266.699613
A56: 16 | C56: 799.445793 | D56: 639.5566344 | E56: 0 | F56: 41006.42756 | G56: 1439.002427 | H56: 73619.74674 | I56: 19929.12379 | J56: 40376.05015 | M56: 12684.19539 | O56: 1535.542238 | S56: 2990.81853 | U56: 1299.099414 | V56: 1155.199171 | W56: 2960.910344 | Y56: 2454.298584 | Z56: 5415.208929 | AB56: 40376.05015 | AC56: 40376.05015 | AD56: 0 | AE56: 0 | AF56: 0 | AG56: 0 | AH56: 0 | AI56: 0 | AJ56: 0 | AL56: 807.521003 | AM56: 646.0168024 | AN56: 1453.537805 | AP56: 40376.05015 | AQ56: 40376.05015 | AR56: 0 | AT56: 807.521003 | AU56: 0 | AV56: 807.521003 | AX56: 40376.05015 | BB56: 646.0168024 | BC56: 646.0168024 | BD56: 1292.033605
A57: 17 | C57: 815.4347088 | D57: 652.3477671 | E57: 0 | F57: 44026.55611 | G57: 1467.782476 | H57: 79753.7036 | I57: 21396.90627 | J57: 41183.57115 | M57: 14330.24122 | O57: 1646.045829 | S57: 3050.6349 | U57: 1325.081402 | V57: 1178.303154 | W57: 3020.128551 | Y57: 2503.384556 | Z57: 5523.513107 | AB57: 41183.57115 | AC57: 41183.57115 | AD57: 0 | AE57: 0 | AF57: 0 | AG57: 0 | AH57: 0 | AI57: 0 | AJ57: 0 | AL57: 823.6714231 | AM57: 658.9371384 | AN57: 1482.608561 | AP57: 41183.57115 | AQ57: 41183.57115 | AR57: 0 | AT57: 823.6714231 | AU57: 0 | AV57: 823.6714231 | AX57: 41183.57115 | BB57: 658.9371384 | BC57: 658.9371384 | BD57: 1317.874277
A58: 18 | C58: 831.743403 | D58: 665.3947224 | E58: 0 | F58: 47107.08723 | G58: 1497.138125 | H58: 86090.13234 | I58: 22894.0444 | J58: 42007.24258 | M58: 16089.00071 | O58: 1758.759492 | S58: 3111.647598 | U58: 1351.58303 | V58: 1201.869217 | W58: 3080.531122 | Y58: 2553.452247 | Z58: 5633.983369 | AB58: 42007.24258 | AC58: 42007.24258 | AD58: 0 | AE58: 0 | AF58: 0 | AG58: 0 | AH58: 0 | AI58: 0 | AJ58: 0 | AL58: 840.1448515 | AM58: 672.1158812 | AN58: 1512.260733 | AP58: 42007.24258 | AQ58: 42007.24258 | AR58: 0 | AT58: 840.1448515 | AU58: 0 | AV58: 840.1448515 | AX58: 42007.24258 | BB58: 672.1158812 | BC58: 672.1158812 | BD58: 1344.231762
A59: 19 | C59: 848.3782711 | D59: 678.7026168 | E59: 0 | F59: 50249.22898 | G59: 1527.080888 | H59: 92633.0824 | I59: 24421.12528 | J59: 42847.38743 | M59: 17962.72814 | O59: 1873.727428 | S59: 3173.88055 | U59: 1378.61469 | V59: 1225.906602 | W59: 3142.141745 | Y59: 2604.521292 | Z59: 5746.663037 | AB59: 42847.38743 | AC59: 42847.38743 | AD59: 0 | AE59: 0 | AF59: 0 | AG59: 0 | AH59: 0 | AI59: 0 | AJ59: 0 | AL59: 856.9477485 | AM59: 685.5581988 | AN59: 1542.505947 | AP59: 42847.38743 | AQ59: 42847.38743 | AR59: 0 | AT59: 856.9477485 | AU59: 0 | AV59: 856.9477485 | AX59: 42847.38743 | BB59: 685.5581988 | BC59: 685.5581988 | BD59: 1371.116398
A60: 20 | C60: 865.3458365 | D60: 692.2766692 | E60: 0 | F60: 53454.21356 | G60: 1557.622506 | H60: 99386.6842 | I60: 25978.74779 | J60: 43704.33518 | M60: 19953.72286 | O60: 1990.994722 | S60: 3237.358161 | U60: 1406.186984 | V60: 1250.424734 | W60: 3204.98458 | Y60: 2656.611718 | Z60: 5861.596298 | AB60: 43704.33518 | AC60: 43704.33518 | AD60: 0 | AE60: 0 | AF60: 0 | AG60: 0 | AH60: 0 | AI60: 0 | AJ60: 0 | AL60: 874.0867035 | AM60: 699.2693628 | AN60: 1573.356066 | AP60: 43704.33518 | AQ60: 43704.33518 | AR60: 0 | AT60: 874.0867035 | AU60: 0 | AV60: 874.0867035 | AX60: 43704.33518 | BB60: 699.2693628 | BC60: 699.2693628 | BD60: 1398.538726
A61: 21 | C61: 882.6527532 | D61: 706.1222026 | E61: 0 | F61: 56723.29783 | G61: 1588.774956 | H61: 106355.1508 | I61: 27567.52274 | J61: 44578.42188 | M61: 22064.33022 | O61: 2110.607363 | S61: 3302.105324 | U61: 1434.310724 | V61: 1275.433228 | W61: 3269.084271 | Y61: 2709.743952 | Z61: 5978.828224 | AB61: 44578.42188 | AC61: 44578.42188 | AD61: 0 | AE61: 0 | AF61: 0 | AG61: 0 | AH61: 0 | AI61: 0 | AJ61: 0 | AL61: 891.5684376 | AM61: 713.2547501 | AN61: 1604.823188 | AP61: 44578.42188 | AQ61: 44578.42188 | AR61: 0 | AT61: 891.5684376 | AU61: 0 | AV61: 891.5684376 | AX61: 44578.42188 | BB61: 713.2547501 | BC61: 713.2547501 | BD61: 1426.5095
A62: 22 | C62: 900.3058083 | D62: 720.2446466 | E62: 0 | F62: 60057.76379 | G62: 1620.550455 | H62: 113542.7795 | I62: 29188.0732 | J62: 45469.99032 | M62: 24296.94248 | O62: 2232.612256 | S62: 3368.147431 | U62: 1462.996938 | V62: 1300.941893 | W62: 3334.465957 | Y62: 2763.938831 | Z62: 6098.404788 | AB62: 45469.99032 | AC62: 45469.99032 | AD62: 0 | AE62: 0 | AF62: 0 | AG62: 0 | AH62: 0 | AI62: 0 | AJ62: 0 | AL62: 909.3998063 | AM62: 727.5198451 | AN62: 1636.919651 | AP62: 45469.99032 | AQ62: 45469.99032 | AR62: 0 | AT62: 909.3998063 | AU62: 0 | AV62: 909.3998063 | AX62: 45469.99032 | BB62: 727.5198451 | BC62: 727.5198451 | BD62: 1455.03969
A63: 23 | C63: 935.5572355 | D63: 734.6495396 | E63: 0 | F63: 63458.91906 | G63: 1670.206775 | H63: 120971.8023 | I63: 30858.27997 | J63: 46379.39012 | M63: 26654.60331 | O63: 2357.660833 | S63: 3435.51038 | U63: 1492.256877 | V63: 1326.960731 | W63: 3401.155276 | Y63: 2819.217608 | Z63: 6220.372884 | AB63: 46379.39012 | AC63: 46031 | AD63: 348.3901233 | AE63: 348.3901233 | AF63: 0 | AG63: 0 | AH63: 0 | AI63: 0 | AJ63: 0 | AL63: 945.0073086 | AM63: 742.070242 | AN63: 1687.077551 | AP63: 46379.39012 | AQ63: 46031 | AR63: 348.3901233 | AT63: 945.0073086 | AU63: 4.877461726 | AV63: 949.8847704 | AX63: 46379.39012 | BB63: 742.070242 | BC63: 742.070242 | BD63: 1484.140484
A64: 24 | C64: 999.8390703 | D64: 749.3425303 | E64: 0 | F64: 66928.09744 | G64: 1749.181601 | H64: 128676.3852 | I64: 32607.46158 | J64: 47306.97793 | M64: 29140.82621 | O64: 2486.222896 | S64: 3504.220587 | U64: 1522.102015 | V64: 1353.499945 | W64: 3469.178381 | Y64: 2875.60196 | Z64: 6344.780341 | AB64: 47306.97793 | AC64: 46031 | AD64: 1275.977926 | AE64: 1275.977926 | AF64: 0 | AG64: 0 | AH64: 0 | AI64: 0 | AJ64: 0 | AL64: 1009.938455 | AM64: 756.9116468 | AN64: 1766.850102 | AP64: 47306.97793 | AQ64: 46031 | AR64: 1275.977926 | AT64: 1009.938455 | AU64: 17.86369096 | AV64: 1027.802146 | AX64: 47306.97793 | BB64: 756.9116468 | BC64: 756.9116468 | BD64: 1513.823294
A65: 25 | C65: 1065.406542 | D65: 764.329381 | E65: 0 | F65: 70466.65939 | G65: 1829.735923 | H65: 136662.0747 | I65: 34437.1975 | J65: 48253.11748 | M65: 31758.21784 | O65: 2617.391637 | S65: 3574.304999 | U65: 1552.544055 | V65: 1380.569944 | W65: 3538.561949 | Y65: 2933.113999 | Z65: 6471.675948 | AB65: 48253.11748 | AC65: 46031 | AD65: 2222.117484 | AE65: 2222.117484 | AF65: 0 | AG65: 0 | AH65: 0 | AI65: 0 | AJ65: 0 | AL65: 1076.168224 | AM65: 772.0498797 | AN65: 1848.218104 | AP65: 48253.11748 | AQ65: 46031 | AR65: 2222.117484 | AT65: 1076.168224 | AU65: 31.10964478 | AV65: 1107.277869 | AX65: 48253.11748 | BB65: 772.0498797 | BC65: 772.0498797 | BD65: 1544.099759
A66: 26 | C66: 1132.285362 | D66: 779.6159686 | E66: 0 | F66: 74075.99258 | G66: 1911.901331 | H66: 144934.4942 | I66: 36349.09883 | J66: 49218.17983 | M66: 34509.40284 | O66: 2751.184994 | S66: 3645.791099 | U66: 1583.594936 | V66: 1408.181343 | W66: 3609.333188 | Y66: 2991.776279 | Z66: 6601.109467 | AB66: 49218.17983 | AC66: 46031 | AD66: 3187.179834 | AE66: 3187.179834 | AF66: 0 | AG66: 0 | AH66: 0 | AI66: 0 | AJ66: 0 | AL66: 1143.722588 | AM66: 787.4908773 | AN66: 1931.213466 | AP66: 49218.17983 | AQ66: 46031 | AR66: 3187.179834 | AT66: 1143.722588 | AU66: 44.62051768 | AV66: 1188.343106 | AX66: 49218.17983 | BB66: 787.4908773 | BC66: 787.4908773 | BD66: 1574.981755
A67: 27 | C67: 1200.50176 | D67: 795.2082879 | E67: 0 | F67: 77757.51243 | G67: 1995.710048 | H67: 153499.3784 | I67: 38344.80888 | J67: 50202.54343 | M67: 37397.0571 | O67: 2887.654262 | S67: 3718.706921 | U67: 1615.266835 | V67: 1436.34497 | W67: 3681.519852 | Y67: 3051.611805 | Z67: 6733.131657 | AB67: 50202.54343 | AC67: 46031 | AD67: 4171.543431 | AE67: 4171.543431 | AF67: 0 | AG67: 0 | AH67: 0 | AI67: 0 | AJ67: 0 | AL67: 1212.62804 | AM67: 803.2406949 | AN67: 2015.868735 | AP67: 50202.54343 | AQ67: 46031 | AR67: 4171.543431 | AT67: 1212.62804 | AU67: 58.40160803 | AV67: 1271.029648 | AX67: 50202.54343 | BB67: 803.2406949 | BC67: 803.2406949 | BD67: 1606.48139
A68: 28 | C68: 1270.082485 | D68: 811.1124537 | E68: 0 | F68: 81512.66268 | G68: 2081.194939 | H68: 162362.5765 | I68: 40426.00382 | J68: 51206.5943 | M68: 40423.91001 | O68: 3026.852916 | S68: 3793.081059 | U68: 1647.572172 | V68: 1465.071869 | W68: 3755.150249 | Y68: 3112.644041 | Z68: 6867.79429 | AB68: 51206.5943 | AC68: 46031 | AD68: 5175.594299 | AE68: 5175.594299 | AF68: 0 | AG68: 0 | AH68: 0 | AI68: 0 | AJ68: 0 | AL68: 1282.911601 | AM68: 819.3055088 | AN68: 2102.21711 | AP68: 51206.5943 | AQ68: 46031 | AR68: 5175.594299 | AT68: 1282.911601 | AU68: 72.45832019 | AV68: 1355.369921 | AX68: 51206.5943 | BB68: 819.3055088 | BC68: 819.3055088 | BD68: 1638.611018
A69: 29 | C69: 1341.054825 | D69: 827.3347028 | E69: 0 | F69: 85342.91593 | G69: 2168.389527 | H69: 171530.0548 | I69: 42594.39334 | J69: 52230.72619 | M69: 43592.74556 | O69: 3168.835543 | S69: 3868.94268 | U69: 1680.523615 | V69: 1494.373307 | W69: 3830.253254 | Y69: 3174.896922 | Z69: 7005.150175 | AB69: 52230.72619 | AC69: 46031 | AD69: 6199.726185 | AE69: 6199.726185 | AF69: 0 | AG69: 0 | AH69: 0 | AI69: 0 | AJ69: 0 | AL69: 1354.600833 | AM69: 835.691619 | AN69: 2190.292452 | AP69: 52230.72619 | AQ69: 46031 | AR69: 6199.726185 | AT69: 1354.600833 | AU69: 86.79616659 | AV69: 1441.397 | AX69: 52230.72619 | BB69: 835.691619 | BC69: 835.691619 | BD69: 1671.383238
A70: 30 | C70: 1413.446611 | D70: 843.8813968 | E70: 0 | F70: 89249.77425 | G70: 2257.328008 | H70: 181007.899 | I70: 44851.72135 | J70: 53275.34071 | M70: 46906.40338 | O70: 3313.657823 | S70: 3946.321534 | U70: 1714.134087 | V70: 1524.260773 | W70: 3906.858319 | Y70: 3238.39486 | Z70: 7145.253179 | AB70: 53275.34071 | AC70: 46031 | AD70: 7244.340709 | AE70: 7244.340709 | AF70: 0 | AG70: 0 | AH70: 0 | AI70: 0 | AJ70: 0 | AL70: 1427.72385 | AM70: 852.4054513 | AN70: 2280.129301 | AP70: 53275.34071 | AQ70: 46031 | AR70: 7244.340709 | AT70: 1427.72385 | AU70: 101.4207699 | AV70: 1529.14462 | AX70: 53275.34071 | BB70: 852.4054513 | BC70: 852.4054513 | BD70: 1704.810903
A71: 31 | C71: 1487.286233 | D71: 860.7590248 | E71: 0 | F71: 93234.76974 | G71: 2348.045258 | H71: 190802.3163 | I71: 47199.76661 | J71: 54340.84752 | M71: 50367.77993 | O71: 3461.376549 | S71: 4025.247965 | U71: 1748.416769 | V71: 1554.745988 | W71: 3984.995485 | Y71: 3303.162758 | Z71: 7288.158243 | AB71: 54340.84752 | AC71: 46031 | AD71: 8309.847523 | AE71: 8309.847523 | AF71: 0 | AG71: 0 | AH71: 0 | AI71: 0 | AJ71: 0 | AL71: 1502.309327 | AM71: 869.4535604 | AN71: 2371.762887 | AP71: 54340.84752 | AQ71: 46031 | AR71: 8309.847523 | AT71: 1502.309327 | AU71: 116.3378653 | AV71: 1618.647192 | AX71: 54340.84752 | BB71: 869.4535604 | BC71: 869.4535604 | BD71: 1738.907121
A72: 32 | C72: 1562.602648 | D72: 877.9742053 | E72: 0 | F72: 97299.46513 | G72: 2440.576853 | H72: 200919.6382 | I72: 49640.34346 | J72: 55427.66447 | M72: 53979.82958 | O72: 3612.049649 | S72: 4105.752924 | U72: 1783.385104 | V72: 1585.840908 | W72: 4064.695395 | Y72: 3369.226013 | Z72: 7433.921407 | AB72: 55427.66447 | AC72: 46031 | AD72: 9396.664474 | AE72: 9396.664474 | AF72: 0 | AG72: 0 | AH72: 0 | AI72: 0 | AJ72: 0 | AL72: 1578.386513 | AM72: 886.8426316 | AN72: 2465.229145 | AP72: 55427.66447 | AQ72: 46031 | AR72: 9396.664474 | AT72: 1578.386513 | AU72: 131.5533026 | AV72: 1709.939816 | AX72: 55427.66447 | BB72: 886.8426316 | BC72: 886.8426316 | BD72: 1773.685263
A73: 33 | C73: 1639.425391 | D73: 895.5336894 | E73: 0 | F73: 101445.4544 | G73: 2534.95908 | H73: 211366.3228 | I73: 52175.30254 | J73: 56536.21776 | M73: 57745.56579 | O73: 3765.736211 | S73: 4187.867982 | U73: 1819.052807 | V73: 1617.557726 | W73: 4145.989303 | Y73: 3436.610533 | Z73: 7582.599836 | AB73: 56536.21776 | AC73: 46031 | AD73: 10505.21776 | AE73: 10505.21776 | AF73: 0 | AG73: 0 | AH73: 0 | AI73: 0 | AJ73: 0 | AL73: 1655.985243 | AM73: 904.5794842 | AN73: 2560.564728 | AP73: 56536.21776 | AQ73: 46031 | AR73: 10505.21776 | AT73: 1655.985243 | AU73: 147.0730487 | AV73: 1803.058292 | AX73: 56536.21776 | BB73: 904.5794842 | BC73: 904.5794842 | BD73: 1809.158968
A74: 34 | C74: 1717.784589 | D74: 913.4443632 | E74: 0 | F74: 105674.3635 | G74: 2631.228952 | H74: 222148.9573 | I74: 54806.53149 | J74: 57666.94212 | M74: 61668.06229 | O74: 3922.496504 | S74: 4271.625342 | U74: 1855.433863 | V74: 1649.908881 | W74: 4228.909089 | Y74: 3505.342744 | Z74: 7734.251832 | AB74: 57666.94212 | AC74: 46031 | AD74: 11635.94212 | AE74: 11635.94212 | AF74: 0 | AG74: 0 | AH74: 0 | AI74: 0 | AJ74: 0 | AL74: 1735.135948 | AM74: 922.6710739 | AN74: 2657.807022 | AP74: 57666.94212 | AQ74: 46031 | AR74: 11635.94212 | AT74: 1735.135948 | AU74: 162.9031897 | AV74: 1898.039138 | AX74: 57666.94212 | BB74: 922.6710739 | BC74: 922.6710739 | BD74: 1845.342148
A75: 35 | C75: 1797.710971 | D75: 931.7132504 | E75: 0 | F75: 109987.8508 | G75: 2729.424221 | H75: 233274.2608 | I75: 57535.95572 | J75: 58820.28096 | M75: 65750.4543 | O75: 4082.392003 | S75: 4357.057849 | U75: 1892.54254 | V75: 1682.907059 | W75: 4313.48727 | Y75: 3575.449598 | Z75: 7888.936869 | AB75: 58820.28096 | AC75: 46031 | AD75: 12789.28096 | AE75: 12789.28096 | AF75: 0 | AG75: 0 | AH75: 0 | AI75: 0 | AJ75: 0 | AL75: 1815.869667 | AM75: 941.1244954 | AN75: 2756.994163 | AP75: 58820.28096 | AQ75: 46031 | AR75: 12789.28096 | AT75: 1815.869667 | AU75: 179.0499334 | AV75: 1994.919601 | AX75: 58820.28096 | BB75: 941.1244954 | BC75: 941.1244954 | BD75: 1882.248991
A76: 36 | C76: 1879.23588 | D76: 950.3475154 | E76: 0 | F76: 114387.6078 | G76: 2829.583395 | H76: 244749.0866 | I76: 60365.53911 | J76: 59996.68658 | M76: 69995.93971 | O76: 4245.485412 | S76: 4444.199006 | U76: 1930.393391 | V76: 1716.5652 | W76: 4399.757016 | Y76: 3646.95859 | Z76: 8046.715606 | AB76: 59996.68658 | AC76: 46031 | AD76: 13965.68658 | AE76: 13965.68658 | AF76: 0 | AG76: 0 | AH76: 0 | AI76: 0 | AJ76: 0 | AL76: 1898.218061 | AM76: 959.9469853 | AN76: 2858.165046 | AP76: 59996.68658 | AQ76: 46031 | AR76: 13965.68658 | AT76: 1898.218061 | AU76: 195.5196121 | AV76: 2093.737673 | AX76: 59996.68658 | BB76: 959.9469853 | BC76: 959.9469853 | BD76: 1919.893971
A77: 37 | C77: 1962.391288 | D77: 969.3544657 | E77: 0 | F77: 118875.36 | G77: 2931.745753 | H77: 256580.4252 | I77: 63297.28486 | J77: 61196.62031 | M77: 74407.7804 | O77: 4411.84069 | S77: 4533.082986 | U77: 1969.001259 | V77: 1750.896504 | W77: 4487.752156 | Y77: 3719.897762 | Z77: 8207.649918 | AB77: 61196.62031 | AC77: 46031 | AD77: 15165.62031 | AE77: 15165.62031 | AF77: 0 | AG77: 0 | AH77: 0 | AI77: 0 | AJ77: 0 | AL77: 1982.213422 | AM77: 979.145925 | AN77: 2961.359347 | AP77: 61196.62031 | AQ77: 46031 | AR77: 15165.62031 | AT77: 1982.213422 | AU77: 212.3186844 | AV77: 2194.532106 | AX77: 61196.62031 | BB77: 979.145925 | BC77: 979.145925 | BD77: 1958.29185
A78: 38 | C78: 2047.209803 | D78: 988.741555 | E78: 0 | F78: 123452.8672 | G78: 3035.951358 | H78: 268775.4069 | I78: 66333.23622 | J78: 62420.55272 | M78: 78989.30347 | O78: 4581.523072 | S78: 4623.744646 | U78: 2008.381284 | V78: 1785.914434 | W78: 4577.507199 | Y78: 3794.295717 | Z78: 8371.802917 | AB78: 62420.55272 | AC78: 46031 | AD78: 16389.55272 | AE78: 16389.55272 | AF78: 0 | AG78: 0 | AH78: 0 | AI78: 0 | AJ78: 0 | AL78: 2067.88869 | AM78: 998.7288435 | AN78: 3066.617534 | AP78: 62420.55272 | AQ78: 46031 | AR78: 16389.55272 | AT78: 2067.88869 | AU78: 229.453738 | AV78: 2297.342428 | AX78: 62420.55272 | BB78: 998.7288435 | BC78: 998.7288435 | BD78: 1997.457687
A79: 39 | C79: 2133.724689 | D79: 1008.516386 | E79: 0 | F79: 128121.9245 | G79: 3142.241076 | H79: 281341.3044 | I79: 69475.4773 | J79: 63668.96377 | M79: 83743.90257 | O79: 4754.599103 | S79: 4716.219539 | U79: 2048.548909 | V79: 1821.632722 | W79: 4669.057343 | Y79: 3870.181632 | Z79: 8539.238975 | AB79: 63668.96377 | AC79: 46031 | AD79: 17637.96377 | AE79: 17637.96377 | AF79: 0 | AG79: 0 | AH79: 0 | AI79: 0 | AJ79: 0 | AL79: 2155.277464 | AM79: 1018.70342 | AN79: 3173.980884 | AP79: 63668.96377 | AQ79: 46031 | AR79: 17637.96377 | AT79: 2155.277464 | AU79: 246.9314928 | AV79: 2402.208957 | AX79: 63668.96377 | BB79: 1018.70342 | BC79: 1018.70342 | BD79: 2037.406841
A80: 40 | C80: 2221.969873 | D80: 1028.686714 | E80: 0 | F80: 132884.363 | G80: 3250.656587 | H80: 294285.5361 | I80: 72726.13389 | J80: 64942.34305 | M80: 88675.03923 | O80: 4931.136654 | S80: 4810.543929 | U80: 2089.519888 | V80: 1858.065377 | W80: 4762.43849 | Y80: 3947.585264 | Z80: 8710.023755 | AB80: 64942.34305 | AC80: 46031 | AD80: 18911.34305 | AE80: 18911.34305 | AF80: 0 | AG80: 0 | AH80: 0 | AI80: 0 | AJ80: 0 | AL80: 2244.414013 | AM80: 1039.077489 | AN80: 3283.491502 | AP80: 64942.34305 | AQ80: 46031 | AR80: 18911.34305 | AT80: 2244.414013 | AU80: 264.7588027 | AV80: 2509.172816 | AX80: 64942.34305 | BB80: 1039.077489 | BC80: 1039.077489 | BD80: 2078.154978
A81: 41 | C81: 2311.979961 | D81: 1049.260448 | E81: 0 | F81: 137742.0503 | G81: 3361.240409 | H81: 307615.6687 | I81: 76087.37429 | J81: 66241.18991 | M81: 93786.24418 | O81: 5111.204956 | S81: 4906.754808 | U81: 2131.310285 | V81: 1895.226684 | W81: 4857.68726 | Y81: 4026.53697 | Z81: 8884.22423 | AB81: 66241.18991 | AC81: 46031 | AD81: 20210.18991 | AE81: 20210.18991 | AF81: 0 | AG81: 0 | AH81: 0 | AI81: 0 | AJ81: 0 | AL81: 2335.333294 | AM81: 1059.859039 | AN81: 3395.192332 | AP81: 66241.18991 | AQ81: 46031 | AR81: 20210.18991 | AT81: 2335.333294 | AU81: 282.9426587 | AV81: 2618.275952 | AX81: 66241.18991 | BB81: 1059.859039 | BC81: 1059.859039 | BD81: 2119.718077
A82: 42 | C82: 2403.79025 | D82: 1070.245657 | E82: 0 | F82: 142696.8913 | G82: 3474.035907 | H82: 321339.4203 | I82: 79561.4102 | J82: 67566.01371 | M82: 99081.11881 | O82: 5294.874624 | S82: 5004.889904 | U82: 2173.936491 | V82: 1933.131218 | W82: 4954.841005 | Y82: 4107.067709 | Z82: 9061.908714 | AB82: 67566.01371 | AC82: 46031 | AD82: 21535.01371 | AE82: 21535.01371 | AF82: 0 | AG82: 0 | AH82: 0 | AI82: 0 | AJ82: 0 | AL82: 2428.070959 | AM82: 1081.056219 | AN82: 3509.127179 | AP82: 67566.01371 | AQ82: 46031 | AR82: 21535.01371 | AT82: 2428.070959 | AU82: 301.4901919 | AV82: 2729.561151 | AX82: 67566.01371 | BB82: 1081.056219 | BC82: 1081.056219 | BD82: 2162.112439
A83: 43 | C83: 2497.436745 | D83: 1091.65057 | E83: 0 | F83: 147750.8291 | G83: 3589.087315 | H83: 335464.6631 | I83: 83150.49752 | J83: 68917.33398 | M83: 104563.3365 | O83: 5482.217686 | S83: 5104.987702 | U83: 2217.415221 | V83: 1971.793843 | W83: 5053.937825 | Y83: 4189.209063 | Z83: 9243.146889 | AB83: 68917.33398 | AC83: 46031 | AD83: 22886.33398 | AE83: 22886.33398 | AF83: 0 | AG83: 0 | AH83: 0 | AI83: 0 | AJ83: 0 | AL83: 2522.663379 | AM83: 1102.677344 | AN83: 3625.340722 | AP83: 68917.33398 | AQ83: 46031 | AR83: 22886.33398 | AT83: 2522.663379 | AU83: 320.4086757 | AV83: 2843.072054 | AX83: 68917.33398 | BB83: 1102.677344 | BC83: 1102.677344 | BD83: 2205.354687
A84: 44 | C84: 2592.95617 | D84: 1113.483582 | E84: 0 | F84: 152905.8457 | G84: 3706.439751 | H84: 349999.427 | I84: 86856.93727 | J84: 70295.68066 | M84: 110236.6441 | O84: 5673.307609 | S84: 5207.087456 | U84: 2261.763525 | V84: 2011.229719 | W84: 5155.016582 | Y84: 4272.993245 | Z84: 9428.009826 | AB84: 70295.68066 | AC84: 46031 | AD84: 24264.68066 | AE84: 24264.68066 | AF84: 0 | AG84: 0 | AH84: 0 | AI84: 0 | AJ84: 0 | AL84: 2619.147646 | AM84: 1124.730891 | AN84: 3743.878537 | AP84: 70295.68066 | AQ84: 46031 | AR84: 24264.68066 | AT84: 2619.147646 | AU84: 339.7055292 | AV84: 2958.853175 | AX84: 70295.68066 | BB84: 1124.730891 | BC84: 1124.730891 | BD84: 2249.461781
A85: 45 | C85: 2690.385983 | D85: 1135.753253 | E85: 0 | F85: 158163.9626 | G85: 3826.139236 | H85: 364951.9025 | I85: 90683.0765 | J85: 71701.59427 | M85: 116104.8634 | O85: 5868.21933 | S85: 5311.229205 | U85: 2306.998796 | V85: 2051.454314 | W85: 5258.116913 | Y85: 4358.45311 | Z85: 9616.570023 | AB85: 71701.59427 | AC85: 46031 | AD85: 25670.59427 | AE85: 25670.59427 | AF85: 0 | AG85: 0 | AH85: 0 | AI85: 0 | AJ85: 0 | AL85: 2717.561599 | AM85: 1147.225508 | AN85: 3864.787108 | AP85: 71701.59427 | AQ85: 46031 | AR85: 25670.59427 | AT85: 2717.561599 | AU85: 359.3883198 | AV85: 3076.949919 | AX85: 71701.59427 | BB85: 1147.225508 | BC85: 1147.225508 | BD85: 2294.451017
A86: 46 | C86: 2789.764393 | D86: 1158.468318 | E86: 0 | F86: 163527.2418 | G86: 3948.232711 | H86: 380330.4438 | I86: 94631.30922 | J86: 73135.62616 | M86: 122171.8927 | O86: 6067.029286 | S86: 5417.45379 | U86: 2353.138772 | V86: 2092.4834 | W86: 5363.279252 | Y86: 4445.622172 | Z86: 9808.901423 | AB86: 73135.62616 | AC86: 46031 | AD86: 27104.62616 | AE86: 27104.62616 | AF86: 0 | AG86: 0 | AH86: 0 | AI86: 0 | AJ86: 0 | AL86: 2817.943831 | AM86: 1170.170019 | AN86: 3988.11385 | AP86: 73135.62616 | AQ86: 46031 | AR86: 27104.62616 | AT86: 2817.943831 | AU86: 379.4647662 | AV86: 3197.408597 | AX86: 73135.62616 | BB86: 1170.170019 | BC86: 1170.170019 | BD86: 2340.340037
A87: 47 | C87: 2891.130371 | D87: 1181.637685 | E87: 0 | F87: 168997.7867 | G87: 4072.768055 | H87: 396143.5721 | I87: 98704.07727 | J87: 74598.33868 | M87: 128441.7082 | O87: 6269.81544 | S87: 5525.802865 | U87: 2400.201547 | V87: 2134.333068 | W87: 5470.544837 | Y87: 4534.534615 | Z87: 10005.07945 | AB87: 74598.33868 | AC87: 46031 | AD87: 28567.33868 | AE87: 28567.33868 | AF87: 0 | AG87: 0 | AH87: 0 | AI87: 0 | AJ87: 0 | AL87: 2920.333708 | AM87: 1193.573419 | AN87: 4113.907127 | AP87: 74598.33868 | AQ87: 46031 | AR87: 28567.33868 | AT87: 2920.333708 | AU87: 399.9427416 | AV87: 3320.276449 | AX87: 74598.33868 | BB87: 1193.573419 | BC87: 1193.573419 | BD87: 2387.146838
A88: 48 | C88: 2994.523668 | D88: 1205.270438 | E88: 0 | F88: 174577.7424 | G88: 4199.794107 | H88: 412399.9793 | I88: 102903.8714 | J88: 76090.30546 | M88: 134918.3655 | O88: 6476.657318 | S88: 5636.318923 | U88: 2448.205578 | V88: 2177.019729 | W88: 5579.955733 | Y88: 4625.225307 | Z88: 10205.18104 | AB88: 76090.30546 | AC88: 46031 | AD88: 30059.30546 | AE88: 30059.30546 | AF88: 0 | AG88: 0 | AH88: 0 | AI88: 0 | AJ88: 0 | AL88: 3024.771382 | AM88: 1217.444887 | AN88: 4242.216269 | AP88: 76090.30546 | AQ88: 46031 | AR88: 30059.30546 | AT88: 3024.771382 | AU88: 420.8302764 | AV88: 3445.601658 | AX88: 76090.30546 | BB88: 1217.444887 | BC88: 1217.444887 | BD88: 2434.889775
A89: 49 | C89: 3099.984831 | D89: 1229.375847 | E89: 0 | F89: 180269.2973 | G89: 4329.360679 | H89: 429108.5308 | I89: 107233.2321 | J89: 77612.11156 | M89: 141606.0015 | O89: 6687.636034 | S89: 5749.045301 | U89: 2497.16969 | V89: 2220.560124 | W89: 5691.554848 | Y89: 4717.729814 | Z89: 10409.28466 | AB89: 77612.11156 | AC89: 46031 | AD89: 31581.11156 | AE89: 31581.11156 | AF89: 0 | AG89: 0 | AH89: 0 | AI89: 0 | AJ89: 0 | AL89: 3131.29781 | AM89: 1241.793785 | AN89: 4373.091595 | AP89: 77612.11156 | AQ89: 46031 | AR89: 31581.11156 | AT89: 3131.29781 | AU89: 442.1355619 | AV89: 3573.433371 | AX89: 77612.11156 | BB89: 1241.793785 | BC89: 1241.793785 | BD89: 2483.58757
A90: 50 | C90: 3207.555218 | D90: 1253.963364 | E90: 0 | F90: 186074.6832 | G90: 4461.518582 | H90: 446278.2697 | I90: 111694.7506 | J90: 79164.3538 | M90: 148508.8358 | O90: 6902.834323 | S90: 5864.026207 | U90: 2547.113083 | V90: 2264.971326 | W90: 5805.385945 | Y90: 4812.08441 | Z90: 10617.47035 | AB90: 79164.3538 | AC90: 46031 | AD90: 33133.3538 | AE90: 33133.3538 | AF90: 0 | AG90: 0 | AH90: 0 | AI90: 0 | AJ90: 0 | AL90: 3239.954766 | AM90: 1266.629661 | AN90: 4506.584426 | AP90: 79164.3538 | AQ90: 46031 | AR90: 33133.3538 | AT90: 3239.954766 | AU90: 463.8669531 | AV90: 3703.821719 | AX90: 79164.3538 | BB90: 1266.629661 | BC90: 1266.629661 | BD90: 2533.259321
A91: 51 | C91: 3317.277012 | D91: 1279.042631 | E91: 0 | F91: 191996.1769 | G91: 4596.319644 | H91: 463918.4196 | I91: 116291.0703 | J91: 80747.64087 | M91: 155631.1724 | O91: 7122.336579 | S91: 5981.306731 | U91: 2598.055345 | V91: 2310.270753 | W91: 5921.493664 | Y91: 4908.326098 | Z91: 10829.81976 | AB91: 80747.64087 | AC91: 46031 | AD91: 34716.64087 | AE91: 34716.64087 | AF91: 0 | AG91: 0 | AH91: 0 | AI91: 0 | AJ91: 0 | AL91: 3350.784861 | AM91: 1291.962254 | AN91: 4642.747115 | AP91: 80747.64087 | AQ91: 46031 | AR91: 34716.64087 | AT91: 3350.784861 | AU91: 486.0329722 | AV91: 3836.817833 | AX91: 80747.64087 | BB91: 1291.962254 | BC91: 1291.962254 | BD91: 2583.924508
A92: 52 | C92: 3429.193243 | D92: 1304.623484 | E92: 0 | F92: 198036.1004 | G92: 4733.816727 | H92: 482038.3887 | I92: 121024.887 | J92: 82362.59369 | M92: 162977.4013 | O92: 7346.22888 | S92: 6100.932866 | U92: 2650.016452 | V92: 2356.476168 | W92: 6039.923537 | Y92: 5006.49262 | Z92: 11046.41616 | AB92: 82362.59369 | AC92: 46031 | AD92: 36331.59369 | AE92: 36331.59369 | AF92: 0 | AG92: 0 | AH92: 0 | AI92: 0 | AJ92: 0 | AL92: 3463.831558 | AM92: 1317.801499 | AN92: 4781.633057 | AP92: 82362.59369 | AQ92: 46031 | AR92: 36331.59369 | AT92: 3463.831558 | AU92: 508.6423117 | AV92: 3972.47387 | AX92: 82362.59369 | BB92: 1317.801499 | BC92: 1317.801499 | BD92: 2635.602998
A93: 53 | C93: 3543.347798 | D93: 1330.715954 | E93: 0 | F93: 204196.8224 | G93: 4874.063751 | H93: 500647.7735 | I93: 125898.9508 | J93: 84009.84556 | M93: 170552.0003 | O93: 7574.599026 | S93: 6222.951523 | U93: 2703.016781 | V93: 2403.605691 | W93: 6160.722008 | Y93: 5106.622472 | Z93: 11267.34448 | AB93: 84009.84556 | AC93: 46031 | AD93: 37978.84556 | AE93: 37978.84556 | AF93: 0 | AG93: 0 | AH93: 0 | AI93: 0 | AJ93: 0 | AL93: 3579.139189 | AM93: 1344.157529 | AN93: 4923.296718 | AP93: 84009.84556 | AQ93: 46031 | AR93: 37978.84556 | AT93: 3579.139189 | AU93: 531.7038379 | AV93: 4110.843027 | AX93: 84009.84556 | BB93: 1344.157529 | BC93: 1344.157529 | BD93: 2688.315058
A94: 54 | C94: 3659.785443 | D94: 1357.330273 | E94: 0 | F94: 210480.7589 | G94: 5017.115716 | H94: 519756.3622 | I94: 130916.0665 | J94: 85690.04247 | M94: 178359.5369 | O94: 7807.536576 | S94: 6347.410554 | U94: 2757.077117 | V94: 2451.677805 | W94: 6283.936448 | Y94: 5208.754922 | Z94: 11492.69137 | AB94: 85690.04247 | AC94: 46031 | AD94: 39659.04247 | AE94: 39659.04247 | AF94: 0 | AG94: 0 | AH94: 0 | AI94: 0 | AJ94: 0 | AL94: 3696.752973 | AM94: 1371.04068 | AN94: 5067.793653 | AP94: 85690.04247 | AQ94: 46031 | AR94: 39659.04247 | AT94: 3696.752973 | AU94: 555.2265946 | AV94: 4251.979568 | AX94: 85690.04247 | BB94: 1371.04068 | BC94: 1371.04068 | BD94: 2742.081359
A95: 55 | C95: 3778.551842 | D95: 1384.476878 | E95: 0 | F95: 216890.374 | G95: 5163.028721 | H95: 539374.139 | I95: 136079.0952 | J95: 87403.84332 | M95: 186404.6698 | O95: 8045.132877 | S95: 6474.358765 | U95: 2812.218659 | V95: 2500.711361 | W95: 6409.615177 | Y95: 5312.93002 | Z95: 11722.5452 | AB95: 87403.84332 | AC95: 46031 | AD95: 41372.84332 | AE95: 41372.84332 | AF95: 0 | AG95: 0 | AH95: 0 | AI95: 0 | AJ95: 0 | AL95: 3816.719033 | AM95: 1398.461493 | AN95: 5215.180526 | AP95: 87403.84332 | AQ95: 46031 | AR95: 41372.84332 | AT95: 3816.719033 | AU95: 579.2198065 | AV95: 4395.938839 | AX95: 87403.84332 | BB95: 1398.461493 | BC95: 1398.461493 | BD95: 2796.922986
A96: 56 | C96: 3899.693569 | D96: 1412.166416 | E96: 0 | F96: 223428.1815 | G96: 5311.859985 | H96: 559511.2876 | I96: 141390.9552 | J96: 89151.92019 | M96: 194692.1509 | O96: 8287.481103 | S96: 6603.84594 | U96: 2868.463032 | V96: 2550.725589 | W96: 6537.807481 | Y96: 5419.188621 | Z96: 11956.9961 | AB96: 89151.92019 | AC96: 46031 | AD96: 43120.92019 | AE96: 43120.92019 | AF96: 0 | AG96: 0 | AH96: 0 | AI96: 0 | AJ96: 0 | AL96: 3939.084413 | AM96: 1426.430723 | AN96: 5365.515136 | AP96: 89151.92019 | AQ96: 46031 | AR96: 43120.92019 | AT96: 3939.084413 | AU96: 603.6928827 | AV96: 4542.777296 | AX96: 89151.92019 | BB96: 1426.430723 | BC96: 1426.430723 | BD96: 2852.861446
A97: 57 | C97: 4023.258131 | D97: 1440.409744 | E97: 0 | F97: 230096.7451 | G97: 5463.667875 | H97: 580178.1954 | I97: 146854.6231 | J97: 90934.95859 | M97: 203226.8272 | O97: 8534.676294 | S97: 6735.922859 | U97: 2925.832293 | V97: 2601.7401 | W97: 6668.56363 | Y97: 5527.572393 | Z97: 12196.13602 | AB97: 90934.95859 | AC97: 46031 | AD97: 44903.95859 | AE97: 44903.95859 | AF97: 0 | AG97: 0 | AH97: 0 | AI97: 0 | AJ97: 0 | AL97: 4063.897102 | AM97: 1454.959338 | AN97: 5518.856439 | AP97: 90934.95859 | AQ97: 46031 | AR97: 44903.95859 | AT97: 4063.897102 | AU97: 628.6554203 | AV97: 4692.552522 | AX97: 90934.95859 | BB97: 1454.959338 | BC97: 1454.959338 | BD97: 2909.918675
A98: 58 | C98: 4149.293983 | D98: 1469.217939 | E98: 0 | F98: 236898.68 | G98: 5618.511922 | H98: 601385.4576 | I98: 152473.135 | J98: 92753.65777 | M98: 212013.6426 | O98: 8786.815389 | S98: 6870.641316 | U98: 2984.348939 | V98: 2653.774902 | W98: 6801.934903 | Y98: 5638.123841 | Z98: 12440.05874 | AB98: 92753.65777 | AC98: 46031 | AD98: 46722.65777 | AE98: 46722.65777 | AF98: 0 | AG98: 0 | AH98: 0 | AI98: 0 | AJ98: 0 | AL98: 4191.206044 | AM98: 1484.058524 | AN98: 5675.264568 | AP98: 92753.65777 | AQ98: 46031 | AR98: 46722.65777 | AT98: 4191.206044 | AU98: 654.1172087 | AV98: 4845.323252 | AX98: 92753.65777 | BB98: 1484.058524 | BC98: 1484.058524 | BD98: 2968.117049
A99: 59 | C99: 4277.850553 | D99: 1498.602298 | E99: 0 | F99: 243836.6536 | G99: 5776.452851 | H99: 623143.8813 | I99: 158249.5878 | J99: 94608.73092 | M99: 221057.6398 | O99: 9043.997266 | S99: 7008.054142 | U99: 3044.035917 | V99: 2706.8504 | W99: 6937.973601 | Y99: 5750.886318 | Z99: 12688.85992 | AB99: 94608.73092 | AC99: 46031 | AD99: 48577.73092 | AE99: 48577.73092 | AF99: 0 | AG99: 0 | AH99: 0 | AI99: 0 | AJ99: 0 | AL99: 4321.061165 | AM99: 1513.739695 | AN99: 5834.800859 | AP99: 94608.73092 | AQ99: 46031 | AR99: 48577.73092 | AT99: 4321.061165 | AU99: 680.0882329 | AV99: 5001.149397 | AX99: 94608.73092 | BB99: 1513.739695 | BC99: 1513.739695 | BD99: 3027.479389
A100: 60 | C100: 4408.978254 | D100: 1528.574344 | E100: 0 | F100: 250913.3867 | G100: 5937.552598 | H100: 645464.4898 | I100: 164187.1404 | J100: 96500.90554 | M100: 230363.9626 | O100: 9306.32278 | S100: 7148.215225 | U100: 3104.916636 | V100: 2760.987408 | W100: 7076.733073 | Y100: 5865.904044 | Z100: 12942.63712 | AB100: 96500.90554 | AC100: 46031 | AD100: 50469.90554 | AE100: 50469.90554 | AF100: 0 | AG100: 0 | AH100: 0 | AI100: 0 | AJ100: 0 | AL100: 4453.513388 | AM100: 1544.014489 | AN100: 5997.527876 | AP100: 96500.90554 | AQ100: 46031 | AR100: 50469.90554 | AT100: 4453.513388 | AU100: 706.5786776 | AV100: 5160.092065 | AX100: 96500.90554 | BB100: 1544.014489 | BC100: 1544.014489 | BD100: 3088.028977
A101: 61 | C101: 4542.728509 | D101: 1559.145831 | E101: 0 | F101: 258131.6545 | G101: 6101.87434 | H101: 668358.5266 | I101: 170289.0148 | J101: 98430.92365 | M101: 239937.8574 | O101: 9573.894805 | S101: 7291.17953 | U101: 3167.014968 | V101: 2816.207157 | W101: 7218.267734 | Y101: 5983.222125 | Z101: 13201.48986 | AB101: 98430.92365 | AC101: 46031 | AD101: 52399.92365 | AE101: 52399.92365 | AF101: 0 | AG101: 0 | AH101: 0 | AI101: 0 | AJ101: 0 | AL101: 4588.614656 | AM101: 1574.894778 | AN101: 6163.509434 | AP101: 98430.92365 | AQ101: 46031 | AR101: 52399.92365 | AT101: 4588.614656 | AU101: 733.5989311 | AV101: 5322.213587 | AX101: 98430.92365 | BB101: 1574.894778 | BC101: 1574.894778 | BD101: 3149.789557
A102: 62 | C102: 4679.153769 | D102: 1590.328747 | E102: 0 | F102: 265494.2875 | G102: 6269.482516 | H102: 691837.4605 | I102: 176558.4973 | J102: 100399.5421 | M102: 249784.6757 | O102: 9846.81827 | S102: 7437.00312 | U102: 3230.355268 | V102: 2872.5313 | W102: 7362.633089 | Y102: 6102.886568 | Z102: 13465.51966 | AB102: 100399.5421 | AC102: 46031 | AD102: 54368.54212 | AE102: 54368.54212 | AF102: 0 | AG102: 0 | AH102: 0 | AI102: 0 | AJ102: 0 | AL102: 4726.417949 | AM102: 1606.392674 | AN102: 6332.810623 | AP102: 100399.5421 | AQ102: 46031 | AR102: 54368.54212 | AT102: 4726.417949 | AU102: 761.1595897 | AV102: 5487.577538 | AX102: 100399.5421 | BB102: 1606.392674 | BC102: 1606.392674 | BD102: 3212.785348
A103: 63 | C103: 4818.307535 | D103: 1622.135322 | E103: 0 | F103: 273004.1733 | G103: 6440.442857 | H103: 715912.9893 | I103: 182998.9401 | J103: 102407.533 | M103: 259909.8759 | O103: 10125.2002 | S103: 7585.743183 | U103: 3294.962373 | V103: 2929.981926 | W103: 7509.885751 | Y103: 6224.944299 | Z103: 13734.83005 | AB103: 102407.533 | AC103: 46031 | AD103: 56376.53297 | AE103: 56376.53297 | AF103: 0 | AG103: 0 | AH103: 0 | AI103: 0 | AJ103: 0 | AL103: 4866.977308 | AM103: 1638.520527 | AN103: 6505.497835 | AP103: 102407.533 | AQ103: 46031 | AR103: 56376.53297 | AT103: 4866.977308 | AU103: 789.2714615 | AV103: 5656.248769 | AX103: 102407.533 | BB103: 1638.520527 | BC103: 1638.520527 | BD103: 3277.041055
A104: 64 | C104: 4960.244375 | D104: 1654.578029 | E104: 0 | F104: 280664.2568 | G104: 6614.822404 | H104: 740597.045 | I104: 189613.7625 | J104: 104455.6836 | M104: 270319.0257 | O104: 10409.14978 | S104: 7737.458046 | U104: 3360.861621 | V104: 2988.581564 | W104: 7660.083466 | Y104: 6349.443185 | Z104: 14009.52665 | AB104: 104455.6836 | AC104: 46031 | AD104: 58424.68363 | AE104: 58424.68363 | AF104: 0 | AG104: 0 | AH104: 0 | AI104: 0 | AJ104: 0 | AL104: 5010.347854 | AM104: 1671.290938 | AN104: 6681.638792 | AP104: 104455.6836 | AQ104: 46031 | AR104: 58424.68363 | AT104: 5010.347854 | AU104: 817.9455708 | AV104: 5828.293425 | AX104: 104455.6836 | BB104: 1671.290938 | BC104: 1671.290938 | BD104: 3342.581876
A105: 65 | C105: 5105.019953 | D105: 1687.669589 | E105: 0 | F105: 288477.5419 | G105: 6792.689542 | H105: 765901.798 | I105: 196406.4521 | J105: 106544.7973 | M105: 281017.804 | O105: 10698.77834 | S105: 7892.207207 | U105: 3428.078853 | V105: 3048.353196 | W105: 7813.285135 | Y105: 6476.432049 | Z105: 14289.71718 | AB105: 106544.7973 | AC105: 46031 | AD105: 60513.7973 | AE105: 60513.7973 | AF105: 0 | AG105: 0 | AH105: 0 | AI105: 0 | AJ105: 0 | AL105: 5156.585811 | AM105: 1704.716757 | AN105: 6861.302568 | AP105: 106544.7973 | AQ105: 46031 | AR105: 60513.7973 | AT105: 5156.585811 | AU105: 847.1931622 | AV105: 6003.778973 | AX105: 106544.7973 | BB105: 1704.716757 | BC105: 1704.716757 | BD105: 3409.433514
A106: 66 | C106: =IF($B$35=1,AL106*99%,IF($B$35=2,AT106*99%,BB106*99%)) -> 5252.691042 | D106: =IF($B$35=1,AM106*99%,IF($B$35=2,AU106*99%,BC106*99%)) -> 1721.422981 | E106: 0 | F106: 296447.0927 | G106: =+B106+C106+D106 -> 6974.114023 | H106: 791839.6623 | I106: 203380.5661 | J106: 108675.6932 | M106: 292012.0035 | O106: 10994.19948 | S106: =+J106/13.5 -> 8050.051351 | U106: 3496.64043 | V106: 3109.320259 | W106: 7969.550838 | Y106: 6605.96069 | Z106: 14575.51153 | AB106: =+J106 -> 108675.6932 | AC106: =IF(AB106>=$AC$29,$AC$29,AB106) -> 46031 | AD106: =+AB106-AC106 -> 62644.69324 | AE106: =IF(AD106>=$AA$30,$AA$30,AD106) -> 62644.69324 | AF106: =+AD106-AE106 -> 0 | AG106: =IF(AF106>=$AA$31,$AA$31,AF106) -> 0 | AH106: =+AF106-AG106 -> 0 | AI106: =IF(AH106>=$AA$32,$AA$32,AH106) -> 0 | AJ106: =IF(AH106>=$AA$33,$AA$33,AH106) -> 0 | AL106: =+((AC106*$AD$29)+(AE106*$AD$30))/100 -> 5305.748527 | AM106: =IF($AD$23>=10,((AC106*$AE$29)+(AE106*$AE$30)),(AC106*$AE$32)+(AE106*$AE$33))/100 -> 1738.811092 | AN106: =+AL106+AM106 -> 7044.559619 | AP106: =+AB106 -> 108675.6932 | AQ106: =IF(AP106>=$AH$29,$AH$29,AP106) -> 46031 | AR106: =+AP106-AQ106 -> 62644.69324 | AT106: =+AQ106*$AI$29%+AR106*$AI$30% -> 5305.748527 | AU106: =IF($AD$23>=10,(AQ106*$AJ$29/100)+(AR106*$AJ$30/100),(AQ106*$AJ98/100+AR106*$AJ$34/100)) -> 877.0257054 | AV106: =+AT106+AU106 -> 6182.774233 | AX106: =+J106 -> 108675.6932 | BB106: =+AX106*$AM$25% -> 1738.811092 | BC106: =+AX106*$AM$25% -> 1738.811092 | BD106: =+BB106+BC106 -> 3477.622184
A107: =1+A106 -> 67 | C107: 5403.315553 | D107: 1755.851441 | E107: =+E106+X107 -> 0 | F107: =+F106+W107 -> 304576.0346 | G107: 7159.166993 | H107: =+I107+F107+M107 -> 818423.3002 | I107: =+I106+G107 -> 210539.7331 | J107: =+J106*$K$41/100 -> 110849.2071 | M107: =+M106+O107 -> 303307.5325 | O107: =+(G107+F107+O106)*$N$41/100 -> 11295.52904 | S107: 8211.052378 | U107: =+J107*$P$41/100*99% -> 3566.573239 | V107: =+J107*$Q$41*99%/100 -> 3171.506665 | W107: =+J107/13.5*$R$41/100*99% -> 8128.941855 | Y107: =+U107+V107+X107 -> 6738.079903 | Z107: =+Y107+W107 -> 14867.02176 | AB107: 110849.2071 | AC107: 46031 | AD107: 64818.20711 | AE107: 64818.20711 | AF107: 0 | AG107: 0 | AH107: 0 | AI107: 0 | AJ107: 0 | AL107: 5457.894498 | AM107: 1773.587314 | AN107: 7231.481811 | AP107: 110849.2071 | AQ107: 46031 | AR107: 64818.20711 | AT107: 5457.894498 | AU107: 907.4548995 | AV107: 6365.349397 | AX107: 110849.2071 | BB107: 1773.587314 | BC107: 1773.587314 | BD107: 3547.174627
A108: 68 | C108: 5556.952554 | D108: 1790.968469 | E108: 0 | F108: 312867.5553 | G108: 7347.921023 | H108: 845665.6271 | I108: 217887.6541 | J108: 113066.1913 | M108: 314910.4177 | O108: 11602.88519 | S108: 8375.273426 | U108: 3637.904704 | V108: 3234.936798 | W108: 8291.520692 | Y108: 6872.841501 | Z108: 15164.36219 | AB108: 113066.1913 | AC108: 46031 | AD108: 67035.19125 | AE108: 67035.19125 | AF108: 0 | AG108: 0 | AH108: 0 | AI108: 0 | AJ108: 0 | AL108: 5613.083388 | AM108: 1809.05906 | AN108: 7422.142448 | AP108: 113066.1913 | AQ108: 46031 | AR108: 67035.19125 | AT108: 5613.083388 | AU108: 938.4926775 | AV108: 6551.576065 | AX108: 113066.1913 | BB108: 1809.05906 | BC108: 1809.05906 | BD108: 3618.11812
A109: 69 | C109: 5713.662295 | D109: 1826.787839 | E109: 0 | F109: 321324.9064 | G109: 7540.450134 | H109: 873579.8168 | I109: 225428.1043 | J109: 115327.5151 | M109: 326826.8062 | O109: 11916.38846 | S109: 8542.778895 | U109: 3710.662798 | V109: 3299.635534 | W109: 8457.351106 | Y109: 7010.298331 | Z109: 15467.64944 | AB109: 115327.5151 | AC109: 46031 | AD109: 69296.51508 | AE109: 69296.51508 | AF109: 0 | AG109: 0 | AH109: 0 | AI109: 0 | AJ109: 0 | AL109: 5771.376055 | AM109: 1845.240241 | AN109: 7616.616297 | AP109: 115327.5151 | AQ109: 46031 | AR109: 69296.51508 | AT109: 5771.376055 | AU109: 970.1512111 | AV109: 6741.527266 | AX109: 115327.5151 | BB109: 1845.240241 | BC109: 1845.240241 | BD109: 3690.480482
A110: 70 | C110: 5873.506231 | D110: =IF($B$35=1,AM110*99%,IF($B$35=2,AU110*99%,BC110*99%)) -> 1863.323596 | E110: 0 | F110: 329951.4045 | G110: 7736.829826 | H110: 902179.3066 | I110: 233164.9341 | J110: 117634.0654 | M110: 339062.968 | O110: 12236.1618 | S110: 8713.634472 | U110: 3784.876054 | V110: 3365.628245 | W110: 8626.498128 | Y110: 7150.504298 | Z110: 15777.00243 | AB110: 117634.0654 | AC110: 46031 | AD110: 71603.06538 | AE110: 71603.06538 | AF110: 0 | AG110: 0 | AH110: 0 | AI110: 0 | AJ110: 0 | AL110: 5932.834576 | AM110: 1882.145046 | AN110: 7814.979622 | AP110: 117634.0654 | AQ110: 46031 | AR110: 71603.06538 | AT110: 5932.834576 | AU110: 1002.442915 | AV110: 6935.277492 | AX110: 117634.0654 | BB110: 1882.145046 | BC110: 1882.145046 | BD110: 3764.290092
S112: =SUM(S41:S111) -> 333284.247 | U112: =SUM(U42:U111) -> 143800.9287 | V112: 127872.2105 | W112: =SUM(W42:W111) -> 327751.4045 | Y112: =SUM(Y42:Y111) -> 271673.1392 | Z112: =SUM(Z42:Z111) -> 599424.5437
V113: =+V112+U112 -> 271673.1392 | Z113: =+V113+W112 -> 599424.5437

Sheet CALCOLO PENSIONE (hidden)
D4: SESSO | E4: =+'RENDITE VITALIZIE'!H10 -> M | F4: =IF($E$4="M",VLOOKUP($E$5,$D$10:$E$99,2),VLOOKUP($E$5,$G$10:$H$97,2)) -> 0
D5: ETA' | E5: =+'RENDITE VITALIZIE'!H6 -> 67 | I5: =+E7*L5 -> 4887 | K5: =+E7*L5 -> 4887 | L5: =IF($E$4="M",VLOOKUP($E$6,CALCOLI!$F$16:$H$36,2),VLOOKUP($E$6,CALCOLI!$F$16:$H$36,3)) -> 0.04887 | M5: IMMEDIATA | P5: =+K5 -> 4887
D6: ETA' CORRETTA | E6: =+E5+F4 -> 67
D7: MONTANTE | E7: =+'RENDITE VITALIZIE'!H8 -> 100000 | K7: =+E7*L7 -> 4858 | L7: =IF($E$4="M",VLOOKUP($E$6,CALCOLI!$J$16:$L$36,2),VLOOKUP($E$6,CALCOLI!$J$16:$L$36,3)) -> 0.04858 | M7: CERTA 5 ANNI | P7: =+K7 -> 4858
D9: maschi | G9: femmine | K9: =+E7*L9 -> 4752 | L9: =IF($E$4="M",VLOOKUP($E$6,CALCOLI!$N$16:$P$36,2),VLOOKUP($E$6,CALCOLI!$N$16:$P$36,3)) -> 0.04752 | M9: CERTA 10 ANNI | P9: =+K9 -> 4752
D10: 0 | E10: -2 | G10: 0 | H10: -2
D11: =1+D10 -> 1 | E11: -2 | G11: =1+G10 -> 1 | H11: -2 | K11: =+E7*L11 -> 3888 | L11: =IF($E$4="M",VLOOKUP($E$6,CALCOLI!$R$16:$T$36,2),VLOOKUP($E$6,CALCOLI!$R$16:$T$36,3)) -> 0.03888 | M11: CONTRASS TT0,5% | P11: =+K11 -> 3888
D12: =1+D11 -> 2 | E12: -2 | G12: =1+G11 -> 2 | H12: -2
D13: 3 | E13: -2 | G13: 3 | H13: -2 | K13: =+E7*L13 -> 3677 | L13: =IF($E$4="M",VLOOKUP($E$6,CALCOLI!$Z$5:$AB$25,2),VLOOKUP($E$6,CALCOLI!$Z$5:AB$25,3)) -> 0.03677 | M13: REVERSIBILE | P13: =+K13 -> 3677
D14: 4 | E14: -2 | G14: 4 | H14: -2
D15: 5 | E15: -2 | G15: 5 | H15: -2
D16: 6 | E16: -2 | G16: 6 | H16: -2
D17: 7 | E17: -2 | G17: 7 | H17: -2 | N17: % su
D18: 8 | E18: -2 | G18: 8 | H18: -2 | N18: trimestrale
D19: 9 | E19: -2 | G19: 9 | H19: -2 | K19: 100000 | L19: 0.04775 | M19: =+K19*L19 -> 4775 | N19: =+M19/K5% -> 97.70820544 | O19: annuale
D20: 10 | E20: -2 | G20: 10 | H20: -2 | L20: 0.04718 | M20: =+K19*L20 -> 4718 | N20: =+M20/K5% -> 96.54184571 | O20: semestrale
D21: 11 | E21: -2 | G21: 11 | H21: -2 | L21: 0.04671 | M21: =+K19*L21 -> 4671 | N21: =+M21/K5% -> 95.5801105 | O21: mensile
D22: 12 | E22: -2 | G22: 12 | H22: -2
D23: 13 | E23: -2 | G23: 13 | H23: -2
D24: 14 | E24: -2 | G24: 14 | H24: -2
D25: 15 | E25: -2 | G25: 15 | H25: -2 | L25: età | M25: montante | N25: annuale | O25: semestrale | P25: trimestrale | Q25: mensile
D26: 16 | E26: -2 | G26: 16 | H26: -2 | K26: rend ord | L26: 67 | M26: 100000 | N26: 0.04979 | O26: 0.04917 | P26: 0.04887 | Q26: 0.04867
D27: 17 | E27: -2 | G27: 17 | H27: -2 | N27: =+M26*N26 -> 4979 | O27: =+O26*M26 -> 4917 | P27: =+P26*M26 -> 4887 | Q27: =+Q26*M26 -> 4867 | R27: m
D28: 18 | E28: -2 | G28: 18 | H28: -2 | N28: 0.0423 | O28: 0.04185 | P28: 0.04163 | Q28: 0.04148
D29: 19 | E29: -2 | G29: 19 | H29: -2 | N29: =+N28*M26 -> 4230 | O29: =+O28*M26 -> 4185 | P29: =+P28*M26 -> 4163 | Q29: =+Q28*M26 -> 4148 | R29: f | U29: =+U32-T32 -> -62 | V29: =+V32-T32 -> -92 | W29: =+W32-T32 -> -112
D30: 20 | E30: -2 | G30: 20 | H30: -2 | U30: =+U32/T32% -> 98.75477003 | V30: =+V32/T32% -> 98.15223941 | W30: =+W32/T32% -> 97.75055232
D31: 21 | E31: -2 | G31: 21 | H31: -2 | T31: annuale | U31: semestrale | V31: trimestrale | W31: mensile
D32: 22 | E32: -2 | G32: 22 | H32: -2 | S32: M | T32: =+N27 -> 4979 | U32: =+O27 -> 4917 | V32: =+P27 -> 4887 | W32: =+Q27 -> 4867
D33: 23 | E33: -2 | G33: 23 | H33: -2 | S33: F | T33: =+N29 -> 4230 | U33: =+O29 -> 4185 | V33: =+P29 -> 4163 | W33: =+Q29 -> 4148
D34: 24 | E34: -2 | G34: 24 | H34: -2 | U34: =+U33-T33 -> -45 | V34: =+V33-T33 -> -67 | W34: =+W33-T33 -> -82
D35: 25 | E35: -2 | G35: 25 | H35: -2 | U35: =+U33/T33% -> 98.93617021 | V35: =+V33/T33% -> 98.41607565 | W35: =+W33/T33% -> 98.06146572
D36: 26 | E36: -2 | G36: 26 | H36: -2
D37: 27 | E37: -2 | G37: 27 | H37: -2
D38: 28 | E38: -2 | G38: 28 | H38: -2
D39: 29 | E39: -2 | G39: 29 | H39: -2
D40: 30 | E40: -2 | G40: 30 | H40: -2
D41: 31 | E41: -2 | G41: 31 | H41: -2
D42: 32 | E42: -2 | G42: 32 | H42: -2
D43: 33 | E43: -2 | G43: 33 | H43: -2
D44: 34 | E44: -2 | G44: 34 | H44: -2
D45: 35 | E45: -2 | G45: 35 | H45: -2
D46: 36 | E46: -2 | G46: 36 | H46: -2
D47: 37 | E47: -2 | G47: 37 | H47: -2
D48: 38 | E48: -2 | G48: 38 | H48: -2
D49: 39 | E49: -2 | G49: 39 | H49: -2
D50: 40 | E50: -2 | G50: 40 | H50: -2
D51: 41 | E51: -2 | G51: 41 | H51: -2
D52: 42 | E52: -2 | G52: 42 | H52: -2
D53: 43 | E53: -2 | G53: 43 | H53: -2
D54: 44 | E54: -2 | G54: 44 | H54: -2
D55: 45 | E55: -2 | G55: 45 | H55: -2
D56: 46 | E56: -2 | G56: 46 | H56: -1
D57: 47 | E57: -2 | G57: 47 | H57: -1
D58: 48 | E58: -1 | G58: 48 | H58: -1
D59: 49 | E59: -1 | G59: 49 | H59: -1
D60: 50 | E60: -1 | G60: 50 | H60: -1
D61: 51 | E61: -1 | G61: 51 | H61: -1
D62: 52 | E62: -1 | G62: 52 | H62: -1
D63: 53 | E63: -1 | G63: 53 | H63: -1
D64: 54 | E64: -1 | G64: 54 | H64: -1
D65: 55 | E65: -1 | G65: 55 | H65: -1
D66: 56 | E66: -1 | G66: 56 | H66: 0
D67: 57 | E67: -1 | G67: 57 | H67: 0
D68: 58 | E68: 0 | G68: 58 | H68: 0
D69: 59 | E69: 0 | G69: 59 | H69: 0
D70: 60 | E70: 0 | G70: 60 | H70: 0
D71: 61 | E71: 0 | G71: 61 | H71: 0
D72: 62 | E72: 0 | G72: 62 | H72: 0
D73: 63 | E73: 0 | G73: 63 | H73: 0
D74: 64 | E74: 0 | G74: 64 | H74: 0
D75: 65 | E75: 0 | G75: 65 | H75: 0
D76: =1+D75 -> 66 | E76: 0 | G76: =1+G75 -> 66 | H76: 0
D77: 67 | E77: 0 | G77: 67 | H77: 0
D78: 68 | E78: 0 | G78: 68 | H78: 0
D79: 69 | E79: 0 | G79: 69 | H79: 1
D80: 70 | E80: 0 | G80: 70 | H80: 1
D81: 71 | E81: 1 | G81: 71 | H81: 1
D82: 72 | E82: 1 | G82: 72 | H82: 1
D83: 73 | E83: 1 | G83: 73 | H83: 1
D84: 74 | E84: 1 | G84: 74 | H84: 1
D85: 75 | E85: 1 | G85: 75 | H85: 1
D86: 76 | E86: 1 | G86: 76 | H86: 1
D87: 77 | E87: 1 | G87: 77 | H87: 1
D88: 78 | E88: 1 | G88: 78 | H88: 2
D89: 79 | E89: 1 | G89: 79 | H89: 2
D90: 80 | E90: 2 | G90: 80 | H90: 2
D91: 81 | E91: 2 | G91: 81 | H91: 2
D92: 82 | E92: 2 | G92: 82 | H92: 2
D93: 83 | E93: 2 | G93: 83 | H93: 2
D94: 84 | E94: 2 | G94: 84 | H94: 2
D95: 85 | E95: 2 | G95: 85 | H95: 2
D96: 86 | E96: 2 | G96: 86 | H96: 2
D97: 87 | E97: 2 | G97: 87 | H97: 2
D98: 88 | E98: 2
D99: 89 | E99: 2

Sheet RENDITE VITALIZIE
J3: CALCOLO RENDITA VITALIZIA
C6: ETA' AL MOMENTO DELLA RISCOSSIONE MINIMO 50 | H6: 67
C8: VALORE MONTANTE DA DESTINARE ALLA RENDITA | H8: 100000
C10: SESSO | H10: M
E23: PROPRIETA' INTELLETTUALE E REALIZZAZIONE DI GIUSEPPE NICOLETTI - E' VIETATA LA RIPRODUZIONE E/O COMMERCIALIZZAZIONE ANCHE PARZIALE
